Department Family,Entity,Date,Expense Type,Expense area,Supplier,Transaction Number,Amount,VAT registration Number
Department of Health,Salisbury NHS Foundation Trust,02-May-11,INSURANCE COSTS,Nursing Directorate,NHS Litigation,01-2011-2012,622840,
Department of Health,Salisbury NHS Foundation Trust,03-May-11,DI & RADIO - RADIOLOGY EQUIPMENT,Medicine,NHS SUPPLY CHAIN (MAIDSTONE),2012000144,1468.12,
Department of Health,Salisbury NHS Foundation Trust,03-May-11,MED SURG EQUIP REP MAINT CLEANING,Clinical Support and Family Services,NHS SUPPLY CHAIN (MAIDSTONE),2012000068,2223.01,
Department of Health,Salisbury NHS Foundation Trust,03-May-11,MED SURG EQUIP REP MAINT CLEANING,Clinical Support and Family Services,NHS SUPPLY CHAIN (MAIDSTONE),2012000068,2223.01,
Department of Health,Salisbury NHS Foundation Trust,03-May-11,MED SURG EQUIP REP MAINT CLEANING,Clinical Support and Family Services,NHS SUPPLY CHAIN (MAIDSTONE),2012000068,2223.01,
Department of Health,Salisbury NHS Foundation Trust,03-May-11,MED SURG EQUIP REP MAINT CLEANING,Clinical Support and Family Services,NHS SUPPLY CHAIN (MAIDSTONE),2012000068,2223.01,
Department of Health,Salisbury NHS Foundation Trust,03-May-11,MED SURG EQUIP REP MAINT CLEANING,Clinical Support and Family Services,NHS SUPPLY CHAIN (MAIDSTONE),2012000068,2223.01,
Department of Health,Salisbury NHS Foundation Trust,03-May-11,MED SURG EQUIP REP MAINT CLEANING,Clinical Support and Family Services,NHS SUPPLY CHAIN (MAIDSTONE),2012000068,2223.01,
Department of Health,Salisbury NHS Foundation Trust,03-May-11,MED SURG EQUIP REP MAINT CLEANING,Clinical Support and Family Services,NHS SUPPLY CHAIN (MAIDSTONE),2012000068,2223.01,
Department of Health,Salisbury NHS Foundation Trust,03-May-11,MED SURG EQUIP REP MAINT CLEANING,Clinical Support and Family Services,NHS SUPPLY CHAIN (MAIDSTONE),2012000068,2223.01,
Department of Health,Salisbury NHS Foundation Trust,03-May-11,MED SURG EQUIP REP MAINT CLEANING,Clinical Support and Family Services,NHS SUPPLY CHAIN (MAIDSTONE),2012000068,2535.01,
Department of Health,Salisbury NHS Foundation Trust,03-May-11,MED SURG EQUIP REP MAINT CLEANING,Clinical Support and Family Services,NHS SUPPLY CHAIN (MAIDSTONE),2012000068,2535.01,
Department of Health,Salisbury NHS Foundation Trust,03-May-11,MED SURG EQUIP REP MAINT CLEANING,Clinical Support and Family Services,NHS SUPPLY CHAIN (MAIDSTONE),2012000068,2535.01,
Department of Health,Salisbury NHS Foundation Trust,03-May-11,MED SURG EQUIP REP MAINT CLEANING,Clinical Support and Family Services,NHS SUPPLY CHAIN (MAIDSTONE),2012000068,2535.01,
Department of Health,Salisbury NHS Foundation Trust,03-May-11,MED SURG EQUIP REP MAINT CLEANING,Clinical Support and Family Services,NHS SUPPLY CHAIN (MAIDSTONE),2012000068,2535.01,
Department of Health,Salisbury NHS Foundation Trust,03-May-11,DI & RADIO-RADIOTHERAPY EQUIPMENT,Medicine,NHS SUPPLY CHAIN (MAIDSTONE),2012000146,3964.28,
Department of Health,Salisbury NHS Foundation Trust,03-May-11,BLDGS ENGINEERING INSTALL,Capital Projects,BAS,I033503,4800,
Department of Health,Salisbury NHS Foundation Trust,03-May-11,DRUGS,Clinical Support and Family Services,ROCHE PRODUCTS LTD,1321365237,5820.7,
Department of Health,Salisbury NHS Foundation Trust,03-May-11,DRUGS,Clinical Support and Family Services,NOVARTIS PHARMACEUTICALS UK LTD,90845449,6452.28,
Department of Health,Salisbury NHS Foundation Trust,03-May-11,DRUGS,Clinical Support and Family Services,NOVARTIS PHARMACEUTICALS UK LTD,90840172,8078.64,
Department of Health,Salisbury NHS Foundation Trust,03-May-11,DI & RADIO-RADIOTHERAPY EQUIPMENT,Surgery,NHS SUPPLY CHAIN (MAIDSTONE),2012000146,8827.48,
Department of Health,Salisbury NHS Foundation Trust,03-May-11,DI & RADIO-RADIOTHERAPY EQUIPMENT,Clinical Support and Family Services,NHS SUPPLY CHAIN (MAIDSTONE),2012000146,9388.14,
Department of Health,Salisbury NHS Foundation Trust,03-May-11,DI & RADIO-RADIOTHERAPY EQUIPMENT,Medicine,NHS SUPPLY CHAIN (MAIDSTONE),2012000146,9613.91,
Department of Health,Salisbury NHS Foundation Trust,03-May-11,DI & RADIO - RADIOLOGY EQUIPMENT,Medicine,NHS SUPPLY CHAIN (MAIDSTONE),2012000144,10571.57,
Department of Health,Salisbury NHS Foundation Trust,03-May-11,DI & RADIO - RADIOLOGY EQUIPMENT,Clinical Support and Family Services,NHS SUPPLY CHAIN (MAIDSTONE),2012000144,14424.79,
Department of Health,Salisbury NHS Foundation Trust,03-May-11,DI & RADIO - RADIOLOGY EQUIPMENT,Medicine,NHS SUPPLY CHAIN (MAIDSTONE),2012000144,15080.76,
Department of Health,Salisbury NHS Foundation Trust,03-May-11,BLDGS ENGINEERING INSTALL,Capital Projects,BAS,I033503,24000,
Department of Health,Salisbury NHS Foundation Trust,03-May-11,DRUGS,Clinical Support and Family Services,ROCHE PRODUCTS LTD,1321365237,29103.5,
Department of Health,Salisbury NHS Foundation Trust,03-May-11,DRUGS,Clinical Support and Family Services,NOVARTIS PHARMACEUTICALS UK LTD,90845449,32261.4,
Department of Health,Salisbury NHS Foundation Trust,03-May-11,DRUGS,Clinical Support and Family Services,NOVARTIS PHARMACEUTICALS UK LTD,90840172,40393.22,
Department of Health,Salisbury NHS Foundation Trust,05-May-11,DRUGS,Clinical Support and Family Services,ROCHE PRODUCTS LTD,1321368173,6516.64,
Department of Health,Salisbury NHS Foundation Trust,05-May-11,LAB REAGENTS-BUFFERS COMPUND SOLNS,Clinical Support and Family Services,OXFORD GENE TECHNOLOGY,SIN001350,6767.04,
Department of Health,Salisbury NHS Foundation Trust,05-May-11,OTH ENGINEERING PLANT&EQUIP,Capital Projects,GARDNER ENERGY MANAGEMENT LTD,7200,17191.93,
Department of Health,Salisbury NHS Foundation Trust,05-May-11,DRUGS,Clinical Support and Family Services,ROCHE PRODUCTS LTD,1321368173,32583.2,
Department of Health,Salisbury NHS Foundation Trust,05-May-11,LAB REAGENTS-BUFFERS COMPUND SOLNS,Clinical Support and Family Services,OXFORD GENE TECHNOLOGY,SIN001350,33835.2,
Department of Health,Salisbury NHS Foundation Trust,05-May-11,HEALTHCARE - NHS TRUSTS,Corporate Directorate,CARE QUALITY COMMISSION,20072,70000,
Department of Health,Salisbury NHS Foundation Trust,05-May-11,OTH ENGINEERING PLANT&EQUIP,Capital Projects,GARDNER ENERGY MANAGEMENT LTD,7200,85959.65,
Department of Health,Salisbury NHS Foundation Trust,05-May-11,ENERGY WATER - GAS MAINS,Facilities Directorate,TOTAL GAS AND POWER LTD,66367174/11,90423.25,
Department of Health,Salisbury NHS Foundation Trust,05-May-11,MEDICAL EQUIPMENT 10 YEARS,Capital Projects,SIEMENS HEALTHCARE LIMITED,1020109829,135739,
Department of Health,Salisbury NHS Foundation Trust,13-May-11,TOILETRIES PERSONAL HYGIENE PRODUCTS,Clinical Support and Family Services,NHS LOGISTICS,1012007930,0.01,
Department of Health,Salisbury NHS Foundation Trust,13-May-11,DRESSINGS - PRE STERILE,Critical care,NHS LOGISTICS,1012007930,0.02,
Department of Health,Salisbury NHS Foundation Trust,13-May-11,DRESSINGS - PRE STERILE,Medicine,NHS LOGISTICS,1012007930,0.04,
Department of Health,Salisbury NHS Foundation Trust,13-May-11,STATIONERY SUNDRIES,Surgery,NHS LOGISTICS,1012007930,0.04,
Department of Health,Salisbury NHS Foundation Trust,13-May-11,STATIONERY SUNDRIES,Surgery,NHS LOGISTICS,1012007930,0.04,
Department of Health,Salisbury NHS Foundation Trust,13-May-11,DRESSINGS  -  PROCEDURE PACKS,Clinical Support and Family Services,NHS LOGISTICS,1012007930,0.05,
Department of Health,Salisbury NHS Foundation Trust,13-May-11,TISSUES HAND TOWELS & TOILET PAPER,Medicine,NHS LOGISTICS,1012007930,0.06,
Department of Health,Salisbury NHS Foundation Trust,13-May-11,TISSUES HAND TOWELS & TOILET PAPER,Medicine,NHS LOGISTICS,1012007930,0.06,
Department of Health,Salisbury NHS Foundation Trust,13-May-11,SURGICAL INSTRUMENTS: DISPOSABLE,Surgery,NHS LOGISTICS,1012007930,0.06,
Department of Health,Salisbury NHS Foundation Trust,13-May-11,DRESSINGS  -  PROCEDURE PACKS,Surgery,NHS LOGISTICS,1012011882,0.06,
Department of Health,Salisbury NHS Foundation Trust,13-May-11,PAPER ITEMS GENERAL STATIONERY SUNDRIES,Medicine,NHS LOGISTICS,1012007930,0.07,
Department of Health,Salisbury NHS Foundation Trust,13-May-11,DRESSINGS  -  PROCEDURE PACKS,Surgery,NHS LOGISTICS,1012007930,0.07,
Department of Health,Salisbury NHS Foundation Trust,13-May-11,PAPER ITEMS GENERAL STATIONERY SUNDRIES,Facilities Directorate,NHS LOGISTICS,1012007930,0.07,
Department of Health,Salisbury NHS Foundation Trust,13-May-11,DRESSINGS - PRE STERILE,Medicine,NHS LOGISTICS,1012007930,0.08,
Department of Health,Salisbury NHS Foundation Trust,13-May-11,SURGICAL INSTRUMENTS: GENERAL,Critical care,NHS LOGISTICS,1012007930,0.08,
Department of Health,Salisbury NHS Foundation Trust,13-May-11,DRESSINGS - PRE STERILE,Surgery,NHS LOGISTICS,1012007930,0.09,
Department of Health,Salisbury NHS Foundation Trust,13-May-11,OFFICE EQUIP MACHINERY  -  OTHER,Directorate of Finance and Procurement,NHS LOGISTICS,1012007930,0.09,
Department of Health,Salisbury NHS Foundation Trust,13-May-11,STATIONERY SUNDRIES,Human Resources,NHS LOGISTICS,1012007930,0.09,
Department of Health,Salisbury NHS Foundation Trust,13-May-11,STATIONERY SUNDRIES,Clinical Support and Family Services,NHS LOGISTICS,1012007930,0.09,
Department of Health,Salisbury NHS Foundation Trust,13-May-11,DRESSINGS - PRE STERILE,Medicine,NHS LOGISTICS,1012007930,0.09,
Department of Health,Salisbury NHS Foundation Trust,13-May-11,DRESSINGS - PRE STERILE,Clinical Support and Family Services,NHS LOGISTICS,1012007930,0.1,
Department of Health,Salisbury NHS Foundation Trust,13-May-11,STATIONERY SUNDRIES,Surgery,NHS LOGISTICS,1012007930,0.1,
Department of Health,Salisbury NHS Foundation Trust,13-May-11,STATIONERY SUNDRIES,Medicine,NHS LOGISTICS,1012007930,0.1,
Department of Health,Salisbury NHS Foundation Trust,13-May-11,STATIONERY SUNDRIES,Medicine,NHS LOGISTICS,1012007930,0.1,
Department of Health,Salisbury NHS Foundation Trust,13-May-11,STATIONERY SUNDRIES,Corporate Directorate,NHS LOGISTICS,1012007930,0.11,
Department of Health,Salisbury NHS Foundation Trust,13-May-11,PAPER ITEMS GENERAL STATIONERY SUNDRIES,Clinical Effctiveness Directorate,NHS LOGISTICS,1012007930,0.11,
Department of Health,Salisbury NHS Foundation Trust,13-May-11,DRESSINGS  -  PROCEDURE PACKS,Medicine,NHS LOGISTICS,1012007930,0.11,
Department of Health,Salisbury NHS Foundation Trust,13-May-11,DRESSINGS  -  PROCEDURE PACKS,Medicine,NHS LOGISTICS,1012007930,0.11,
Department of Health,Salisbury NHS Foundation Trust,13-May-11,PAPER ITEMS GENERAL STATIONERY SUNDRIES,Clinical Support and Family Services,NHS LOGISTICS,1012007930,0.12,
Department of Health,Salisbury NHS Foundation Trust,13-May-11,DRESSINGS  -  PROCEDURE PACKS,Medicine,NHS LOGISTICS,1012007930,0.12,
Department of Health,Salisbury NHS Foundation Trust,13-May-11,DRESSINGS  -  PROCEDURE PACKS,Medicine,NHS LOGISTICS,1012007930,0.12,
Department of Health,Salisbury NHS Foundation Trust,13-May-11,DRESSINGS  -  PROCEDURE PACKS,Clinical Support and Family Services,NHS LOGISTICS,1012007930,0.12,
Department of Health,Salisbury NHS Foundation Trust,13-May-11,MEDSURGCONS - OTHER,Medicine,NHS LOGISTICS,1012007930,0.12,
Department of Health,Salisbury NHS Foundation Trust,13-May-11,MEDSURGCONS - OTHER,Medicine,NHS LOGISTICS,1012007930,0.12,
Department of Health,Salisbury NHS Foundation Trust,13-May-11,MEDSURGCONS - OTHER,Medicine,NHS LOGISTICS,1012007930,0.12,
Department of Health,Salisbury NHS Foundation Trust,13-May-11,MEDSURGCONS - OTHER,Medicine,NHS LOGISTICS,1012007930,0.12,
Department of Health,Salisbury NHS Foundation Trust,13-May-11,SURGICAL INSTRUMENTS: GENERAL,Surgery,NHS LOGISTICS,1012007930,0.12,
Department of Health,Salisbury NHS Foundation Trust,13-May-11,STATIONERY SUNDRIES,Medicine,NHS LOGISTICS,1012007930,0.13,
Department of Health,Salisbury NHS Foundation Trust,13-May-11,DRESSINGS  -  PROCEDURE PACKS,Clinical Support and Family Services,NHS LOGISTICS,1012007930,0.13,
Department of Health,Salisbury NHS Foundation Trust,13-May-11,TISSUES HAND TOWELS & TOILET PAPER,Surgery,NHS LOGISTICS,1012007930,0.13,
Department of Health,Salisbury NHS Foundation Trust,13-May-11,DRESSINGS - PRE STERILE,Clinical Support and Family Services,NHS LOGISTICS,1012007930,0.13,
Department of Health,Salisbury NHS Foundation Trust,13-May-11,DRESSINGS  -  PROCEDURE PACKS,Clinical Support and Family Services,NHS LOGISTICS,1012007930,0.13,
Department of Health,Salisbury NHS Foundation Trust,13-May-11,DRESSINGS - PRE STERILE,Surgery,NHS LOGISTICS,1012007930,0.13,
Department of Health,Salisbury NHS Foundation Trust,13-May-11,DRESSINGS  -  PROCEDURE PACKS,Medicine,NHS LOGISTICS,1012007930,0.13,
Department of Health,Salisbury NHS Foundation Trust,13-May-11,TISSUES HAND TOWELS & TOILET PAPER,Critical care,NHS LOGISTICS,1012007930,0.13,
Department of Health,Salisbury NHS Foundation Trust,13-May-11,DRESSINGS  -  PROCEDURE PACKS,Medicine,NHS LOGISTICS,1012007930,0.13,
Department of Health,Salisbury NHS Foundation Trust,13-May-11,MEDSURGCONS - OTHER,Medicine,NHS LOGISTICS,1012007930,0.13,
Department of Health,Salisbury NHS Foundation Trust,13-May-11,STATIONERY SUNDRIES,Facilities Directorate,NHS LOGISTICS,1012011882,0.13,
Department of Health,Salisbury NHS Foundation Trust,13-May-11,DRESSINGS  -  PROCEDURE PACKS,Medicine,NHS LOGISTICS,1012007930,0.14,
Department of Health,Salisbury NHS Foundation Trust,13-May-11,STATIONERY SUNDRIES,Medicine,NHS LOGISTICS,1012007930,0.14,
Department of Health,Salisbury NHS Foundation Trust,13-May-11,DRESSINGS  -  PROCEDURE PACKS,Clinical Support and Family Services,NHS LOGISTICS,1012007930,0.15,
Department of Health,Salisbury NHS Foundation Trust,13-May-11,M & S EQUIPELECTEQUIPINST - OTHER,Medicine,NHS LOGISTICS,1012007930,0.15,
Department of Health,Salisbury NHS Foundation Trust,13-May-11,SURGICAL INSTRUMENTS: GENERAL,Medicine,NHS LOGISTICS,1012007930,0.15,
Department of Health,Salisbury NHS Foundation Trust,13-May-11,STATIONERY SUNDRIES,Clinical Support and Family Services,NHS LOGISTICS,1012011882,0.15,
Department of Health,Salisbury NHS Foundation Trust,13-May-11,STATIONERY SUNDRIES,Medicine,NHS LOGISTICS,1012007930,0.16,
Department of Health,Salisbury NHS Foundation Trust,13-May-11,PAPER ITEMS GENERAL STATIONERY SUNDRIES,Human Resources,NHS LOGISTICS,1012007930,0.16,
Department of Health,Salisbury NHS Foundation Trust,13-May-11,DRESSINGS  -  PROCEDURE PACKS,Medicine,NHS LOGISTICS,1012007930,0.16,
Department of Health,Salisbury NHS Foundation Trust,13-May-11,DRESSINGS  -  PROCEDURE PACKS,Medicine,NHS LOGISTICS,1012007930,0.16,
Department of Health,Salisbury NHS Foundation Trust,13-May-11,DRESSINGS - PRE STERILE,Clinical Support and Family Services,NHS LOGISTICS,1012007930,0.16,
Department of Health,Salisbury NHS Foundation Trust,13-May-11,DRESSINGS  -  PROCEDURE PACKS,Medicine,NHS LOGISTICS,1012007930,0.16,
Department of Health,Salisbury NHS Foundation Trust,13-May-11,DRESSINGS  -  PROCEDURE PACKS,Critical care,NHS LOGISTICS,1012007930,0.16,
Department of Health,Salisbury NHS Foundation Trust,13-May-11,DRESSINGS  -  PROCEDURE PACKS,Medicine,NHS LOGISTICS,1012007930,0.16,
Department of Health,Salisbury NHS Foundation Trust,13-May-11,DRESSINGS  -  PROCEDURE PACKS,Medicine,NHS LOGISTICS,1012007930,0.16,
Department of Health,Salisbury NHS Foundation Trust,13-May-11,TISSUES HAND TOWELS & TOILET PAPER,Clinical Support and Family Services,NHS LOGISTICS,1012007930,0.17,
Department of Health,Salisbury NHS Foundation Trust,13-May-11,DRESSINGS - PRE STERILE,Surgery,NHS LOGISTICS,1012007930,0.17,
Department of Health,Salisbury NHS Foundation Trust,13-May-11,DRESSINGS - PRE STERILE,Medicine,NHS LOGISTICS,1012007930,0.17,
Department of Health,Salisbury NHS Foundation Trust,13-May-11,OTHER MEDICAL SUPPLIES,Critical care,NHS LOGISTICS,1012007930,0.17,
Department of Health,Salisbury NHS Foundation Trust,13-May-11,DRESSINGS - PRE STERILE,Medicine,NHS LOGISTICS,1012007930,0.17,
Department of Health,Salisbury NHS Foundation Trust,13-May-11,STATIONERY SUNDRIES,Surgery,NHS LOGISTICS,1012007930,0.18,
Department of Health,Salisbury NHS Foundation Trust,13-May-11,STATIONERY SUNDRIES,Clinical Support and Family Services,NHS LOGISTICS,1012007930,0.18,
Department of Health,Salisbury NHS Foundation Trust,13-May-11,OTHER MEDICAL SUPPLIES,Medicine,NHS LOGISTICS,1012007930,0.18,
Department of Health,Salisbury NHS Foundation Trust,13-May-11,DRESSINGS  -  PROCEDURE PACKS,Medicine,NHS LOGISTICS,1012007930,0.18,
Department of Health,Salisbury NHS Foundation Trust,13-May-11,DRESSINGS  -  PROCEDURE PACKS,Surgery,NHS LOGISTICS,1012007930,0.18,
Department of Health,Salisbury NHS Foundation Trust,13-May-11,OTHER MEDICAL SUPPLIES,Medicine,NHS LOGISTICS,1012007930,0.18,
Department of Health,Salisbury NHS Foundation Trust,13-May-11,STATIONERY SUNDRIES,Facilities Directorate,NHS LOGISTICS,1012007930,0.18,
Department of Health,Salisbury NHS Foundation Trust,13-May-11,STATIONERY SUNDRIES,Medicine,NHS LOGISTICS,1012007930,0.19,
Department of Health,Salisbury NHS Foundation Trust,13-May-11,DISPOSABLE THEATRE DRAPES WIPES,Clinical Support and Family Services,NHS LOGISTICS,1012007930,0.19,
Department of Health,Salisbury NHS Foundation Trust,13-May-11,TISSUES HAND TOWELS & TOILET PAPER,Medicine,NHS LOGISTICS,1012007930,0.19,
Department of Health,Salisbury NHS Foundation Trust,13-May-11,TISSUES HAND TOWELS & TOILET PAPER,Surgery,NHS LOGISTICS,1012007930,0.19,
Department of Health,Salisbury NHS Foundation Trust,13-May-11,DRESSINGS - PRE STERILE,Clinical Support and Family Services,NHS LOGISTICS,1012007930,0.2,
Department of Health,Salisbury NHS Foundation Trust,13-May-11,MEDSURGCONS - OTHER,Medicine,NHS LOGISTICS,1012007930,0.2,
Department of Health,Salisbury NHS Foundation Trust,13-May-11,MEDSURGCONS - OTHER,Medicine,NHS LOGISTICS,1012007930,0.2,
Department of Health,Salisbury NHS Foundation Trust,13-May-11,MEDSURGCONS - OTHER,Medicine,NHS LOGISTICS,1012007930,0.2,
Department of Health,Salisbury NHS Foundation Trust,13-May-11,DRESSINGS  -  PROCEDURE PACKS,Clinical Support and Family Services,NHS LOGISTICS,1012007930,0.2,
Department of Health,Salisbury NHS Foundation Trust,13-May-11,DRESSINGS - PRE STERILE,Critical care,NHS LOGISTICS,1012007930,0.2,
Department of Health,Salisbury NHS Foundation Trust,13-May-11,SURGICAL INSTRUMENTS: GENERAL,Critical care,NHS LOGISTICS,1012007930,0.2,
Department of Health,Salisbury NHS Foundation Trust,13-May-11,COOKING & KITCHEN UTENSILS,Critical care,NHS LOGISTICS,1012007930,0.2,
Department of Health,Salisbury NHS Foundation Trust,13-May-11,COOKING & KITCHEN UTENSILS,Medicine,NHS LOGISTICS,1012007930,0.2,
Department of Health,Salisbury NHS Foundation Trust,13-May-11,MEDSURGCONS - OTHER,Medicine,NHS LOGISTICS,1012007930,0.2,
Department of Health,Salisbury NHS Foundation Trust,13-May-11,PAPER ITEMS GENERAL STATIONERY SUNDRIES,Critical care,NHS LOGISTICS,1012007930,0.21,
Department of Health,Salisbury NHS Foundation Trust,13-May-11,STATIONERY SUNDRIES,Medicine,NHS LOGISTICS,1012007930,0.21,
Department of Health,Salisbury NHS Foundation Trust,13-May-11,TISSUES HAND TOWELS & TOILET PAPER,Critical care,NHS LOGISTICS,1012007930,0.21,
Department of Health,Salisbury NHS Foundation Trust,13-May-11,OTHER MEDICAL SUPPLIES,Surgery,NHS LOGISTICS,1012007930,0.21,
Department of Health,Salisbury NHS Foundation Trust,13-May-11,TISSUES HAND TOWELS & TOILET PAPER,Critical care,NHS LOGISTICS,1012007930,0.21,
Department of Health,Salisbury NHS Foundation Trust,13-May-11,DRESSINGS  -  PROCEDURE PACKS,Surgery,NHS LOGISTICS,1012007930,0.21,
Department of Health,Salisbury NHS Foundation Trust,13-May-11,TISSUES HAND TOWELS & TOILET PAPER,Surgery,NHS LOGISTICS,1012007930,0.21,
Department of Health,Salisbury NHS Foundation Trust,13-May-11,STATIONERY SUNDRIES,Surgery,NHS LOGISTICS,1012007930,0.22,
Department of Health,Salisbury NHS Foundation Trust,13-May-11,DRESSINGS - PRE STERILE,Clinical Support and Family Services,NHS LOGISTICS,1012007930,0.22,
Department of Health,Salisbury NHS Foundation Trust,13-May-11,STATIONERY SUNDRIES,Clinical Support and Family Services,NHS LOGISTICS,1012007930,0.22,
Department of Health,Salisbury NHS Foundation Trust,13-May-11,STATIONERY SUNDRIES,Surgery,NHS LOGISTICS,1012007930,0.22,
Department of Health,Salisbury NHS Foundation Trust,13-May-11,PAPER ITEMS GENERAL STATIONERY SUNDRIES,Clinical Effctiveness Directorate,NHS LOGISTICS,1012007930,0.22,
Department of Health,Salisbury NHS Foundation Trust,13-May-11,DRESSINGS - PRE STERILE,Medicine,NHS LOGISTICS,1012007930,0.22,
Department of Health,Salisbury NHS Foundation Trust,13-May-11,DRESSINGS - PRE STERILE,Clinical Support and Family Services,NHS LOGISTICS,1012007930,0.22,
Department of Health,Salisbury NHS Foundation Trust,13-May-11,DRESSINGS - PRE STERILE,Medicine,NHS LOGISTICS,1012007930,0.22,
Department of Health,Salisbury NHS Foundation Trust,13-May-11,TISSUES HAND TOWELS & TOILET PAPER,Critical care,NHS LOGISTICS,1012007930,0.22,
Department of Health,Salisbury NHS Foundation Trust,13-May-11,DRESSINGS - PRE STERILE,Medicine,NHS LOGISTICS,1012007930,0.22,
Department of Health,Salisbury NHS Foundation Trust,13-May-11,DRESSINGS - PRE STERILE,Surgery,NHS LOGISTICS,1012007930,0.22,
Department of Health,Salisbury NHS Foundation Trust,13-May-11,DRESSINGS - PRE STERILE,Medicine,NHS LOGISTICS,1012007930,0.22,
Department of Health,Salisbury NHS Foundation Trust,13-May-11,DRESSINGS - PRE STERILE,Medicine,NHS LOGISTICS,1012007930,0.22,
Department of Health,Salisbury NHS Foundation Trust,13-May-11,DRESSINGS - PRE STERILE,Surgery,NHS LOGISTICS,1012007930,0.22,
Department of Health,Salisbury NHS Foundation Trust,13-May-11,DRESSINGS - PRE STERILE,Critical care,NHS LOGISTICS,1012007930,0.22,
Department of Health,Salisbury NHS Foundation Trust,13-May-11,DRESSINGS - PRE STERILE,Surgery,NHS LOGISTICS,1012007930,0.22,
Department of Health,Salisbury NHS Foundation Trust,13-May-11,STATIONERY SUNDRIES,Medicine,NHS LOGISTICS,1012007930,0.23,
Department of Health,Salisbury NHS Foundation Trust,13-May-11,STATIONERY SUNDRIES,Medicine,NHS LOGISTICS,1012007930,0.23,
Department of Health,Salisbury NHS Foundation Trust,13-May-11,STATIONERY SUNDRIES,Corporate Directorate,NHS LOGISTICS,1012007930,0.23,
Department of Health,Salisbury NHS Foundation Trust,13-May-11,ANAESTHETIC EQUIPMENT ACCESSORIES,Medicine,NHS LOGISTICS,1012007930,0.23,
Department of Health,Salisbury NHS Foundation Trust,13-May-11,TUBES,Clinical Support and Family Services,NHS LOGISTICS,1012007930,0.23,
Department of Health,Salisbury NHS Foundation Trust,13-May-11,DRESSINGS  -  PROCEDURE PACKS,Surgery,NHS LOGISTICS,1012007930,0.23,
Department of Health,Salisbury NHS Foundation Trust,13-May-11,STATIONERY SUNDRIES,Clinical Support and Family Services,NHS LOGISTICS,1012007930,0.24,
Department of Health,Salisbury NHS Foundation Trust,13-May-11,STATIONERY SUNDRIES,Medicine,NHS LOGISTICS,1012007930,0.24,
Department of Health,Salisbury NHS Foundation Trust,13-May-11,PAPER ITEMS GENERAL STATIONERY SUNDRIES,Corporate Directorate,NHS LOGISTICS,1012007930,0.24,
Department of Health,Salisbury NHS Foundation Trust,13-May-11,STATIONERY SUNDRIES,Medicine,NHS LOGISTICS,1012007930,0.25,
Department of Health,Salisbury NHS Foundation Trust,13-May-11,TISSUES HAND TOWELS & TOILET PAPER,Medicine,NHS LOGISTICS,1012007930,0.25,
Department of Health,Salisbury NHS Foundation Trust,13-May-11,MEDSURGCONS - OTHER,Clinical Support and Family Services,NHS LOGISTICS,1012007930,0.25,
Department of Health,Salisbury NHS Foundation Trust,13-May-11,TISSUES HAND TOWELS & TOILET PAPER,Clinical Support and Family Services,NHS LOGISTICS,1012007930,0.25,
Department of Health,Salisbury NHS Foundation Trust,13-May-11,DRESSINGS - PRE STERILE,Surgery,NHS LOGISTICS,1012007930,0.25,
Department of Health,Salisbury NHS Foundation Trust,13-May-11,TUBES,Medicine,NHS LOGISTICS,1012007930,0.25,
Department of Health,Salisbury NHS Foundation Trust,13-May-11,TISSUES HAND TOWELS & TOILET PAPER,Medicine,NHS LOGISTICS,1012007930,0.25,
Department of Health,Salisbury NHS Foundation Trust,13-May-11,SURGICAL INSTRUMENTS: GENERAL,Surgery,NHS LOGISTICS,1012007930,0.25,
Department of Health,Salisbury NHS Foundation Trust,13-May-11,MEDSURGCONS - OTHER,Critical care,NHS LOGISTICS,1012007930,0.25,
Department of Health,Salisbury NHS Foundation Trust,13-May-11,TISSUES HAND TOWELS & TOILET PAPER,Medicine,NHS LOGISTICS,1012007930,0.25,
Department of Health,Salisbury NHS Foundation Trust,13-May-11,HEALTHCARE - WEAR,Surgery,NHS LOGISTICS,1012007930,0.25,
Department of Health,Salisbury NHS Foundation Trust,13-May-11,TISSUES HAND TOWELS & TOILET PAPER,Medicine,NHS LOGISTICS,1012007930,0.25,
Department of Health,Salisbury NHS Foundation Trust,13-May-11,TISSUES HAND TOWELS & TOILET PAPER,Medicine,NHS LOGISTICS,1012007930,0.25,
Department of Health,Salisbury NHS Foundation Trust,13-May-11,TISSUES HAND TOWELS & TOILET PAPER,Medicine,NHS LOGISTICS,1012007930,0.25,
Department of Health,Salisbury NHS Foundation Trust,13-May-11,TUBES,Medicine,NHS LOGISTICS,1012007930,0.25,
Department of Health,Salisbury NHS Foundation Trust,13-May-11,SURGICAL INSTRUMENTS: GENERAL,Medicine,NHS LOGISTICS,1012007930,0.25,
Department of Health,Salisbury NHS Foundation Trust,13-May-11,DRUGS,Critical care,NHS LOGISTICS,1012007930,0.26,
Department of Health,Salisbury NHS Foundation Trust,13-May-11,TOILETRIES PERSONAL HYGIENE PRODUCTS,Medicine,NHS LOGISTICS,1012007930,0.26,
Department of Health,Salisbury NHS Foundation Trust,13-May-11,MEDSURGCONS - OTHER,Medicine,NHS LOGISTICS,1012007930,0.26,
Department of Health,Salisbury NHS Foundation Trust,13-May-11,DRESSINGS  -  PROCEDURE PACKS,Clinical Support and Family Services,NHS LOGISTICS,1012007930,0.27,
Department of Health,Salisbury NHS Foundation Trust,13-May-11,DRESSINGS - PRE STERILE,Facilities Directorate,NHS LOGISTICS,1012007930,0.27,
Department of Health,Salisbury NHS Foundation Trust,13-May-11,STATIONERY SUNDRIES,Medicine,NHS LOGISTICS,1012007930,0.27,
Department of Health,Salisbury NHS Foundation Trust,13-May-11,STATIONERY SUNDRIES,Clinical Support and Family Services,NHS LOGISTICS,1012007930,0.27,
Department of Health,Salisbury NHS Foundation Trust,13-May-11,DRESSINGS  -  PROCEDURE PACKS,Medicine,NHS LOGISTICS,1012007930,0.27,
Department of Health,Salisbury NHS Foundation Trust,13-May-11,DRESSINGS  -  PROCEDURE PACKS,Medicine,NHS LOGISTICS,1012007930,0.27,
Department of Health,Salisbury NHS Foundation Trust,13-May-11,MEDSURGCONS - OTHER,Medicine,NHS LOGISTICS,1012007930,0.27,
Department of Health,Salisbury NHS Foundation Trust,13-May-11,DRESSINGS  -  PROCEDURE PACKS,Surgery,NHS LOGISTICS,1012007930,0.27,
Department of Health,Salisbury NHS Foundation Trust,13-May-11,DRESSINGS  -  PROCEDURE PACKS,Surgery,NHS LOGISTICS,1012007930,0.27,
Department of Health,Salisbury NHS Foundation Trust,13-May-11,DRESSINGS  -  PROCEDURE PACKS,Critical care,NHS LOGISTICS,1012007930,0.27,
Department of Health,Salisbury NHS Foundation Trust,13-May-11,DRESSINGS  -  PROCEDURE PACKS,Clinical Support and Family Services,NHS LOGISTICS,1012007930,0.27,
Department of Health,Salisbury NHS Foundation Trust,13-May-11,DRESSINGS  -  PROCEDURE PACKS,Critical care,NHS LOGISTICS,1012007930,0.27,
Department of Health,Salisbury NHS Foundation Trust,13-May-11,DRESSINGS  -  PROCEDURE PACKS,Critical care,NHS LOGISTICS,1012007930,0.27,
Department of Health,Salisbury NHS Foundation Trust,13-May-11,DRESSINGS  -  PROCEDURE PACKS,Medicine,NHS LOGISTICS,1012007930,0.27,
Department of Health,Salisbury NHS Foundation Trust,13-May-11,DRESSINGS  -  PROCEDURE PACKS,Critical care,NHS LOGISTICS,1012007930,0.27,
Department of Health,Salisbury NHS Foundation Trust,13-May-11,DRESSINGS  -  PROCEDURE PACKS,Surgery,NHS LOGISTICS,1012011882,0.27,
Department of Health,Salisbury NHS Foundation Trust,13-May-11,TOILETRIES PERSONAL HYGIENE PRODUCTS,Clinical Support and Family Services,NHS LOGISTICS,1012007930,0.28,
Department of Health,Salisbury NHS Foundation Trust,13-May-11,STATIONERY SUNDRIES,Medicine,NHS LOGISTICS,1012007930,0.28,
Department of Health,Salisbury NHS Foundation Trust,13-May-11,CLEANING MATERIALS PRODUCTS SUNDRIES,Medicine,NHS LOGISTICS,1012007930,0.28,
Department of Health,Salisbury NHS Foundation Trust,13-May-11,SURGICAL INSTRUMENTS: DISPOSABLE,Surgery,NHS LOGISTICS,1012007930,0.29,
Department of Health,Salisbury NHS Foundation Trust,13-May-11,OTHER MEDICAL SUPPLIES,Medicine,NHS LOGISTICS,1012007930,0.29,
Department of Health,Salisbury NHS Foundation Trust,13-May-11,OTHER MEDICAL SUPPLIES,Clinical Support and Family Services,NHS LOGISTICS,1012007930,0.29,
Department of Health,Salisbury NHS Foundation Trust,13-May-11,OTHER MEDICAL SUPPLIES,Medicine,NHS LOGISTICS,1012007930,0.29,
Department of Health,Salisbury NHS Foundation Trust,13-May-11,OTHER MEDICAL SUPPLIES,Clinical Support and Family Services,NHS LOGISTICS,1012007930,0.29,
Department of Health,Salisbury NHS Foundation Trust,13-May-11,OTHER MEDICAL SUPPLIES,Critical care,NHS LOGISTICS,1012007930,0.29,
Department of Health,Salisbury NHS Foundation Trust,13-May-11,TISSUES HAND TOWELS & TOILET PAPER,Surgery,NHS LOGISTICS,1012007930,0.29,
Department of Health,Salisbury NHS Foundation Trust,13-May-11,OTHER MEDICAL SUPPLIES,Medicine,NHS LOGISTICS,1012007930,0.29,
Department of Health,Salisbury NHS Foundation Trust,13-May-11,TISSUES HAND TOWELS & TOILET PAPER,Critical care,NHS LOGISTICS,1012007930,0.29,
Department of Health,Salisbury NHS Foundation Trust,13-May-11,OTHER MEDICAL SUPPLIES,Medicine,NHS LOGISTICS,1012007930,0.29,
Department of Health,Salisbury NHS Foundation Trust,13-May-11,OTHER MEDICAL SUPPLIES,Critical care,NHS LOGISTICS,1012007930,0.29,
Department of Health,Salisbury NHS Foundation Trust,13-May-11,OTHER MEDICAL SUPPLIES,Critical care,NHS LOGISTICS,1012007930,0.29,
Department of Health,Salisbury NHS Foundation Trust,13-May-11,OTHER MEDICAL SUPPLIES,Medicine,NHS LOGISTICS,1012007930,0.29,
Department of Health,Salisbury NHS Foundation Trust,13-May-11,DRESSINGS  -  PROCEDURE PACKS,Medicine,NHS LOGISTICS,1012007930,0.29,
Department of Health,Salisbury NHS Foundation Trust,13-May-11,OTHER MEDICAL SUPPLIES,Surgery,NHS LOGISTICS,1012007930,0.29,
Department of Health,Salisbury NHS Foundation Trust,13-May-11,OTHER MEDICAL SUPPLIES,Surgery,NHS LOGISTICS,1012007930,0.29,
Department of Health,Salisbury NHS Foundation Trust,13-May-11,OTHER MEDICAL SUPPLIES,Surgery,NHS LOGISTICS,1012007930,0.29,
Department of Health,Salisbury NHS Foundation Trust,13-May-11,DRESSINGS  -  PROCEDURE PACKS,Critical care,NHS LOGISTICS,1012007930,0.29,
Department of Health,Salisbury NHS Foundation Trust,13-May-11,DRESSINGS  -  PROCEDURE PACKS,Surgery,NHS LOGISTICS,1012007930,0.29,
Department of Health,Salisbury NHS Foundation Trust,13-May-11,TUBES,Medicine,NHS LOGISTICS,1012007930,0.3,
Department of Health,Salisbury NHS Foundation Trust,13-May-11,DRESSINGS - PRE STERILE,Medicine,NHS LOGISTICS,1012007930,0.3,
Department of Health,Salisbury NHS Foundation Trust,13-May-11,DRESSINGS - PRE STERILE,Medicine,NHS LOGISTICS,1012007930,0.3,
Department of Health,Salisbury NHS Foundation Trust,13-May-11,M & S EQUIPELECTEQUIPINST - OTHER,Clinical Support and Family Services,NHS LOGISTICS,1012007930,0.3,
Department of Health,Salisbury NHS Foundation Trust,13-May-11,DRUGS,Clinical Support and Family Services,NHS LOGISTICS,1012007930,0.3,
Department of Health,Salisbury NHS Foundation Trust,13-May-11,SURGICAL INSTRUMENTS: GENERAL,Surgery,NHS LOGISTICS,1012007930,0.3,
Department of Health,Salisbury NHS Foundation Trust,13-May-11,DRESSINGS - PRE STERILE,Medicine,NHS LOGISTICS,1012007930,0.3,
Department of Health,Salisbury NHS Foundation Trust,13-May-11,DRUGS,Medicine,NHS LOGISTICS,1012007930,0.3,
Department of Health,Salisbury NHS Foundation Trust,13-May-11,DRESSINGS - PRE STERILE,Medicine,NHS LOGISTICS,1012007930,0.3,
Department of Health,Salisbury NHS Foundation Trust,13-May-11,DRESSINGS - PRE STERILE,Surgery,NHS LOGISTICS,1012007930,0.3,
Department of Health,Salisbury NHS Foundation Trust,13-May-11,ANAESTHETIC EQUIPMENT ACCESSORIES,Surgery,NHS LOGISTICS,1012007930,0.3,
Department of Health,Salisbury NHS Foundation Trust,13-May-11,DISPOSABLE TABLE LINEN,Medicine,NHS LOGISTICS,1012007930,0.3,
Department of Health,Salisbury NHS Foundation Trust,13-May-11,DRESSINGS - PRE STERILE,Medicine,NHS LOGISTICS,1012007930,0.3,
Department of Health,Salisbury NHS Foundation Trust,13-May-11,DRESSINGS - PRE STERILE,Clinical Support and Family Services,NHS LOGISTICS,1012007930,0.3,
Department of Health,Salisbury NHS Foundation Trust,13-May-11,DRESSINGS - PRE STERILE,Medicine,NHS LOGISTICS,1012007930,0.3,
Department of Health,Salisbury NHS Foundation Trust,13-May-11,PAPER ITEMS GENERAL STATIONERY SUNDRIES,Medicine,NHS LOGISTICS,1012007930,0.31,
Department of Health,Salisbury NHS Foundation Trust,13-May-11,MEDSURGCONS - OTHER,Medicine,NHS LOGISTICS,1012007930,0.31,
Department of Health,Salisbury NHS Foundation Trust,13-May-11,MEDSURGCONS - OTHER,Medicine,NHS LOGISTICS,1012007930,0.31,
Department of Health,Salisbury NHS Foundation Trust,13-May-11,HARD/SOFTWARE-COMPUTER ACCESSORIES  TEST EQUIPMENT,Clinical Support and Family Services,NHS LOGISTICS,1012007930,0.31,
Department of Health,Salisbury NHS Foundation Trust,13-May-11,MEDSURGCONS - OTHER,Medicine,NHS LOGISTICS,1012007930,0.31,
Department of Health,Salisbury NHS Foundation Trust,13-May-11,MEDSURGCONS - OTHER,Surgery,NHS LOGISTICS,1012007930,0.31,
Department of Health,Salisbury NHS Foundation Trust,13-May-11,STATIONERY SUNDRIES,Clinical Support and Family Services,NHS LOGISTICS,1012011882,0.31,
Department of Health,Salisbury NHS Foundation Trust,13-May-11,PAPER ITEMS GENERAL STATIONERY SUNDRIES,Clinical Support and Family Services,NHS LOGISTICS,1012007930,0.32,
Department of Health,Salisbury NHS Foundation Trust,13-May-11,TISSUES HAND TOWELS & TOILET PAPER,Medicine,NHS LOGISTICS,1012007930,0.32,
Department of Health,Salisbury NHS Foundation Trust,13-May-11,TISSUES HAND TOWELS & TOILET PAPER,Medicine,NHS LOGISTICS,1012007930,0.32,
Department of Health,Salisbury NHS Foundation Trust,13-May-11,STATIONERY SUNDRIES,Clinical Support and Family Services,NHS LOGISTICS,1012007930,0.32,
Department of Health,Salisbury NHS Foundation Trust,13-May-11,STATIONERY SUNDRIES,Medicine,NHS LOGISTICS,1012007930,0.32,
Department of Health,Salisbury NHS Foundation Trust,13-May-11,ELECTRICAL EQUIPMENT x,Surgery,NHS LOGISTICS,1012007930,0.32,
Department of Health,Salisbury NHS Foundation Trust,13-May-11,TISSUES HAND TOWELS & TOILET PAPER,Medicine,NHS LOGISTICS,1012011882,0.32,
Department of Health,Salisbury NHS Foundation Trust,13-May-11,TISSUES HAND TOWELS & TOILET PAPER,Surgery,NHS LOGISTICS,1012011882,0.32,
Department of Health,Salisbury NHS Foundation Trust,13-May-11,DRESSINGS  -  PROCEDURE PACKS,Surgery,NHS LOGISTICS,1012007930,0.33,
Department of Health,Salisbury NHS Foundation Trust,13-May-11,PAPER ITEMS GENERAL STATIONERY SUNDRIES,Facilities Directorate,NHS LOGISTICS,1012007930,0.33,
Department of Health,Salisbury NHS Foundation Trust,13-May-11,PAPER ITEMS GENERAL STATIONERY SUNDRIES,Human Resources,NHS LOGISTICS,1012007930,0.33,
Department of Health,Salisbury NHS Foundation Trust,13-May-11,PAPER ITEMS GENERAL STATIONERY SUNDRIES,Clinical Effctiveness Directorate,NHS LOGISTICS,1012007930,0.33,
Department of Health,Salisbury NHS Foundation Trust,13-May-11,STATIONERY SUNDRIES,Clinical Support and Family Services,NHS LOGISTICS,1012007930,0.33,
Department of Health,Salisbury NHS Foundation Trust,13-May-11,TISSUES HAND TOWELS & TOILET PAPER,Critical care,NHS LOGISTICS,1012007930,0.33,
Department of Health,Salisbury NHS Foundation Trust,13-May-11,DRUGS,Medicine,NHS LOGISTICS,1012007930,0.33,
Department of Health,Salisbury NHS Foundation Trust,13-May-11,SURGICAL INSTRUMENTS: GENERAL,Surgery,NHS LOGISTICS,1012007930,0.33,
Department of Health,Salisbury NHS Foundation Trust,13-May-11,DRESSINGS  -  PROCEDURE PACKS,Surgery,NHS LOGISTICS,1012011882,0.33,
Department of Health,Salisbury NHS Foundation Trust,13-May-11,STATIONERY SUNDRIES,Facilities Directorate,NHS LOGISTICS,1012011882,0.33,
Department of Health,Salisbury NHS Foundation Trust,13-May-11,PAPER ITEMS GENERAL STATIONERY SUNDRIES,Clinical Support and Family Services,NHS LOGISTICS,1012007930,0.34,
Department of Health,Salisbury NHS Foundation Trust,13-May-11,DRESSINGS - PRE STERILE,Surgery,NHS LOGISTICS,1012007930,0.34,
Department of Health,Salisbury NHS Foundation Trust,13-May-11,SURGICAL INSTRUMENTS: DISPOSABLE,Medicine,NHS LOGISTICS,1012007930,0.34,
Department of Health,Salisbury NHS Foundation Trust,13-May-11,SURGICAL INSTRUMENTS: GENERAL,Surgery,NHS LOGISTICS,1012007930,0.34,
Department of Health,Salisbury NHS Foundation Trust,13-May-11,PAPER ITEMS GENERAL STATIONERY SUNDRIES,Medicine,NHS LOGISTICS,1012007930,0.35,
Department of Health,Salisbury NHS Foundation Trust,13-May-11,DRESSINGS  -  PROCEDURE PACKS,Medicine,NHS LOGISTICS,1012007930,0.35,
Department of Health,Salisbury NHS Foundation Trust,13-May-11,SURGICAL INSTRUMENTS: GENERAL,Clinical Support and Family Services,NHS LOGISTICS,1012007930,0.35,
Department of Health,Salisbury NHS Foundation Trust,13-May-11,DRESSINGS  -  PROCEDURE PACKS,Surgery,NHS LOGISTICS,1012007930,0.35,
Department of Health,Salisbury NHS Foundation Trust,13-May-11,SURGICAL INSTRUMENTS: GENERAL,Surgery,NHS LOGISTICS,1012007930,0.35,
Department of Health,Salisbury NHS Foundation Trust,13-May-11,DRESSINGS  -  PROCEDURE PACKS,Surgery,NHS LOGISTICS,1012007930,0.35,
Department of Health,Salisbury NHS Foundation Trust,13-May-11,SURGICAL INSTRUMENTS: GENERAL,Medicine,NHS LOGISTICS,1012007930,0.35,
Department of Health,Salisbury NHS Foundation Trust,13-May-11,SURGICAL INSTRUMENTS: GENERAL,Medicine,NHS LOGISTICS,1012007930,0.35,
Department of Health,Salisbury NHS Foundation Trust,13-May-11,SURGICAL INSTRUMENTS: GENERAL,Medicine,NHS LOGISTICS,1012007930,0.35,
Department of Health,Salisbury NHS Foundation Trust,13-May-11,DRESSINGS  -  PROCEDURE PACKS,Surgery,NHS LOGISTICS,1012007930,0.35,
Department of Health,Salisbury NHS Foundation Trust,13-May-11,M & S EQUIPELECTEQUIPINST - OTHER,Surgery,NHS LOGISTICS,1012007930,0.35,
Department of Health,Salisbury NHS Foundation Trust,13-May-11,DRESSINGS  -  PROCEDURE PACKS,Medicine,NHS LOGISTICS,1012007930,0.35,
Department of Health,Salisbury NHS Foundation Trust,13-May-11,M & S EQUIPELECTEQUIPINST - OTHER,Medicine,NHS LOGISTICS,1012007930,0.35,
Department of Health,Salisbury NHS Foundation Trust,13-May-11,SURGICAL INSTRUMENTS: GENERAL,Critical care,NHS LOGISTICS,1012007930,0.35,
Department of Health,Salisbury NHS Foundation Trust,13-May-11,STATIONERY SUNDRIES,Clinical Support and Family Services,NHS LOGISTICS,1012011882,0.35,
Department of Health,Salisbury NHS Foundation Trust,13-May-11,PAPER ITEMS GENERAL STATIONERY SUNDRIES,Clinical Support and Family Services,NHS LOGISTICS,1012011882,0.35,
Department of Health,Salisbury NHS Foundation Trust,13-May-11,DRESSINGS - PRE STERILE,Medicine,NHS LOGISTICS,1012007930,0.36,
Department of Health,Salisbury NHS Foundation Trust,13-May-11,ANAESTHETIC EQUIPMENT ACCESSORIES,Medicine,NHS LOGISTICS,1012007930,0.36,
Department of Health,Salisbury NHS Foundation Trust,13-May-11,DRESSINGS  -  PROCEDURE PACKS,Medicine,NHS LOGISTICS,1012007930,0.36,
Department of Health,Salisbury NHS Foundation Trust,13-May-11,DRESSINGS - PRE STERILE,Clinical Support and Family Services,NHS LOGISTICS,1012007930,0.36,
Department of Health,Salisbury NHS Foundation Trust,13-May-11,DRESSINGS  -  PROCEDURE PACKS,Medicine,NHS LOGISTICS,1012007930,0.36,
Department of Health,Salisbury NHS Foundation Trust,13-May-11,DRESSINGS - PRE STERILE,Medicine,NHS LOGISTICS,1012007930,0.36,
Department of Health,Salisbury NHS Foundation Trust,13-May-11,DRESSINGS  -  PROCEDURE PACKS,Medicine,NHS LOGISTICS,1012007930,0.36,
Department of Health,Salisbury NHS Foundation Trust,13-May-11,DRESSINGS  -  PROCEDURE PACKS,Medicine,NHS LOGISTICS,1012007930,0.36,
Department of Health,Salisbury NHS Foundation Trust,13-May-11,DRESSINGS - PRE STERILE,Medicine,NHS LOGISTICS,1012007930,0.36,
Department of Health,Salisbury NHS Foundation Trust,13-May-11,M & S EQUIPELECTEQUIPINST - OTHER,Medicine,NHS LOGISTICS,1012007930,0.36,
Department of Health,Salisbury NHS Foundation Trust,13-May-11,M & S EQUIPELECTEQUIPINST - OTHER,Surgery,NHS LOGISTICS,1012007930,0.36,
Department of Health,Salisbury NHS Foundation Trust,13-May-11,DRESSINGS - PRE STERILE,Medicine,NHS LOGISTICS,1012007930,0.36,
Department of Health,Salisbury NHS Foundation Trust,13-May-11,M & S EQUIPELECTEQUIPINST - OTHER,Medicine,NHS LOGISTICS,1012007930,0.36,
Department of Health,Salisbury NHS Foundation Trust,13-May-11,OTHER MEDICAL SUPPLIES,Medicine,NHS LOGISTICS,1012007930,0.37,
Department of Health,Salisbury NHS Foundation Trust,13-May-11,MEDSURGCONS - OTHER,Medicine,NHS LOGISTICS,1012007930,0.37,
Department of Health,Salisbury NHS Foundation Trust,13-May-11,PATIENTS INCONTINENCE,Surgery,NHS LOGISTICS,1012007930,0.37,
Department of Health,Salisbury NHS Foundation Trust,13-May-11,OTHER MEDICAL SUPPLIES,Surgery,NHS LOGISTICS,1012007930,0.37,
Department of Health,Salisbury NHS Foundation Trust,13-May-11,MEDSURGCONS - OTHER,Clinical Support and Family Services,NHS LOGISTICS,1012007930,0.37,
Department of Health,Salisbury NHS Foundation Trust,13-May-11,SURGICAL INSTRUMENTS: GENERAL,Clinical Support and Family Services,NHS LOGISTICS,1012007930,0.37,
Department of Health,Salisbury NHS Foundation Trust,13-May-11,TOILETRIES PERSONAL HYGIENE PRODUCTS,Medicine,NHS LOGISTICS,1012007930,0.37,
Department of Health,Salisbury NHS Foundation Trust,13-May-11,OTHER MEDICAL SUPPLIES,Surgery,NHS LOGISTICS,1012007930,0.37,
Department of Health,Salisbury NHS Foundation Trust,13-May-11,SURGICAL INSTRUMENTS: GENERAL,Critical care,NHS LOGISTICS,1012007930,0.38,
Department of Health,Salisbury NHS Foundation Trust,13-May-11,TISSUES HAND TOWELS & TOILET PAPER,Medicine,NHS LOGISTICS,1012007930,0.38,
Department of Health,Salisbury NHS Foundation Trust,13-May-11,M & S EQUIPELECTEQUIPINST - OTHER,Medicine,NHS LOGISTICS,1012007930,0.38,
Department of Health,Salisbury NHS Foundation Trust,13-May-11,M & S EQUIPELECTEQUIPINST - OTHER,Medicine,NHS LOGISTICS,1012007930,0.38,
Department of Health,Salisbury NHS Foundation Trust,13-May-11,M & S EQUIPELECTEQUIPINST - OTHER,Medicine,NHS LOGISTICS,1012007930,0.38,
Department of Health,Salisbury NHS Foundation Trust,13-May-11,DRESSINGS - PRE STERILE,Medicine,NHS LOGISTICS,1012007930,0.39,
Department of Health,Salisbury NHS Foundation Trust,13-May-11,STATIONERY SUNDRIES,Clinical Support and Family Services,NHS LOGISTICS,1012007930,0.39,
Department of Health,Salisbury NHS Foundation Trust,13-May-11,STATIONERY SUNDRIES,Surgery,NHS LOGISTICS,1012007930,0.39,
Department of Health,Salisbury NHS Foundation Trust,13-May-11,STATIONERY SUNDRIES,Surgery,NHS LOGISTICS,1012007930,0.39,
Department of Health,Salisbury NHS Foundation Trust,13-May-11,STATIONERY SUNDRIES,Surgery,NHS LOGISTICS,1012007930,0.39,
Department of Health,Salisbury NHS Foundation Trust,13-May-11,STATIONERY SUNDRIES,Human Resources,NHS LOGISTICS,1012011882,0.39,
Department of Health,Salisbury NHS Foundation Trust,13-May-11,DRESSINGS - PRE STERILE,Clinical Support and Family Services,NHS LOGISTICS,1012011882,0.39,
Department of Health,Salisbury NHS Foundation Trust,13-May-11,DRESSINGS - PRE STERILE,Clinical Support and Family Services,NHS LOGISTICS,1012011882,0.39,
Department of Health,Salisbury NHS Foundation Trust,13-May-11,DRESSINGS - PRE STERILE,Clinical Support and Family Services,NHS LOGISTICS,1012011882,0.39,
Department of Health,Salisbury NHS Foundation Trust,13-May-11,STATIONERY SUNDRIES,Medicine,NHS LOGISTICS,1012007930,0.4,
Department of Health,Salisbury NHS Foundation Trust,13-May-11,DRESSINGS - PRE STERILE,Medicine,NHS LOGISTICS,1012007930,0.4,
Department of Health,Salisbury NHS Foundation Trust,13-May-11,PAPER ITEMS GENERAL STATIONERY SUNDRIES,Clinical Support and Family Services,NHS LOGISTICS,1012007930,0.4,
Department of Health,Salisbury NHS Foundation Trust,13-May-11,DRESSINGS - PRE STERILE,Critical care,NHS LOGISTICS,1012007930,0.4,
Department of Health,Salisbury NHS Foundation Trust,13-May-11,DRESSINGS - PRE STERILE,Medicine,NHS LOGISTICS,1012007930,0.4,
Department of Health,Salisbury NHS Foundation Trust,13-May-11,DRESSINGS - PRE STERILE,Medicine,NHS LOGISTICS,1012007930,0.4,
Department of Health,Salisbury NHS Foundation Trust,13-May-11,MEDSURGCONS - OTHER,Medicine,NHS LOGISTICS,1012007930,0.4,
Department of Health,Salisbury NHS Foundation Trust,13-May-11,STATIONERY SUNDRIES,Surgery,NHS LOGISTICS,1012011882,0.4,
Department of Health,Salisbury NHS Foundation Trust,13-May-11,MEDSURGCONS - OTHER,Medicine,NHS LOGISTICS,1012007930,0.41,
Department of Health,Salisbury NHS Foundation Trust,13-May-11,TISSUES HAND TOWELS & TOILET PAPER,Medicine,NHS LOGISTICS,1012007930,0.41,
Department of Health,Salisbury NHS Foundation Trust,13-May-11,DRESSINGS - PRE STERILE,Medicine,NHS LOGISTICS,1012007930,0.41,
Department of Health,Salisbury NHS Foundation Trust,13-May-11,DISPOSABLE THEATRE DRAPES WIPES,Medicine,NHS LOGISTICS,1012007930,0.41,
Department of Health,Salisbury NHS Foundation Trust,13-May-11,OTHER MEDICAL SUPPLIES,Medicine,NHS LOGISTICS,1012007930,0.41,
Department of Health,Salisbury NHS Foundation Trust,13-May-11,DRESSINGS - PRE STERILE,Medicine,NHS LOGISTICS,1012007930,0.41,
Department of Health,Salisbury NHS Foundation Trust,13-May-11,LAB EQUIP-LABORATORY APPARATUS,Clinical Support and Family Services,NHS LOGISTICS,1012007930,0.41,
Department of Health,Salisbury NHS Foundation Trust,13-May-11,DRESSINGS  -  PROCEDURE PACKS,Clinical Support and Family Services,NHS LOGISTICS,1012007930,0.41,
Department of Health,Salisbury NHS Foundation Trust,13-May-11,DRESSINGS - PRE STERILE,Medicine,NHS LOGISTICS,1012007930,0.41,
Department of Health,Salisbury NHS Foundation Trust,13-May-11,DRESSINGS - PRE STERILE,Surgery,NHS LOGISTICS,1012007930,0.41,
Department of Health,Salisbury NHS Foundation Trust,13-May-11,DRESSINGS - PRE STERILE,Medicine,NHS LOGISTICS,1012007930,0.41,
Department of Health,Salisbury NHS Foundation Trust,13-May-11,TISSUES HAND TOWELS & TOILET PAPER,Medicine,NHS LOGISTICS,1012007930,0.41,
Department of Health,Salisbury NHS Foundation Trust,13-May-11,STATIONERY SUNDRIES,Medicine,NHS LOGISTICS,1012007930,0.42,
Department of Health,Salisbury NHS Foundation Trust,13-May-11,ANAESTHETIC EQUIPMENT ACCESSORIES,Medicine,NHS LOGISTICS,1012007930,0.42,
Department of Health,Salisbury NHS Foundation Trust,13-May-11,OTHER MEDICAL SUPPLIES,Surgery,NHS LOGISTICS,1012007930,0.42,
Department of Health,Salisbury NHS Foundation Trust,13-May-11,DRESSINGS - PRE STERILE,Critical care,NHS LOGISTICS,1012007930,0.42,
Department of Health,Salisbury NHS Foundation Trust,13-May-11,STATIONERY SUNDRIES,Human Resources,NHS LOGISTICS,1012007930,0.43,
Department of Health,Salisbury NHS Foundation Trust,13-May-11,DRESSINGS - PRE STERILE,Medicine,NHS LOGISTICS,1012007930,0.43,
Department of Health,Salisbury NHS Foundation Trust,13-May-11,STATIONERY SUNDRIES,Corporate Directorate,NHS LOGISTICS,1012007930,0.43,
Department of Health,Salisbury NHS Foundation Trust,13-May-11,DRESSINGS  -  PROCEDURE PACKS,Clinical Support and Family Services,NHS LOGISTICS,1012007930,0.43,
Department of Health,Salisbury NHS Foundation Trust,13-May-11,DRESSINGS - PRE STERILE,Surgery,NHS LOGISTICS,1012007930,0.43,
Department of Health,Salisbury NHS Foundation Trust,13-May-11,STATIONERY SUNDRIES,Facilities Directorate,NHS LOGISTICS,1012007930,0.43,
Department of Health,Salisbury NHS Foundation Trust,13-May-11,DRESSINGS  -  PROCEDURE PACKS,Medicine,NHS LOGISTICS,1012007930,0.43,
Department of Health,Salisbury NHS Foundation Trust,13-May-11,COOKING & KITCHEN UTENSILS,Medicine,NHS LOGISTICS,1012007930,0.43,
Department of Health,Salisbury NHS Foundation Trust,13-May-11,TOILETRIES PERSONAL HYGIENE PRODUCTS,Surgery,NHS LOGISTICS,1012007930,0.43,
Department of Health,Salisbury NHS Foundation Trust,13-May-11,DRESSINGS - PRE STERILE,Medicine,NHS LOGISTICS,1012011882,0.43,
Department of Health,Salisbury NHS Foundation Trust,13-May-11,DRESSINGS - PRE STERILE,Medicine,NHS LOGISTICS,1012011882,0.43,
Department of Health,Salisbury NHS Foundation Trust,13-May-11,DRESSINGS - PRE STERILE,Surgery,NHS LOGISTICS,1012011882,0.43,
Department of Health,Salisbury NHS Foundation Trust,13-May-11,STATIONERY SUNDRIES,Clinical Support and Family Services,NHS LOGISTICS,1012007930,0.44,
Department of Health,Salisbury NHS Foundation Trust,13-May-11,STATIONERY SUNDRIES,Facilities Directorate,NHS LOGISTICS,1012007930,0.44,
Department of Health,Salisbury NHS Foundation Trust,13-May-11,STATIONERY SUNDRIES,Clinical Support and Family Services,NHS LOGISTICS,1012007930,0.44,
Department of Health,Salisbury NHS Foundation Trust,13-May-11,DRESSINGS - PRE STERILE,Medicine,NHS LOGISTICS,1012007930,0.44,
Department of Health,Salisbury NHS Foundation Trust,13-May-11,DRESSINGS - PRE STERILE,Medicine,NHS LOGISTICS,1012007930,0.44,
Department of Health,Salisbury NHS Foundation Trust,13-May-11,MEDSURGCONS - OTHER,Medicine,NHS LOGISTICS,1012007930,0.44,
Department of Health,Salisbury NHS Foundation Trust,13-May-11,DRESSINGS - PRE STERILE,Medicine,NHS LOGISTICS,1012007930,0.44,
Department of Health,Salisbury NHS Foundation Trust,13-May-11,DRESSINGS - PRE STERILE,Medicine,NHS LOGISTICS,1012007930,0.44,
Department of Health,Salisbury NHS Foundation Trust,13-May-11,DRESSINGS - PRE STERILE,Critical care,NHS LOGISTICS,1012007930,0.44,
Department of Health,Salisbury NHS Foundation Trust,13-May-11,DRESSINGS - PRE STERILE,Surgery,NHS LOGISTICS,1012007930,0.44,
Department of Health,Salisbury NHS Foundation Trust,13-May-11,DRESSINGS - PRE STERILE,Medicine,NHS LOGISTICS,1012007930,0.44,
Department of Health,Salisbury NHS Foundation Trust,13-May-11,DRESSINGS - PRE STERILE,Surgery,NHS LOGISTICS,1012007930,0.44,
Department of Health,Salisbury NHS Foundation Trust,13-May-11,DRESSINGS - PRE STERILE,Medicine,NHS LOGISTICS,1012007930,0.44,
Department of Health,Salisbury NHS Foundation Trust,13-May-11,DRESSINGS - PRE STERILE,Surgery,NHS LOGISTICS,1012007930,0.44,
Department of Health,Salisbury NHS Foundation Trust,13-May-11,PATIENT APPLIANCES,Medicine,NHS LOGISTICS,1012007930,0.44,
Department of Health,Salisbury NHS Foundation Trust,13-May-11,BAGS SACKS - OTHER,Critical care,NHS LOGISTICS,1012007930,0.44,
Department of Health,Salisbury NHS Foundation Trust,13-May-11,DRESSINGS - PRE STERILE,Medicine,NHS LOGISTICS,1012007930,0.44,
Department of Health,Salisbury NHS Foundation Trust,13-May-11,DRESSINGS - PRE STERILE,Surgery,NHS LOGISTICS,1012007930,0.44,
Department of Health,Salisbury NHS Foundation Trust,13-May-11,OFFICE EQUIP MACHINERY  -  OTHER,Directorate of Finance and Procurement,NHS LOGISTICS,1012007930,0.45,
Department of Health,Salisbury NHS Foundation Trust,13-May-11,DRESSINGS - PRE STERILE,Critical care,NHS LOGISTICS,1012007930,0.45,
Department of Health,Salisbury NHS Foundation Trust,13-May-11,STATIONERY SUNDRIES,Clinical Support and Family Services,NHS LOGISTICS,1012007930,0.45,
Department of Health,Salisbury NHS Foundation Trust,13-May-11,COOKING & KITCHEN UTENSILS,Surgery,NHS LOGISTICS,1012007930,0.45,
Department of Health,Salisbury NHS Foundation Trust,13-May-11,COOKING & KITCHEN UTENSILS,Medicine,NHS LOGISTICS,1012007930,0.45,
Department of Health,Salisbury NHS Foundation Trust,13-May-11,COOKING & KITCHEN UTENSILS,Clinical Support and Family Services,NHS LOGISTICS,1012007930,0.45,
Department of Health,Salisbury NHS Foundation Trust,13-May-11,COOKING & KITCHEN UTENSILS,Medicine,NHS LOGISTICS,1012007930,0.45,
Department of Health,Salisbury NHS Foundation Trust,13-May-11,MEDSURGCONS - OTHER,Medicine,NHS LOGISTICS,1012007930,0.45,
Department of Health,Salisbury NHS Foundation Trust,13-May-11,MEDSURGCONS - OTHER,Medicine,NHS LOGISTICS,1012007930,0.45,
Department of Health,Salisbury NHS Foundation Trust,13-May-11,COOKING & KITCHEN UTENSILS,Critical care,NHS LOGISTICS,1012007930,0.45,
Department of Health,Salisbury NHS Foundation Trust,13-May-11,COOKING & KITCHEN UTENSILS,Clinical Support and Family Services,NHS LOGISTICS,1012007930,0.45,
Department of Health,Salisbury NHS Foundation Trust,13-May-11,SURGICAL INSTRUMENTS: GENERAL,Surgery,NHS LOGISTICS,1012007930,0.45,
Department of Health,Salisbury NHS Foundation Trust,13-May-11,DRESSINGS - PRE STERILE,Surgery,NHS LOGISTICS,1012007930,0.47,
Department of Health,Salisbury NHS Foundation Trust,13-May-11,OTHER MEDICAL SUPPLIES,Critical care,NHS LOGISTICS,1012007930,0.47,
Department of Health,Salisbury NHS Foundation Trust,13-May-11,MEDSURGCONS - OTHER,Medicine,NHS LOGISTICS,1012007930,0.47,
Department of Health,Salisbury NHS Foundation Trust,13-May-11,COOKING & KITCHEN UTENSILS,Critical care,NHS LOGISTICS,1012007930,0.47,
Department of Health,Salisbury NHS Foundation Trust,13-May-11,MEDSURGCONS - OTHER,Medicine,NHS LOGISTICS,1012011882,0.47,
Department of Health,Salisbury NHS Foundation Trust,13-May-11,MEDSURGCONS - OTHER,Medicine,NHS LOGISTICS,1012011882,0.47,
Department of Health,Salisbury NHS Foundation Trust,13-May-11,STATIONERY SUNDRIES,Critical care,NHS LOGISTICS,1012007930,0.48,
Department of Health,Salisbury NHS Foundation Trust,13-May-11,MEDSURGCONS - OTHER,Clinical Support and Family Services,NHS LOGISTICS,1012007930,0.48,
Department of Health,Salisbury NHS Foundation Trust,13-May-11,OTHER MEDICAL SUPPLIES,Surgery,NHS LOGISTICS,1012007930,0.48,
Department of Health,Salisbury NHS Foundation Trust,13-May-11,OTHER MEDICAL SUPPLIES,Surgery,NHS LOGISTICS,1012007930,0.48,
Department of Health,Salisbury NHS Foundation Trust,13-May-11,OTHER MEDICAL SUPPLIES,Surgery,NHS LOGISTICS,1012007930,0.48,
Department of Health,Salisbury NHS Foundation Trust,13-May-11,OTHER MEDICAL SUPPLIES,Surgery,NHS LOGISTICS,1012007930,0.48,
Department of Health,Salisbury NHS Foundation Trust,13-May-11,MEDSURGCONS - OTHER,Medicine,NHS LOGISTICS,1012007930,0.48,
Department of Health,Salisbury NHS Foundation Trust,13-May-11,MEDSURGCONS - OTHER,Clinical Support and Family Services,NHS LOGISTICS,1012007930,0.48,
Department of Health,Salisbury NHS Foundation Trust,13-May-11,TUBES,Surgery,NHS LOGISTICS,1012007930,0.48,
Department of Health,Salisbury NHS Foundation Trust,13-May-11,STATIONERY SUNDRIES,Medicine,NHS LOGISTICS,1012007930,0.49,
Department of Health,Salisbury NHS Foundation Trust,13-May-11,STATIONERY SUNDRIES,Clinical Effctiveness Directorate,NHS LOGISTICS,1012007930,0.49,
Department of Health,Salisbury NHS Foundation Trust,13-May-11,TISSUES HAND TOWELS & TOILET PAPER,Medicine,NHS LOGISTICS,1012007930,0.49,
Department of Health,Salisbury NHS Foundation Trust,13-May-11,TISSUES HAND TOWELS & TOILET PAPER,Critical care,NHS LOGISTICS,1012007930,0.49,
Department of Health,Salisbury NHS Foundation Trust,13-May-11,TISSUES HAND TOWELS & TOILET PAPER,Critical care,NHS LOGISTICS,1012007930,0.49,
Department of Health,Salisbury NHS Foundation Trust,13-May-11,CLEANING MATERIALS PRODUCTS SUNDRIES,Medicine,NHS LOGISTICS,1012011882,0.49,
Department of Health,Salisbury NHS Foundation Trust,13-May-11,STATIONERY SUNDRIES,Surgery,NHS LOGISTICS,1012007930,0.5,
Department of Health,Salisbury NHS Foundation Trust,13-May-11,STATIONERY SUNDRIES,Medicine,NHS LOGISTICS,1012007930,0.5,
Department of Health,Salisbury NHS Foundation Trust,13-May-11,TUBES,Clinical Support and Family Services,NHS LOGISTICS,1012007930,0.5,
Department of Health,Salisbury NHS Foundation Trust,13-May-11,TUBES,Surgery,NHS LOGISTICS,1012007930,0.5,
Department of Health,Salisbury NHS Foundation Trust,13-May-11,DRESSINGS - PRE STERILE,Medicine,NHS LOGISTICS,1012007930,0.5,
Department of Health,Salisbury NHS Foundation Trust,13-May-11,TUBES,Medicine,NHS LOGISTICS,1012007930,0.5,
Department of Health,Salisbury NHS Foundation Trust,13-May-11,TISSUES HAND TOWELS & TOILET PAPER,Medicine,NHS LOGISTICS,1012007930,0.5,
Department of Health,Salisbury NHS Foundation Trust,13-May-11,TUBES,Clinical Support and Family Services,NHS LOGISTICS,1012007930,0.5,
Department of Health,Salisbury NHS Foundation Trust,13-May-11,TUBES,Surgery,NHS LOGISTICS,1012007930,0.5,
Department of Health,Salisbury NHS Foundation Trust,13-May-11,TUBES,Surgery,NHS LOGISTICS,1012007930,0.5,
Department of Health,Salisbury NHS Foundation Trust,13-May-11,STATIONERY SUNDRIES,Facilities Directorate,NHS LOGISTICS,1012007930,0.51,
Department of Health,Salisbury NHS Foundation Trust,13-May-11,DRUGS,Medicine,NHS LOGISTICS,1012007930,0.51,
Department of Health,Salisbury NHS Foundation Trust,13-May-11,DRUGS,Medicine,NHS LOGISTICS,1012007930,0.51,
Department of Health,Salisbury NHS Foundation Trust,13-May-11,DRUGS,Surgery,NHS LOGISTICS,1012007930,0.51,
Department of Health,Salisbury NHS Foundation Trust,13-May-11,STATIONERY SUNDRIES,Nursing Directorate,NHS LOGISTICS,1012007930,0.52,
Department of Health,Salisbury NHS Foundation Trust,13-May-11,STATIONERY SUNDRIES,Critical care,NHS LOGISTICS,1012007930,0.52,
Department of Health,Salisbury NHS Foundation Trust,13-May-11,OTHER MEDICAL SUPPLIES,Clinical Support and Family Services,NHS LOGISTICS,1012007930,0.52,
Department of Health,Salisbury NHS Foundation Trust,13-May-11,DRESSINGS - PRE STERILE,Medicine,NHS LOGISTICS,1012007930,0.52,
Department of Health,Salisbury NHS Foundation Trust,13-May-11,DRESSINGS  -  PROCEDURE PACKS,Medicine,NHS LOGISTICS,1012007930,0.53,
Department of Health,Salisbury NHS Foundation Trust,13-May-11,DRESSINGS  -  PROCEDURE PACKS,Medicine,NHS LOGISTICS,1012007930,0.53,
Department of Health,Salisbury NHS Foundation Trust,13-May-11,ANAESTHETIC EQUIPMENT ACCESSORIES,Medicine,NHS LOGISTICS,1012007930,0.53,
Department of Health,Salisbury NHS Foundation Trust,13-May-11,STATIONERY SUNDRIES,Medicine,NHS LOGISTICS,1012007930,0.53,
Department of Health,Salisbury NHS Foundation Trust,13-May-11,M & S EQUIPELECTEQUIPINST - OTHER,Medicine,NHS LOGISTICS,1012007930,0.53,
Department of Health,Salisbury NHS Foundation Trust,13-May-11,DRESSINGS - PRE STERILE,Medicine,NHS LOGISTICS,1012007930,0.53,
Department of Health,Salisbury NHS Foundation Trust,13-May-11,ANAESTHETIC EQUIPMENT ACCESSORIES,Medicine,NHS LOGISTICS,1012007930,0.53,
Department of Health,Salisbury NHS Foundation Trust,13-May-11,TUBES,Clinical Support and Family Services,NHS LOGISTICS,1012007930,0.53,
Department of Health,Salisbury NHS Foundation Trust,13-May-11,TUBES,Clinical Support and Family Services,NHS LOGISTICS,1012007930,0.53,
Department of Health,Salisbury NHS Foundation Trust,13-May-11,DRESSINGS  -  PROCEDURE PACKS,Medicine,NHS LOGISTICS,1012007930,0.53,
Department of Health,Salisbury NHS Foundation Trust,13-May-11,DRESSINGS  -  PROCEDURE PACKS,Medicine,NHS LOGISTICS,1012007930,0.54,
Department of Health,Salisbury NHS Foundation Trust,13-May-11,DRESSINGS  -  PROCEDURE PACKS,Medicine,NHS LOGISTICS,1012007930,0.54,
Department of Health,Salisbury NHS Foundation Trust,13-May-11,PAPER ITEMS GENERAL STATIONERY SUNDRIES,Clinical Effctiveness Directorate,NHS LOGISTICS,1012007930,0.55,
Department of Health,Salisbury NHS Foundation Trust,13-May-11,OTHER MEDICAL SUPPLIES,Medicine,NHS LOGISTICS,1012007930,0.55,
Department of Health,Salisbury NHS Foundation Trust,13-May-11,DISPOSABLE THEATRE DRAPES WIPES,Medicine,NHS LOGISTICS,1012007930,0.55,
Department of Health,Salisbury NHS Foundation Trust,13-May-11,DRESSINGS - PRE STERILE,Critical care,NHS LOGISTICS,1012007930,0.55,
Department of Health,Salisbury NHS Foundation Trust,13-May-11,MEDSURGCONS - OTHER,Medicine,NHS LOGISTICS,1012007930,0.56,
Department of Health,Salisbury NHS Foundation Trust,13-May-11,DRUGS,Medicine,NHS LOGISTICS,1012007930,0.56,
Department of Health,Salisbury NHS Foundation Trust,13-May-11,DRUGS,Clinical Support and Family Services,NHS LOGISTICS,1012007930,0.56,
Department of Health,Salisbury NHS Foundation Trust,13-May-11,MEDSURGCONS - OTHER,Surgery,NHS LOGISTICS,1012007930,0.56,
Department of Health,Salisbury NHS Foundation Trust,13-May-11,DRUGS,Surgery,NHS LOGISTICS,1012007930,0.56,
Department of Health,Salisbury NHS Foundation Trust,13-May-11,DISPOSABLE THEATRE DRAPES WIPES,Clinical Support and Family Services,NHS LOGISTICS,1012007930,0.56,
Department of Health,Salisbury NHS Foundation Trust,13-May-11,OTHER MEDICAL SUPPLIES,Critical care,NHS LOGISTICS,1012007930,0.56,
Department of Health,Salisbury NHS Foundation Trust,13-May-11,DRUGS,Critical care,NHS LOGISTICS,1012007930,0.56,
Department of Health,Salisbury NHS Foundation Trust,13-May-11,DRUGS,Medicine,NHS LOGISTICS,1012007930,0.56,
Department of Health,Salisbury NHS Foundation Trust,13-May-11,MEDSURGCONS - OTHER,Surgery,NHS LOGISTICS,1012007930,0.56,
Department of Health,Salisbury NHS Foundation Trust,13-May-11,MEDSURGCONS - OTHER,Critical care,NHS LOGISTICS,1012007930,0.56,
Department of Health,Salisbury NHS Foundation Trust,13-May-11,DRUGS,Medicine,NHS LOGISTICS,1012007930,0.56,
Department of Health,Salisbury NHS Foundation Trust,13-May-11,MEDSURGCONS - OTHER,Surgery,NHS LOGISTICS,1012007930,0.56,
Department of Health,Salisbury NHS Foundation Trust,13-May-11,MEDSURGCONS - OTHER,Medicine,NHS LOGISTICS,1012007930,0.56,
Department of Health,Salisbury NHS Foundation Trust,13-May-11,DRUGS,Medicine,NHS LOGISTICS,1012007930,0.56,
Department of Health,Salisbury NHS Foundation Trust,13-May-11,OTHER MEDICAL SUPPLIES,Medicine,NHS LOGISTICS,1012007930,0.56,
Department of Health,Salisbury NHS Foundation Trust,13-May-11,DRUGS,Medicine,NHS LOGISTICS,1012007930,0.56,
Department of Health,Salisbury NHS Foundation Trust,13-May-11,STATIONERY SUNDRIES,Corporate Directorate,NHS LOGISTICS,1012007930,0.57,
Department of Health,Salisbury NHS Foundation Trust,13-May-11,STATIONERY SUNDRIES,Facilities Directorate,NHS LOGISTICS,1012007930,0.57,
Department of Health,Salisbury NHS Foundation Trust,13-May-11,TOILETRIES PERSONAL HYGIENE PRODUCTS,Surgery,NHS LOGISTICS,1012007930,0.57,
Department of Health,Salisbury NHS Foundation Trust,13-May-11,MEDSURGCONS - OTHER,Clinical Support and Family Services,NHS LOGISTICS,1012007930,0.57,
Department of Health,Salisbury NHS Foundation Trust,13-May-11,TOILETRIES PERSONAL HYGIENE PRODUCTS,Critical care,NHS LOGISTICS,1012007930,0.57,
Department of Health,Salisbury NHS Foundation Trust,13-May-11,TOILETRIES PERSONAL HYGIENE PRODUCTS,Medicine,NHS LOGISTICS,1012007930,0.57,
Department of Health,Salisbury NHS Foundation Trust,13-May-11,STATIONERY SUNDRIES,Corporate Directorate,NHS LOGISTICS,1012011882,0.57,
Department of Health,Salisbury NHS Foundation Trust,13-May-11,DRESSINGS  -  PROCEDURE PACKS,Medicine,NHS LOGISTICS,1012007930,0.58,
Department of Health,Salisbury NHS Foundation Trust,13-May-11,DRESSINGS  -  PROCEDURE PACKS,Medicine,NHS LOGISTICS,1012007930,0.58,
Department of Health,Salisbury NHS Foundation Trust,13-May-11,DRESSINGS  -  PROCEDURE PACKS,Clinical Support and Family Services,NHS LOGISTICS,1012007930,0.58,
Department of Health,Salisbury NHS Foundation Trust,13-May-11,MEDSURGCONS - OTHER,Medicine,NHS LOGISTICS,1012007930,0.58,
Department of Health,Salisbury NHS Foundation Trust,13-May-11,MEDSURGCONS - OTHER,Medicine,NHS LOGISTICS,1012007930,0.58,
Department of Health,Salisbury NHS Foundation Trust,13-May-11,MEDSURGCONS - OTHER,Medicine,NHS LOGISTICS,1012007930,0.58,
Department of Health,Salisbury NHS Foundation Trust,13-May-11,MEDSURGCONS - OTHER,Medicine,NHS LOGISTICS,1012007930,0.58,
Department of Health,Salisbury NHS Foundation Trust,13-May-11,CLEANING MATERIALS PRODUCTS SUNDRIES,Facilities Directorate,NHS LOGISTICS,1012007930,0.58,
Department of Health,Salisbury NHS Foundation Trust,13-May-11,STATIONERY SUNDRIES,Medicine,NHS LOGISTICS,1012007930,0.58,
Department of Health,Salisbury NHS Foundation Trust,13-May-11,M & S EQUIPELECTEQUIPINST - OTHER,Clinical Support and Family Services,NHS LOGISTICS,1012007930,0.58,
Department of Health,Salisbury NHS Foundation Trust,13-May-11,OTHER MEDICAL SUPPLIES,Medicine,NHS LOGISTICS,1012007930,0.58,
Department of Health,Salisbury NHS Foundation Trust,13-May-11,OTHER MEDICAL SUPPLIES,Clinical Support and Family Services,NHS LOGISTICS,1012007930,0.58,
Department of Health,Salisbury NHS Foundation Trust,13-May-11,OTHER MEDICAL SUPPLIES,Clinical Support and Family Services,NHS LOGISTICS,1012007930,0.58,
Department of Health,Salisbury NHS Foundation Trust,13-May-11,M & S EQUIPELECTEQUIPINST - OTHER,Clinical Support and Family Services,NHS LOGISTICS,1012007930,0.58,
Department of Health,Salisbury NHS Foundation Trust,13-May-11,M & S EQUIPELECTEQUIPINST - OTHER,Medicine,NHS LOGISTICS,1012007930,0.58,
Department of Health,Salisbury NHS Foundation Trust,13-May-11,DRESSINGS - PRE STERILE,Medicine,NHS LOGISTICS,1012007930,0.58,
Department of Health,Salisbury NHS Foundation Trust,13-May-11,OTHER MEDICAL SUPPLIES,Clinical Support and Family Services,NHS LOGISTICS,1012007930,0.58,
Department of Health,Salisbury NHS Foundation Trust,13-May-11,OTHER MEDICAL SUPPLIES,Surgery,NHS LOGISTICS,1012007930,0.58,
Department of Health,Salisbury NHS Foundation Trust,13-May-11,OTHER MEDICAL SUPPLIES,Surgery,NHS LOGISTICS,1012007930,0.58,
Department of Health,Salisbury NHS Foundation Trust,13-May-11,OTHER MEDICAL SUPPLIES,Medicine,NHS LOGISTICS,1012007930,0.58,
Department of Health,Salisbury NHS Foundation Trust,13-May-11,OTHER MEDICAL SUPPLIES,Surgery,NHS LOGISTICS,1012007930,0.58,
Department of Health,Salisbury NHS Foundation Trust,13-May-11,DRESSINGS - PRE STERILE,Surgery,NHS LOGISTICS,1012011882,0.58,
Department of Health,Salisbury NHS Foundation Trust,13-May-11,DRESSINGS  -  PROCEDURE PACKS,Clinical Support and Family Services,NHS LOGISTICS,1012011882,0.58,
Department of Health,Salisbury NHS Foundation Trust,13-May-11,DRESSINGS  -  PROCEDURE PACKS,Medicine,NHS LOGISTICS,1012011882,0.58,
Department of Health,Salisbury NHS Foundation Trust,13-May-11,MEDSURGCONS - OTHER,Medicine,NHS LOGISTICS,1012011882,0.58,
Department of Health,Salisbury NHS Foundation Trust,13-May-11,DRESSINGS  -  PROCEDURE PACKS,Surgery,NHS LOGISTICS,1012011882,0.58,
Department of Health,Salisbury NHS Foundation Trust,13-May-11,DRESSINGS  -  PROCEDURE PACKS,Medicine,NHS LOGISTICS,1012011882,0.58,
Department of Health,Salisbury NHS Foundation Trust,13-May-11,STATIONERY SUNDRIES,Corporate Directorate,NHS LOGISTICS,1012007930,0.59,
Department of Health,Salisbury NHS Foundation Trust,13-May-11,STATIONERY SUNDRIES,Medicine,NHS LOGISTICS,1012007930,0.59,
Department of Health,Salisbury NHS Foundation Trust,13-May-11,OTHER MEDICAL SUPPLIES,Medicine,NHS LOGISTICS,1012007930,0.59,
Department of Health,Salisbury NHS Foundation Trust,13-May-11,OTHER MEDICAL SUPPLIES,Medicine,NHS LOGISTICS,1012007930,0.59,
Department of Health,Salisbury NHS Foundation Trust,13-May-11,OTHER MEDICAL SUPPLIES,Clinical Support and Family Services,NHS LOGISTICS,1012007930,0.59,
Department of Health,Salisbury NHS Foundation Trust,13-May-11,ELECTRICAL EQUIPMENT x,Medicine,NHS LOGISTICS,1012007930,0.59,
Department of Health,Salisbury NHS Foundation Trust,13-May-11,OTHER MEDICAL SUPPLIES,Critical care,NHS LOGISTICS,1012007930,0.59,
Department of Health,Salisbury NHS Foundation Trust,13-May-11,DRUGS,Surgery,NHS LOGISTICS,1012007930,0.59,
Department of Health,Salisbury NHS Foundation Trust,13-May-11,MEDSURGCONS - OTHER,Medicine,NHS LOGISTICS,1012007930,0.59,
Department of Health,Salisbury NHS Foundation Trust,13-May-11,MED SURG EQUIP REP MAINT CLEANING,Surgery,NHS LOGISTICS,1012007930,0.59,
Department of Health,Salisbury NHS Foundation Trust,13-May-11,OTHER MEDICAL SUPPLIES,Medicine,NHS LOGISTICS,1012007930,0.59,
Department of Health,Salisbury NHS Foundation Trust,13-May-11,OTHER MEDICAL SUPPLIES,Medicine,NHS LOGISTICS,1012007930,0.59,
Department of Health,Salisbury NHS Foundation Trust,13-May-11,OTHER MEDICAL SUPPLIES,Medicine,NHS LOGISTICS,1012007930,0.59,
Department of Health,Salisbury NHS Foundation Trust,13-May-11,DRUGS,Medicine,NHS LOGISTICS,1012007930,0.59,
Department of Health,Salisbury NHS Foundation Trust,13-May-11,PAPER ITEMS GENERAL STATIONERY SUNDRIES,Clinical Support and Family Services,NHS LOGISTICS,1012007930,0.6,
Department of Health,Salisbury NHS Foundation Trust,13-May-11,OFFICE EQUIP MACHINERY  -  OTHER,Critical care,NHS LOGISTICS,1012007930,0.6,
Department of Health,Salisbury NHS Foundation Trust,13-May-11,ANAESTHETIC EQUIPMENT ACCESSORIES,Medicine,NHS LOGISTICS,1012007930,0.6,
Department of Health,Salisbury NHS Foundation Trust,13-May-11,STATIONERY SUNDRIES,Medicine,NHS LOGISTICS,1012007930,0.6,
Department of Health,Salisbury NHS Foundation Trust,13-May-11,DRESSINGS - PRE STERILE,Surgery,NHS LOGISTICS,1012007930,0.6,
Department of Health,Salisbury NHS Foundation Trust,13-May-11,OTHER MEDICAL SUPPLIES,Medicine,NHS LOGISTICS,1012007930,0.6,
Department of Health,Salisbury NHS Foundation Trust,13-May-11,DRESSINGS - PRE STERILE,Critical care,NHS LOGISTICS,1012007930,0.6,
Department of Health,Salisbury NHS Foundation Trust,13-May-11,M & S EQUIPELECTEQUIPINST - OTHER,Surgery,NHS LOGISTICS,1012007930,0.6,
Department of Health,Salisbury NHS Foundation Trust,13-May-11,M & S EQUIPELECTEQUIPINST - OTHER,Medicine,NHS LOGISTICS,1012007930,0.6,
Department of Health,Salisbury NHS Foundation Trust,13-May-11,DRESSINGS - PRE STERILE,Medicine,NHS LOGISTICS,1012007930,0.6,
Department of Health,Salisbury NHS Foundation Trust,13-May-11,ANAESTHETIC EQUIPMENT ACCESSORIES,Critical care,NHS LOGISTICS,1012007930,0.6,
Department of Health,Salisbury NHS Foundation Trust,13-May-11,M & S EQUIPELECTEQUIPINST - OTHER,Critical care,NHS LOGISTICS,1012011882,0.6,
Department of Health,Salisbury NHS Foundation Trust,13-May-11,PAPER ITEMS GENERAL STATIONERY SUNDRIES,Human Resources,NHS LOGISTICS,1012007930,0.61,
Department of Health,Salisbury NHS Foundation Trust,13-May-11,SURGICAL INSTRUMENTS: GENERAL,Surgery,NHS LOGISTICS,1012007930,0.62,
Department of Health,Salisbury NHS Foundation Trust,13-May-11,STATIONERY SUNDRIES,Clinical Effctiveness Directorate,NHS LOGISTICS,1012007930,0.62,
Department of Health,Salisbury NHS Foundation Trust,13-May-11,TISSUES HAND TOWELS & TOILET PAPER,Medicine,NHS LOGISTICS,1012007930,0.62,
Department of Health,Salisbury NHS Foundation Trust,13-May-11,STATIONERY SUNDRIES,Surgery,NHS LOGISTICS,1012007930,0.62,
Department of Health,Salisbury NHS Foundation Trust,13-May-11,TOILETRIES PERSONAL HYGIENE PRODUCTS,Clinical Support and Family Services,NHS LOGISTICS,1012007930,0.62,
Department of Health,Salisbury NHS Foundation Trust,13-May-11,OTHER MEDICAL SUPPLIES,Critical care,NHS LOGISTICS,1012007930,0.62,
Department of Health,Salisbury NHS Foundation Trust,13-May-11,MEDSURGCONS - OTHER,Medicine,NHS LOGISTICS,1012007930,0.62,
Department of Health,Salisbury NHS Foundation Trust,13-May-11,OTHER MEDICAL SUPPLIES,Critical care,NHS LOGISTICS,1012007930,0.62,
Department of Health,Salisbury NHS Foundation Trust,13-May-11,DRESSINGS  -  PROCEDURE PACKS,Medicine,NHS LOGISTICS,1012007930,0.62,
Department of Health,Salisbury NHS Foundation Trust,13-May-11,MEDSURGCONS - OTHER,Medicine,NHS LOGISTICS,1012007930,0.62,
Department of Health,Salisbury NHS Foundation Trust,13-May-11,TOILETRIES PERSONAL HYGIENE PRODUCTS,Critical care,NHS LOGISTICS,1012007930,0.62,
Department of Health,Salisbury NHS Foundation Trust,13-May-11,MEDSURGCONS - OTHER,Medicine,NHS LOGISTICS,1012007930,0.62,
Department of Health,Salisbury NHS Foundation Trust,13-May-11,STATIONERY SUNDRIES,Medicine,NHS LOGISTICS,1012007930,0.63,
Department of Health,Salisbury NHS Foundation Trust,13-May-11,TISSUES HAND TOWELS & TOILET PAPER,Surgery,NHS LOGISTICS,1012007930,0.63,
Department of Health,Salisbury NHS Foundation Trust,13-May-11,TISSUES HAND TOWELS & TOILET PAPER,Critical care,NHS LOGISTICS,1012007930,0.63,
Department of Health,Salisbury NHS Foundation Trust,13-May-11,STATIONERY SUNDRIES,Critical care,NHS LOGISTICS,1012007930,0.63,
Department of Health,Salisbury NHS Foundation Trust,13-May-11,PATIENT APPLIANCES,Medicine,NHS LOGISTICS,1012007930,0.63,
Department of Health,Salisbury NHS Foundation Trust,13-May-11,PATIENT APPLIANCES,Medicine,NHS LOGISTICS,1012007930,0.63,
Department of Health,Salisbury NHS Foundation Trust,13-May-11,DISPOSABLE THEATRE DRAPES WIPES,Medicine,NHS LOGISTICS,1012007930,0.63,
Department of Health,Salisbury NHS Foundation Trust,13-May-11,PATIENT APPLIANCES,Critical care,NHS LOGISTICS,1012007930,0.63,
Department of Health,Salisbury NHS Foundation Trust,13-May-11,PATIENT APPLIANCES,Medicine,NHS LOGISTICS,1012007930,0.63,
Department of Health,Salisbury NHS Foundation Trust,13-May-11,PATIENT APPLIANCES,Medicine,NHS LOGISTICS,1012007930,0.63,
Department of Health,Salisbury NHS Foundation Trust,13-May-11,DRESSINGS - PRE STERILE,Surgery,NHS LOGISTICS,1012007930,0.63,
Department of Health,Salisbury NHS Foundation Trust,13-May-11,PATIENT APPLIANCES,Medicine,NHS LOGISTICS,1012007930,0.63,
Department of Health,Salisbury NHS Foundation Trust,13-May-11,TISSUES HAND TOWELS & TOILET PAPER,Critical care,NHS LOGISTICS,1012011882,0.63,
Department of Health,Salisbury NHS Foundation Trust,13-May-11,COOKING & KITCHEN UTENSILS,Surgery,NHS LOGISTICS,1012011882,0.63,
Department of Health,Salisbury NHS Foundation Trust,13-May-11,TISSUES HAND TOWELS & TOILET PAPER,Medicine,NHS LOGISTICS,1012011882,0.63,
Department of Health,Salisbury NHS Foundation Trust,13-May-11,STATIONERY SUNDRIES,Corporate Directorate,NHS LOGISTICS,1012007930,0.64,
Department of Health,Salisbury NHS Foundation Trust,13-May-11,COOKING & KITCHEN UTENSILS,Medicine,NHS LOGISTICS,1012007930,0.64,
Department of Health,Salisbury NHS Foundation Trust,13-May-11,ANAESTHETIC EQUIPMENT ACCESSORIES,Medicine,NHS LOGISTICS,1012007930,0.64,
Department of Health,Salisbury NHS Foundation Trust,13-May-11,STATIONERY SUNDRIES,Medicine,NHS LOGISTICS,1012011882,0.64,
Department of Health,Salisbury NHS Foundation Trust,13-May-11,DRESSINGS - PRE STERILE,Surgery,NHS LOGISTICS,1012007930,0.65,
Department of Health,Salisbury NHS Foundation Trust,13-May-11,MEDSURGCONS - OTHER,Medicine,NHS LOGISTICS,1012007930,0.65,
Department of Health,Salisbury NHS Foundation Trust,13-May-11,MEDSURGCONS - OTHER,Medicine,NHS LOGISTICS,1012007930,0.65,
Department of Health,Salisbury NHS Foundation Trust,13-May-11,DISPOSABLE THEATRE DRAPES WIPES,Clinical Support and Family Services,NHS LOGISTICS,1012007930,0.65,
Department of Health,Salisbury NHS Foundation Trust,13-May-11,ELECTRICAL EQUIPMENT x,Clinical Support and Family Services,NHS LOGISTICS,1012007930,0.65,
Department of Health,Salisbury NHS Foundation Trust,13-May-11,OTHER MEDICAL SUPPLIES,Clinical Support and Family Services,NHS LOGISTICS,1012007930,0.65,
Department of Health,Salisbury NHS Foundation Trust,13-May-11,MEDSURGCONS - OTHER,Surgery,NHS LOGISTICS,1012007930,0.65,
Department of Health,Salisbury NHS Foundation Trust,13-May-11,MEDSURGCONS - OTHER,Critical care,NHS LOGISTICS,1012007930,0.65,
Department of Health,Salisbury NHS Foundation Trust,13-May-11,MEDSURGCONS - OTHER,Critical care,NHS LOGISTICS,1012007930,0.65,
Department of Health,Salisbury NHS Foundation Trust,13-May-11,OTHER MEDICAL SUPPLIES,Surgery,NHS LOGISTICS,1012007930,0.65,
Department of Health,Salisbury NHS Foundation Trust,13-May-11,COOKING & KITCHEN UTENSILS,Critical care,NHS LOGISTICS,1012007930,0.65,
Department of Health,Salisbury NHS Foundation Trust,13-May-11,DRESSINGS - PRE STERILE,Clinical Support and Family Services,NHS LOGISTICS,1012007930,0.66,
Department of Health,Salisbury NHS Foundation Trust,13-May-11,PAPER ITEMS GENERAL STATIONERY SUNDRIES,Clinical Support and Family Services,NHS LOGISTICS,1012007930,0.66,
Department of Health,Salisbury NHS Foundation Trust,13-May-11,PATIENTS INCONTINENCE,Medicine,NHS LOGISTICS,1012007930,0.66,
Department of Health,Salisbury NHS Foundation Trust,13-May-11,MEDSURGCONS - OTHER,Clinical Support and Family Services,NHS LOGISTICS,1012007930,0.66,
Department of Health,Salisbury NHS Foundation Trust,13-May-11,MEDSURGCONS - OTHER,Surgery,NHS LOGISTICS,1012007930,0.66,
Department of Health,Salisbury NHS Foundation Trust,13-May-11,MEDSURGCONS - OTHER,Critical care,NHS LOGISTICS,1012007930,0.66,
Department of Health,Salisbury NHS Foundation Trust,13-May-11,MEDSURGCONS - OTHER,Surgery,NHS LOGISTICS,1012007930,0.66,
Department of Health,Salisbury NHS Foundation Trust,13-May-11,DRESSINGS - PRE STERILE,Clinical Support and Family Services,NHS LOGISTICS,1012011882,0.66,
Department of Health,Salisbury NHS Foundation Trust,13-May-11,DRESSINGS  -  PROCEDURE PACKS,Clinical Support and Family Services,NHS LOGISTICS,1012007930,0.67,
Department of Health,Salisbury NHS Foundation Trust,13-May-11,DRESSINGS  -  PROCEDURE PACKS,Clinical Support and Family Services,NHS LOGISTICS,1012007930,0.67,
Department of Health,Salisbury NHS Foundation Trust,13-May-11,DRESSINGS  -  PROCEDURE PACKS,Medicine,NHS LOGISTICS,1012007930,0.67,
Department of Health,Salisbury NHS Foundation Trust,13-May-11,DRESSINGS  -  PROCEDURE PACKS,Medicine,NHS LOGISTICS,1012007930,0.67,
Department of Health,Salisbury NHS Foundation Trust,13-May-11,ANAESTHETIC EQUIPMENT ACCESSORIES,Medicine,NHS LOGISTICS,1012007930,0.67,
Department of Health,Salisbury NHS Foundation Trust,13-May-11,DRESSINGS - PRE STERILE,Medicine,NHS LOGISTICS,1012007930,0.67,
Department of Health,Salisbury NHS Foundation Trust,13-May-11,PATIENT APPLIANCES,Medicine,NHS LOGISTICS,1012007930,0.67,
Department of Health,Salisbury NHS Foundation Trust,13-May-11,ANAESTHETIC EQUIPMENT ACCESSORIES,Medicine,NHS LOGISTICS,1012007930,0.67,
Department of Health,Salisbury NHS Foundation Trust,13-May-11,SURGICAL INSTRUMENTS: GENERAL,Surgery,NHS LOGISTICS,1012007930,0.67,
Department of Health,Salisbury NHS Foundation Trust,13-May-11,STATIONERY SUNDRIES,Medicine,NHS LOGISTICS,1012011882,0.67,
Department of Health,Salisbury NHS Foundation Trust,13-May-11,DRESSINGS  -  PROCEDURE PACKS,Medicine,NHS LOGISTICS,1012011882,0.67,
Department of Health,Salisbury NHS Foundation Trust,13-May-11,DRESSINGS  -  PROCEDURE PACKS,Critical care,NHS LOGISTICS,1012011882,0.67,
Department of Health,Salisbury NHS Foundation Trust,13-May-11,COOKING & KITCHEN UTENSILS,Medicine,NHS LOGISTICS,1012007930,0.68,
Department of Health,Salisbury NHS Foundation Trust,13-May-11,BAGS SACKS - OTHER,Clinical Support and Family Services,NHS LOGISTICS,1012007930,0.68,
Department of Health,Salisbury NHS Foundation Trust,13-May-11,CLEANING MATERIALS PRODUCTS SUNDRIES,Human Resources,NHS LOGISTICS,1012007930,0.68,
Department of Health,Salisbury NHS Foundation Trust,13-May-11,CLEANING MATERIALS PRODUCTS SUNDRIES,Critical care,NHS LOGISTICS,1012007930,0.68,
Department of Health,Salisbury NHS Foundation Trust,13-May-11,M & S EQUIPELECTEQUIPINST - OTHER,Medicine,NHS LOGISTICS,1012007930,0.69,
Department of Health,Salisbury NHS Foundation Trust,13-May-11,M & S EQUIPELECTEQUIPINST - OTHER,Medicine,NHS LOGISTICS,1012007930,0.69,
Department of Health,Salisbury NHS Foundation Trust,13-May-11,M & S EQUIPELECTEQUIPINST - OTHER,Medicine,NHS LOGISTICS,1012007930,0.69,
Department of Health,Salisbury NHS Foundation Trust,13-May-11,M & S EQUIPELECTEQUIPINST - OTHER,Medicine,NHS LOGISTICS,1012007930,0.69,
Department of Health,Salisbury NHS Foundation Trust,13-May-11,M & S EQUIPELECTEQUIPINST - OTHER,Medicine,NHS LOGISTICS,1012007930,0.69,
Department of Health,Salisbury NHS Foundation Trust,13-May-11,M & S EQUIPELECTEQUIPINST - OTHER,Surgery,NHS LOGISTICS,1012007930,0.69,
Department of Health,Salisbury NHS Foundation Trust,13-May-11,M & S EQUIPELECTEQUIPINST - OTHER,Medicine,NHS LOGISTICS,1012007930,0.69,
Department of Health,Salisbury NHS Foundation Trust,13-May-11,DRESSINGS - PRE STERILE,Medicine,NHS LOGISTICS,1012007930,0.69,
Department of Health,Salisbury NHS Foundation Trust,13-May-11,M & S EQUIPELECTEQUIPINST - OTHER,Medicine,NHS LOGISTICS,1012007930,0.69,
Department of Health,Salisbury NHS Foundation Trust,13-May-11,PAPER ITEMS GENERAL STATIONERY SUNDRIES,Surgery,NHS LOGISTICS,1012007930,0.7,
Department of Health,Salisbury NHS Foundation Trust,13-May-11,SURGICAL INSTRUMENTS: GENERAL,Medicine,NHS LOGISTICS,1012007930,0.7,
Department of Health,Salisbury NHS Foundation Trust,13-May-11,ELECTRICAL EQUIPMENT x,Surgery,NHS LOGISTICS,1012007930,0.7,
Department of Health,Salisbury NHS Foundation Trust,13-May-11,SURGICAL INSTRUMENTS: GENERAL,Clinical Support and Family Services,NHS LOGISTICS,1012007930,0.7,
Department of Health,Salisbury NHS Foundation Trust,13-May-11,SURGICAL INSTRUMENTS: GENERAL,Surgery,NHS LOGISTICS,1012007930,0.7,
Department of Health,Salisbury NHS Foundation Trust,13-May-11,SURGICAL INSTRUMENTS: GENERAL,Critical care,NHS LOGISTICS,1012007930,0.7,
Department of Health,Salisbury NHS Foundation Trust,13-May-11,PATIENT APPLIANCES,Medicine,NHS LOGISTICS,1012007930,0.7,
Department of Health,Salisbury NHS Foundation Trust,13-May-11,PATIENT APPLIANCES,Medicine,NHS LOGISTICS,1012007930,0.7,
Department of Health,Salisbury NHS Foundation Trust,13-May-11,ANAESTHETIC EQUIPMENT ACCESSORIES,Medicine,NHS LOGISTICS,1012007930,0.7,
Department of Health,Salisbury NHS Foundation Trust,13-May-11,DRESSINGS - PRE STERILE,Clinical Support and Family Services,NHS LOGISTICS,1012011882,0.7,
Department of Health,Salisbury NHS Foundation Trust,13-May-11,MEDSURGCONS - OTHER,Medicine,NHS LOGISTICS,1012011882,0.7,
Department of Health,Salisbury NHS Foundation Trust,13-May-11,STATIONERY SUNDRIES,Medicine,NHS LOGISTICS,1012007930,0.71,
Department of Health,Salisbury NHS Foundation Trust,13-May-11,DRESSINGS - PRE STERILE,Medicine,NHS LOGISTICS,1012007930,0.71,
Department of Health,Salisbury NHS Foundation Trust,13-May-11,DRESSINGS - PRE STERILE,Medicine,NHS LOGISTICS,1012007930,0.71,
Department of Health,Salisbury NHS Foundation Trust,13-May-11,STATIONERY SUNDRIES,Nursing Directorate,NHS LOGISTICS,1012007930,0.72,
Department of Health,Salisbury NHS Foundation Trust,13-May-11,DRESSINGS  -  PROCEDURE PACKS,Medicine,NHS LOGISTICS,1012007930,0.72,
Department of Health,Salisbury NHS Foundation Trust,13-May-11,PAPER ITEMS GENERAL STATIONERY SUNDRIES,Clinical Support and Family Services,NHS LOGISTICS,1012007930,0.72,
Department of Health,Salisbury NHS Foundation Trust,13-May-11,OTHER MEDICAL SUPPLIES,Medicine,NHS LOGISTICS,1012007930,0.72,
Department of Health,Salisbury NHS Foundation Trust,13-May-11,TISSUES HAND TOWELS & TOILET PAPER,Clinical Support and Family Services,NHS LOGISTICS,1012007930,0.72,
Department of Health,Salisbury NHS Foundation Trust,13-May-11,SURGICAL INSTRUMENTS: GENERAL,Clinical Support and Family Services,NHS LOGISTICS,1012007930,0.72,
Department of Health,Salisbury NHS Foundation Trust,13-May-11,OTHER MEDICAL SUPPLIES,Clinical Support and Family Services,NHS LOGISTICS,1012007930,0.72,
Department of Health,Salisbury NHS Foundation Trust,13-May-11,DISPOSABLE THEATRE DRAPES WIPES,Clinical Support and Family Services,NHS LOGISTICS,1012007930,0.72,
Department of Health,Salisbury NHS Foundation Trust,13-May-11,TISSUES HAND TOWELS & TOILET PAPER,Medicine,NHS LOGISTICS,1012007930,0.72,
Department of Health,Salisbury NHS Foundation Trust,13-May-11,OTHER MEDICAL SUPPLIES,Medicine,NHS LOGISTICS,1012007930,0.72,
Department of Health,Salisbury NHS Foundation Trust,13-May-11,DRESSINGS  -  PROCEDURE PACKS,Surgery,NHS LOGISTICS,1012007930,0.72,
Department of Health,Salisbury NHS Foundation Trust,13-May-11,DRESSINGS  -  PROCEDURE PACKS,Critical care,NHS LOGISTICS,1012007930,0.72,
Department of Health,Salisbury NHS Foundation Trust,13-May-11,TISSUES HAND TOWELS & TOILET PAPER,Medicine,NHS LOGISTICS,1012007930,0.72,
Department of Health,Salisbury NHS Foundation Trust,13-May-11,BAGS SACKS - OTHER,Critical care,NHS LOGISTICS,1012007930,0.72,
Department of Health,Salisbury NHS Foundation Trust,13-May-11,MEDSURGCONS - OTHER,Medicine,NHS LOGISTICS,1012007930,0.72,
Department of Health,Salisbury NHS Foundation Trust,13-May-11,DRESSINGS  -  PROCEDURE PACKS,Medicine,NHS LOGISTICS,1012007930,0.72,
Department of Health,Salisbury NHS Foundation Trust,13-May-11,STATIONERY SUNDRIES,Clinical Support and Family Services,NHS LOGISTICS,1012011882,0.72,
Department of Health,Salisbury NHS Foundation Trust,13-May-11,PAPER ITEMS GENERAL STATIONERY SUNDRIES,Clinical Support and Family Services,NHS LOGISTICS,1012011882,0.72,
Department of Health,Salisbury NHS Foundation Trust,13-May-11,PAPER ITEMS GENERAL STATIONERY SUNDRIES,Clinical Support and Family Services,NHS LOGISTICS,1012011882,0.72,
Department of Health,Salisbury NHS Foundation Trust,13-May-11,DRESSINGS  -  PROCEDURE PACKS,Medicine,NHS LOGISTICS,1012011882,0.72,
Department of Health,Salisbury NHS Foundation Trust,13-May-11,PAPER ITEMS GENERAL STATIONERY SUNDRIES,Surgery,NHS LOGISTICS,1012007930,0.73,
Department of Health,Salisbury NHS Foundation Trust,13-May-11,TOILETRIES PERSONAL HYGIENE PRODUCTS,Medicine,NHS LOGISTICS,1012007930,0.73,
Department of Health,Salisbury NHS Foundation Trust,13-May-11,BAGS SACKS - OTHER,Medicine,NHS LOGISTICS,1012007930,0.73,
Department of Health,Salisbury NHS Foundation Trust,13-May-11,COOKING & KITCHEN UTENSILS,Critical care,NHS LOGISTICS,1012007930,0.73,
Department of Health,Salisbury NHS Foundation Trust,13-May-11,OTHER MEDICAL SUPPLIES,Clinical Support and Family Services,NHS LOGISTICS,1012007930,0.73,
Department of Health,Salisbury NHS Foundation Trust,13-May-11,OTHER MEDICAL SUPPLIES,Medicine,NHS LOGISTICS,1012007930,0.73,
Department of Health,Salisbury NHS Foundation Trust,13-May-11,BAGS SACKS - OTHER,Medicine,NHS LOGISTICS,1012007930,0.73,
Department of Health,Salisbury NHS Foundation Trust,13-May-11,OTHER MEDICAL SUPPLIES,Clinical Support and Family Services,NHS LOGISTICS,1012007930,0.73,
Department of Health,Salisbury NHS Foundation Trust,13-May-11,BAGS SACKS - OTHER,Medicine,NHS LOGISTICS,1012007930,0.73,
Department of Health,Salisbury NHS Foundation Trust,13-May-11,BAGS SACKS - OTHER,Surgery,NHS LOGISTICS,1012007930,0.73,
Department of Health,Salisbury NHS Foundation Trust,13-May-11,STATIONERY SUNDRIES,Clinical Support and Family Services,NHS LOGISTICS,1012007930,0.74,
Department of Health,Salisbury NHS Foundation Trust,13-May-11,MEDSURGCONS - OTHER,Clinical Support and Family Services,NHS LOGISTICS,1012007930,0.74,
Department of Health,Salisbury NHS Foundation Trust,13-May-11,MEDSURGCONS - OTHER,Medicine,NHS LOGISTICS,1012007930,0.74,
Department of Health,Salisbury NHS Foundation Trust,13-May-11,PATIENTS INCONTINENCE,Surgery,NHS LOGISTICS,1012007930,0.74,
Department of Health,Salisbury NHS Foundation Trust,13-May-11,TISSUES HAND TOWELS & TOILET PAPER,Critical care,NHS LOGISTICS,1012007930,0.74,
Department of Health,Salisbury NHS Foundation Trust,13-May-11,MEDSURGCONS - OTHER,Critical care,NHS LOGISTICS,1012007930,0.74,
Department of Health,Salisbury NHS Foundation Trust,13-May-11,OTHER MEDICAL SUPPLIES,Medicine,NHS LOGISTICS,1012007930,0.74,
Department of Health,Salisbury NHS Foundation Trust,13-May-11,OTHER MEDICAL SUPPLIES,Medicine,NHS LOGISTICS,1012007930,0.74,
Department of Health,Salisbury NHS Foundation Trust,13-May-11,COOKING & KITCHEN UTENSILS,Medicine,NHS LOGISTICS,1012007930,0.74,
Department of Health,Salisbury NHS Foundation Trust,13-May-11,OTHER MEDICAL SUPPLIES,Medicine,NHS LOGISTICS,1012007930,0.74,
Department of Health,Salisbury NHS Foundation Trust,13-May-11,TOILETRIES PERSONAL HYGIENE PRODUCTS,Surgery,NHS LOGISTICS,1012007930,0.74,
Department of Health,Salisbury NHS Foundation Trust,13-May-11,SURGICAL INSTRUMENTS: GENERAL,Medicine,NHS LOGISTICS,1012007930,0.75,
Department of Health,Salisbury NHS Foundation Trust,13-May-11,DISPOSABLE THEATRE DRAPES WIPES,Clinical Support and Family Services,NHS LOGISTICS,1012007930,0.75,
Department of Health,Salisbury NHS Foundation Trust,13-May-11,TUBES,Surgery,NHS LOGISTICS,1012007930,0.75,
Department of Health,Salisbury NHS Foundation Trust,13-May-11,STATIONERY SUNDRIES,Clinical Support and Family Services,NHS LOGISTICS,1012011882,0.75,
Department of Health,Salisbury NHS Foundation Trust,13-May-11,SURGICAL INSTRUMENTS: GENERAL,Medicine,NHS LOGISTICS,1012011882,0.75,
Department of Health,Salisbury NHS Foundation Trust,13-May-11,M & S EQUIPELECTEQUIPINST - OTHER,Medicine,NHS LOGISTICS,1012007930,0.76,
Department of Health,Salisbury NHS Foundation Trust,13-May-11,TOILETRIES PERSONAL HYGIENE PRODUCTS,Surgery,NHS LOGISTICS,1012007930,0.76,
Department of Health,Salisbury NHS Foundation Trust,13-May-11,M & S EQUIPELECTEQUIPINST - OTHER,Clinical Support and Family Services,NHS LOGISTICS,1012007930,0.76,
Department of Health,Salisbury NHS Foundation Trust,13-May-11,MEDSURGCONS - OTHER,Clinical Support and Family Services,NHS LOGISTICS,1012007930,0.76,
Department of Health,Salisbury NHS Foundation Trust,13-May-11,MEDSURGCONS - OTHER,Critical care,NHS LOGISTICS,1012007930,0.76,
Department of Health,Salisbury NHS Foundation Trust,13-May-11,MEDSURGCONS - OTHER,Clinical Support and Family Services,NHS LOGISTICS,1012007930,0.76,
Department of Health,Salisbury NHS Foundation Trust,13-May-11,M & S EQUIPELECTEQUIPINST - OTHER,Clinical Support and Family Services,NHS LOGISTICS,1012007930,0.76,
Department of Health,Salisbury NHS Foundation Trust,13-May-11,LIQUID REFRESHMENTS,Facilities Directorate,NHS LOGISTICS,1012007930,0.76,
Department of Health,Salisbury NHS Foundation Trust,13-May-11,LIQUID REFRESHMENTS,Facilities Directorate,NHS LOGISTICS,1012007930,0.76,
Department of Health,Salisbury NHS Foundation Trust,13-May-11,MEDSURGCONS - OTHER,Critical care,NHS LOGISTICS,1012007930,0.76,
Department of Health,Salisbury NHS Foundation Trust,13-May-11,MEDSURGCONS - OTHER,Medicine,NHS LOGISTICS,1012007930,0.76,
Department of Health,Salisbury NHS Foundation Trust,13-May-11,M & S EQUIPELECTEQUIPINST - OTHER,Medicine,NHS LOGISTICS,1012007930,0.76,
Department of Health,Salisbury NHS Foundation Trust,13-May-11,M & S EQUIPELECTEQUIPINST - OTHER,Medicine,NHS LOGISTICS,1012007930,0.76,
Department of Health,Salisbury NHS Foundation Trust,13-May-11,MEDSURGCONS - OTHER,Medicine,NHS LOGISTICS,1012007930,0.76,
Department of Health,Salisbury NHS Foundation Trust,13-May-11,MEDSURGCONS - OTHER,Medicine,NHS LOGISTICS,1012007930,0.76,
Department of Health,Salisbury NHS Foundation Trust,13-May-11,M & S EQUIPELECTEQUIPINST - OTHER,Medicine,NHS LOGISTICS,1012007930,0.76,
Department of Health,Salisbury NHS Foundation Trust,13-May-11,MEDSURGCONS - OTHER,Critical care,NHS LOGISTICS,1012007930,0.76,
Department of Health,Salisbury NHS Foundation Trust,13-May-11,MEDSURGCONS - OTHER,Clinical Support and Family Services,NHS LOGISTICS,1012007930,0.76,
Department of Health,Salisbury NHS Foundation Trust,13-May-11,TOILETRIES PERSONAL HYGIENE PRODUCTS,Medicine,NHS LOGISTICS,1012007930,0.76,
Department of Health,Salisbury NHS Foundation Trust,13-May-11,M & S EQUIPELECTEQUIPINST - OTHER,Medicine,NHS LOGISTICS,1012011882,0.76,
Department of Health,Salisbury NHS Foundation Trust,13-May-11,M & S EQUIPELECTEQUIPINST - OTHER,Clinical Support and Family Services,NHS LOGISTICS,1012011882,0.76,
Department of Health,Salisbury NHS Foundation Trust,13-May-11,M & S EQUIPELECTEQUIPINST - OTHER,Clinical Support and Family Services,NHS LOGISTICS,1012011882,0.76,
Department of Health,Salisbury NHS Foundation Trust,13-May-11,M & S EQUIPELECTEQUIPINST - OTHER,Medicine,NHS LOGISTICS,1012011882,0.76,
Department of Health,Salisbury NHS Foundation Trust,13-May-11,M & S EQUIPELECTEQUIPINST - OTHER,Surgery,NHS LOGISTICS,1012011882,0.76,
Department of Health,Salisbury NHS Foundation Trust,13-May-11,DRESSINGS  -  PROCEDURE PACKS,Clinical Support and Family Services,NHS LOGISTICS,1012007930,0.77,
Department of Health,Salisbury NHS Foundation Trust,13-May-11,STATIONERY SUNDRIES,Medicine,NHS LOGISTICS,1012007930,0.77,
Department of Health,Salisbury NHS Foundation Trust,13-May-11,STATIONERY SUNDRIES,Surgery,NHS LOGISTICS,1012007930,0.77,
Department of Health,Salisbury NHS Foundation Trust,13-May-11,STATIONERY SUNDRIES,Surgery,NHS LOGISTICS,1012007930,0.77,
Department of Health,Salisbury NHS Foundation Trust,13-May-11,DRESSINGS  -  PROCEDURE PACKS,Clinical Support and Family Services,NHS LOGISTICS,1012007930,0.77,
Department of Health,Salisbury NHS Foundation Trust,13-May-11,DRESSINGS  -  PROCEDURE PACKS,Medicine,NHS LOGISTICS,1012007930,0.77,
Department of Health,Salisbury NHS Foundation Trust,13-May-11,DRESSINGS  -  PROCEDURE PACKS,Medicine,NHS LOGISTICS,1012007930,0.77,
Department of Health,Salisbury NHS Foundation Trust,13-May-11,DRESSINGS - PRE STERILE,Clinical Support and Family Services,NHS LOGISTICS,1012007930,0.78,
Department of Health,Salisbury NHS Foundation Trust,13-May-11,DISPOSABLE THEATRE DRAPES WIPES,Medicine,NHS LOGISTICS,1012007930,0.78,
Department of Health,Salisbury NHS Foundation Trust,13-May-11,DISPOSABLE THEATRE DRAPES WIPES,Medicine,NHS LOGISTICS,1012007930,0.78,
Department of Health,Salisbury NHS Foundation Trust,13-May-11,DISPOSABLE THEATRE DRAPES WIPES,Clinical Support and Family Services,NHS LOGISTICS,1012007930,0.78,
Department of Health,Salisbury NHS Foundation Trust,13-May-11,DISPOSABLE THEATRE DRAPES WIPES,Clinical Support and Family Services,NHS LOGISTICS,1012007930,0.78,
Department of Health,Salisbury NHS Foundation Trust,13-May-11,DISPOSABLE THEATRE DRAPES WIPES,Medicine,NHS LOGISTICS,1012007930,0.78,
Department of Health,Salisbury NHS Foundation Trust,13-May-11,DISPOSABLE THEATRE DRAPES WIPES,Medicine,NHS LOGISTICS,1012007930,0.78,
Department of Health,Salisbury NHS Foundation Trust,13-May-11,DISPOSABLE THEATRE DRAPES WIPES,Surgery,NHS LOGISTICS,1012007930,0.78,
Department of Health,Salisbury NHS Foundation Trust,13-May-11,DISPOSABLE THEATRE DRAPES WIPES,Medicine,NHS LOGISTICS,1012007930,0.78,
Department of Health,Salisbury NHS Foundation Trust,13-May-11,DISPOSABLE THEATRE DRAPES WIPES,Surgery,NHS LOGISTICS,1012007930,0.78,
Department of Health,Salisbury NHS Foundation Trust,13-May-11,DRESSINGS - PRE STERILE,Clinical Support and Family Services,NHS LOGISTICS,1012007930,0.79,
Department of Health,Salisbury NHS Foundation Trust,13-May-11,DRESSINGS - PRE STERILE,Critical care,NHS LOGISTICS,1012007930,0.79,
Department of Health,Salisbury NHS Foundation Trust,13-May-11,STATIONERY SUNDRIES,Clinical Support and Family Services,NHS LOGISTICS,1012011882,0.79,
Department of Health,Salisbury NHS Foundation Trust,13-May-11,PAPER ITEMS GENERAL STATIONERY SUNDRIES,Human Resources,NHS LOGISTICS,1012007930,0.8,
Department of Health,Salisbury NHS Foundation Trust,13-May-11,DRESSINGS  -  PROCEDURE PACKS,Medicine,NHS LOGISTICS,1012007930,0.8,
Department of Health,Salisbury NHS Foundation Trust,13-May-11,DRESSINGS  -  PROCEDURE PACKS,Medicine,NHS LOGISTICS,1012007930,0.8,
Department of Health,Salisbury NHS Foundation Trust,13-May-11,DRESSINGS - PRE STERILE,Medicine,NHS LOGISTICS,1012007930,0.8,
Department of Health,Salisbury NHS Foundation Trust,13-May-11,DRESSINGS  -  PROCEDURE PACKS,Medicine,NHS LOGISTICS,1012007930,0.8,
Department of Health,Salisbury NHS Foundation Trust,13-May-11,DRESSINGS  -  PROCEDURE PACKS,Medicine,NHS LOGISTICS,1012007930,0.8,
Department of Health,Salisbury NHS Foundation Trust,13-May-11,DRESSINGS  -  PROCEDURE PACKS,Critical care,NHS LOGISTICS,1012007930,0.8,
Department of Health,Salisbury NHS Foundation Trust,13-May-11,DRESSINGS  -  PROCEDURE PACKS,Medicine,NHS LOGISTICS,1012007930,0.8,
Department of Health,Salisbury NHS Foundation Trust,13-May-11,MEDSURGCONS - OTHER,Medicine,NHS LOGISTICS,1012007930,0.8,
Department of Health,Salisbury NHS Foundation Trust,13-May-11,DRESSINGS - PRE STERILE,Medicine,NHS LOGISTICS,1012007930,0.8,
Department of Health,Salisbury NHS Foundation Trust,13-May-11,DRESSINGS - PRE STERILE,Medicine,NHS LOGISTICS,1012007930,0.8,
Department of Health,Salisbury NHS Foundation Trust,13-May-11,MEDSURGCONS - OTHER,Surgery,NHS LOGISTICS,1012007930,0.8,
Department of Health,Salisbury NHS Foundation Trust,13-May-11,PATIENTS INCONTINENCE,Medicine,NHS LOGISTICS,1012007930,0.8,
Department of Health,Salisbury NHS Foundation Trust,13-May-11,PATIENTS INCONTINENCE,Critical care,NHS LOGISTICS,1012007930,0.8,
Department of Health,Salisbury NHS Foundation Trust,13-May-11,MEDSURGCONS - OTHER,Medicine,NHS LOGISTICS,1012007930,0.8,
Department of Health,Salisbury NHS Foundation Trust,13-May-11,MEDSURGCONS - OTHER,Surgery,NHS LOGISTICS,1012007930,0.8,
Department of Health,Salisbury NHS Foundation Trust,13-May-11,DRESSINGS  -  PROCEDURE PACKS,Critical care,NHS LOGISTICS,1012011882,0.8,
Department of Health,Salisbury NHS Foundation Trust,13-May-11,MEDSURGCONS - OTHER,Medicine,NHS LOGISTICS,1012011882,0.8,
Department of Health,Salisbury NHS Foundation Trust,13-May-11,STATIONERY SUNDRIES,Medicine,NHS LOGISTICS,1012007930,0.81,
Department of Health,Salisbury NHS Foundation Trust,13-May-11,DRESSINGS - PRE STERILE,Medicine,NHS LOGISTICS,1012007930,0.81,
Department of Health,Salisbury NHS Foundation Trust,13-May-11,DRESSINGS - PRE STERILE,Medicine,NHS LOGISTICS,1012007930,0.81,
Department of Health,Salisbury NHS Foundation Trust,13-May-11,DRESSINGS - PRE STERILE,Medicine,NHS LOGISTICS,1012007930,0.81,
Department of Health,Salisbury NHS Foundation Trust,13-May-11,DRESSINGS - PRE STERILE,Medicine,NHS LOGISTICS,1012007930,0.81,
Department of Health,Salisbury NHS Foundation Trust,13-May-11,STATIONERY SUNDRIES,Clinical Support and Family Services,NHS LOGISTICS,1012011882,0.81,
Department of Health,Salisbury NHS Foundation Trust,13-May-11,ELECTRICAL EQUIPMENT x,Clinical Support and Family Services,NHS LOGISTICS,1012011882,0.81,
Department of Health,Salisbury NHS Foundation Trust,13-May-11,DRESSINGS - PRE STERILE,Medicine,NHS LOGISTICS,1012007930,0.82,
Department of Health,Salisbury NHS Foundation Trust,13-May-11,DRESSINGS - PRE STERILE,Clinical Support and Family Services,NHS LOGISTICS,1012007930,0.82,
Department of Health,Salisbury NHS Foundation Trust,13-May-11,TISSUES HAND TOWELS & TOILET PAPER,Clinical Support and Family Services,NHS LOGISTICS,1012007930,0.82,
Department of Health,Salisbury NHS Foundation Trust,13-May-11,DRESSINGS - PRE STERILE,Medicine,NHS LOGISTICS,1012007930,0.82,
Department of Health,Salisbury NHS Foundation Trust,13-May-11,DISPOSABLE THEATRE DRAPES WIPES,Critical care,NHS LOGISTICS,1012007930,0.82,
Department of Health,Salisbury NHS Foundation Trust,13-May-11,DRESSINGS - PRE STERILE,Medicine,NHS LOGISTICS,1012007930,0.82,
Department of Health,Salisbury NHS Foundation Trust,13-May-11,DRESSINGS - PRE STERILE,Medicine,NHS LOGISTICS,1012007930,0.82,
Department of Health,Salisbury NHS Foundation Trust,13-May-11,DRESSINGS - PRE STERILE,Medicine,NHS LOGISTICS,1012007930,0.82,
Department of Health,Salisbury NHS Foundation Trust,13-May-11,DRESSINGS - PRE STERILE,Medicine,NHS LOGISTICS,1012007930,0.82,
Department of Health,Salisbury NHS Foundation Trust,13-May-11,DRESSINGS - PRE STERILE,Surgery,NHS LOGISTICS,1012011882,0.82,
Department of Health,Salisbury NHS Foundation Trust,13-May-11,TISSUES HAND TOWELS & TOILET PAPER,Clinical Support and Family Services,NHS LOGISTICS,1012007930,0.83,
Department of Health,Salisbury NHS Foundation Trust,13-May-11,MEDSURGCONS - OTHER,Clinical Support and Family Services,NHS LOGISTICS,1012007930,0.83,
Department of Health,Salisbury NHS Foundation Trust,13-May-11,STATIONERY SUNDRIES,Clinical Support and Family Services,NHS LOGISTICS,1012007930,0.83,
Department of Health,Salisbury NHS Foundation Trust,13-May-11,MEDSURGCONS - OTHER,Critical care,NHS LOGISTICS,1012007930,0.83,
Department of Health,Salisbury NHS Foundation Trust,13-May-11,OTHER MEDICAL SUPPLIES,Clinical Support and Family Services,NHS LOGISTICS,1012007930,0.83,
Department of Health,Salisbury NHS Foundation Trust,13-May-11,SURGICAL INSTRUMENTS: GENERAL,Critical care,NHS LOGISTICS,1012007930,0.83,
Department of Health,Salisbury NHS Foundation Trust,13-May-11,DRESSINGS - PRE STERILE,Surgery,NHS LOGISTICS,1012007930,0.83,
Department of Health,Salisbury NHS Foundation Trust,13-May-11,OTHER MEDICAL SUPPLIES,Critical care,NHS LOGISTICS,1012007930,0.83,
Department of Health,Salisbury NHS Foundation Trust,13-May-11,DRESSINGS - PRE STERILE,Medicine,NHS LOGISTICS,1012007930,0.83,
Department of Health,Salisbury NHS Foundation Trust,13-May-11,MEDSURGCONS - OTHER,Medicine,NHS LOGISTICS,1012007930,0.83,
Department of Health,Salisbury NHS Foundation Trust,13-May-11,MEDSURGCONS - OTHER,Surgery,NHS LOGISTICS,1012007930,0.83,
Department of Health,Salisbury NHS Foundation Trust,13-May-11,TISSUES HAND TOWELS & TOILET PAPER,Medicine,NHS LOGISTICS,1012011882,0.83,
Department of Health,Salisbury NHS Foundation Trust,13-May-11,DRESSINGS - PRE STERILE,Medicine,NHS LOGISTICS,1012007930,0.84,
Department of Health,Salisbury NHS Foundation Trust,13-May-11,OTHER MEDICAL SUPPLIES,Critical care,NHS LOGISTICS,1012007930,0.84,
Department of Health,Salisbury NHS Foundation Trust,13-May-11,STATIONERY SUNDRIES,Medicine,NHS LOGISTICS,1012007930,0.84,
Department of Health,Salisbury NHS Foundation Trust,13-May-11,BAGS SACKS - OTHER,Facilities Directorate,NHS LOGISTICS,1012007930,0.84,
Department of Health,Salisbury NHS Foundation Trust,13-May-11,HABERDASHERY,Clinical Support and Family Services,NHS LOGISTICS,1012007930,0.84,
Department of Health,Salisbury NHS Foundation Trust,13-May-11,DRESSINGS  -  PROCEDURE PACKS,Critical care,NHS LOGISTICS,1012007930,0.84,
Department of Health,Salisbury NHS Foundation Trust,13-May-11,LIQUID REFRESHMENTS,Facilities Directorate,NHS LOGISTICS,1012007930,0.84,
Department of Health,Salisbury NHS Foundation Trust,13-May-11,BAGS SACKS - OTHER,Surgery,NHS LOGISTICS,1012007930,0.84,
Department of Health,Salisbury NHS Foundation Trust,13-May-11,OTHER MEDICAL SUPPLIES,Surgery,NHS LOGISTICS,1012007930,0.84,
Department of Health,Salisbury NHS Foundation Trust,13-May-11,DRESSINGS - PRE STERILE,Surgery,NHS LOGISTICS,1012007930,0.84,
Department of Health,Salisbury NHS Foundation Trust,13-May-11,DRESSINGS  -  PROCEDURE PACKS,Clinical Support and Family Services,NHS LOGISTICS,1012007930,0.84,
Department of Health,Salisbury NHS Foundation Trust,13-May-11,MEDSURGCONS - OTHER,Medicine,NHS LOGISTICS,1012007930,0.84,
Department of Health,Salisbury NHS Foundation Trust,13-May-11,PATIENTS INCONTINENCE,Critical care,NHS LOGISTICS,1012007930,0.84,
Department of Health,Salisbury NHS Foundation Trust,13-May-11,DISPOSABLE THEATRE DRAPES WIPES,Medicine,NHS LOGISTICS,1012011882,0.84,
Department of Health,Salisbury NHS Foundation Trust,13-May-11,DRESSINGS - PRE STERILE,Surgery,NHS LOGISTICS,1012007930,0.85,
Department of Health,Salisbury NHS Foundation Trust,13-May-11,DRESSINGS - PRE STERILE,Medicine,NHS LOGISTICS,1012007930,0.85,
Department of Health,Salisbury NHS Foundation Trust,13-May-11,SURGICAL INSTRUMENTS: GENERAL,Clinical Support and Family Services,NHS LOGISTICS,1012007930,0.85,
Department of Health,Salisbury NHS Foundation Trust,13-May-11,SURGICAL INSTRUMENTS: GENERAL,Surgery,NHS LOGISTICS,1012007930,0.85,
Department of Health,Salisbury NHS Foundation Trust,13-May-11,MEDSURGCONS - OTHER,Medicine,NHS LOGISTICS,1012007930,0.85,
Department of Health,Salisbury NHS Foundation Trust,13-May-11,MEDSURGCONS - OTHER,Clinical Support and Family Services,NHS LOGISTICS,1012007930,0.85,
Department of Health,Salisbury NHS Foundation Trust,13-May-11,SURGICAL INSTRUMENTS: GENERAL,Medicine,NHS LOGISTICS,1012007930,0.85,
Department of Health,Salisbury NHS Foundation Trust,13-May-11,MEDSURGCONS - OTHER,Medicine,NHS LOGISTICS,1012007930,0.85,
Department of Health,Salisbury NHS Foundation Trust,13-May-11,SURGICAL INSTRUMENTS: GENERAL,Surgery,NHS LOGISTICS,1012007930,0.85,
Department of Health,Salisbury NHS Foundation Trust,13-May-11,SURGICAL INSTRUMENTS: GENERAL,Surgery,NHS LOGISTICS,1012007930,0.85,
Department of Health,Salisbury NHS Foundation Trust,13-May-11,MEDSURGCONS - OTHER,Medicine,NHS LOGISTICS,1012007930,0.85,
Department of Health,Salisbury NHS Foundation Trust,13-May-11,ANAESTHETIC EQUIPMENT ACCESSORIES,Medicine,NHS LOGISTICS,1012007930,0.85,
Department of Health,Salisbury NHS Foundation Trust,13-May-11,SURGICAL INSTRUMENTS: GENERAL,Medicine,NHS LOGISTICS,1012007930,0.85,
Department of Health,Salisbury NHS Foundation Trust,13-May-11,SURGICAL INSTRUMENTS: GENERAL,Surgery,NHS LOGISTICS,1012007930,0.85,
Department of Health,Salisbury NHS Foundation Trust,13-May-11,STATIONERY SUNDRIES,Clinical Support and Family Services,NHS LOGISTICS,1012011882,0.85,
Department of Health,Salisbury NHS Foundation Trust,13-May-11,STATIONERY SUNDRIES,Directorate of Finance and Procurement,NHS LOGISTICS,1012007930,0.86,
Department of Health,Salisbury NHS Foundation Trust,13-May-11,TISSUES HAND TOWELS & TOILET PAPER,Surgery,NHS LOGISTICS,1012007930,0.86,
Department of Health,Salisbury NHS Foundation Trust,13-May-11,OTHER MEDICAL SUPPLIES,Medicine,NHS LOGISTICS,1012007930,0.87,
Department of Health,Salisbury NHS Foundation Trust,13-May-11,DRESSINGS - PRE STERILE,Medicine,NHS LOGISTICS,1012007930,0.87,
Department of Health,Salisbury NHS Foundation Trust,13-May-11,PAPER ITEMS GENERAL STATIONERY SUNDRIES,Medicine,NHS LOGISTICS,1012007930,0.87,
Department of Health,Salisbury NHS Foundation Trust,13-May-11,ANAESTHETIC EQUIPMENT ACCESSORIES,Medicine,NHS LOGISTICS,1012007930,0.87,
Department of Health,Salisbury NHS Foundation Trust,13-May-11,DRESSINGS - PRE STERILE,Critical care,NHS LOGISTICS,1012007930,0.87,
Department of Health,Salisbury NHS Foundation Trust,13-May-11,STATIONERY SUNDRIES,Human Resources,NHS LOGISTICS,1012007930,0.87,
Department of Health,Salisbury NHS Foundation Trust,13-May-11,MEDSURGCONS - OTHER,Medicine,NHS LOGISTICS,1012007930,0.87,
Department of Health,Salisbury NHS Foundation Trust,13-May-11,DRESSINGS - PRE STERILE,Surgery,NHS LOGISTICS,1012007930,0.87,
Department of Health,Salisbury NHS Foundation Trust,13-May-11,DRESSINGS - PRE STERILE,Medicine,NHS LOGISTICS,1012007930,0.87,
Department of Health,Salisbury NHS Foundation Trust,13-May-11,OTHER MEDICAL SUPPLIES,Critical care,NHS LOGISTICS,1012007930,0.87,
Department of Health,Salisbury NHS Foundation Trust,13-May-11,DRESSINGS - PRE STERILE,Medicine,NHS LOGISTICS,1012007930,0.87,
Department of Health,Salisbury NHS Foundation Trust,13-May-11,OTHER MEDICAL SUPPLIES,Medicine,NHS LOGISTICS,1012011882,0.87,
Department of Health,Salisbury NHS Foundation Trust,13-May-11,STATIONERY SUNDRIES,Facilities Directorate,NHS LOGISTICS,1012007930,0.88,
Department of Health,Salisbury NHS Foundation Trust,13-May-11,CLEANING MATERIALS PRODUCTS SUNDRIES,Medicine,NHS LOGISTICS,1012007930,0.88,
Department of Health,Salisbury NHS Foundation Trust,13-May-11,OTHER MEDICAL SUPPLIES,Clinical Support and Family Services,NHS LOGISTICS,1012007930,0.88,
Department of Health,Salisbury NHS Foundation Trust,13-May-11,STATIONERY SUNDRIES,Human Resources,NHS LOGISTICS,1012007930,0.88,
Department of Health,Salisbury NHS Foundation Trust,13-May-11,OTHER MEDICAL SUPPLIES,Critical care,NHS LOGISTICS,1012007930,0.88,
Department of Health,Salisbury NHS Foundation Trust,13-May-11,DRESSINGS  -  PROCEDURE PACKS,Medicine,NHS LOGISTICS,1012011882,0.88,
Department of Health,Salisbury NHS Foundation Trust,13-May-11,DRESSINGS  -  PROCEDURE PACKS,Medicine,NHS LOGISTICS,1012011882,0.88,
Department of Health,Salisbury NHS Foundation Trust,13-May-11,PATIENT APPLIANCES,Medicine,NHS LOGISTICS,1012007930,0.89,
Department of Health,Salisbury NHS Foundation Trust,13-May-11,DRUGS,Critical care,NHS LOGISTICS,1012007930,0.89,
Department of Health,Salisbury NHS Foundation Trust,13-May-11,DRESSINGS - PRE STERILE,Medicine,NHS LOGISTICS,1012011882,0.89,
Department of Health,Salisbury NHS Foundation Trust,13-May-11,DRESSINGS  -  PROCEDURE PACKS,Surgery,NHS LOGISTICS,1012007930,0.9,
Department of Health,Salisbury NHS Foundation Trust,13-May-11,DRESSINGS  -  PROCEDURE PACKS,Medicine,NHS LOGISTICS,1012007930,0.9,
Department of Health,Salisbury NHS Foundation Trust,13-May-11,COOKING & KITCHEN UTENSILS,Surgery,NHS LOGISTICS,1012007930,0.9,
Department of Health,Salisbury NHS Foundation Trust,13-May-11,COOKING & KITCHEN UTENSILS,Surgery,NHS LOGISTICS,1012007930,0.9,
Department of Health,Salisbury NHS Foundation Trust,13-May-11,DRESSINGS - PRE STERILE,Medicine,NHS LOGISTICS,1012007930,0.9,
Department of Health,Salisbury NHS Foundation Trust,13-May-11,COOKING & KITCHEN UTENSILS,Critical care,NHS LOGISTICS,1012007930,0.9,
Department of Health,Salisbury NHS Foundation Trust,13-May-11,COOKING & KITCHEN UTENSILS,Surgery,NHS LOGISTICS,1012007930,0.9,
Department of Health,Salisbury NHS Foundation Trust,13-May-11,DRESSINGS - PRE STERILE,Medicine,NHS LOGISTICS,1012007930,0.9,
Department of Health,Salisbury NHS Foundation Trust,13-May-11,DRESSINGS - PRE STERILE,Medicine,NHS LOGISTICS,1012007930,0.9,
Department of Health,Salisbury NHS Foundation Trust,13-May-11,DRESSINGS  -  PROCEDURE PACKS,Surgery,NHS LOGISTICS,1012011882,0.9,
Department of Health,Salisbury NHS Foundation Trust,13-May-11,STATIONERY SUNDRIES,Clinical Support and Family Services,NHS LOGISTICS,1012007930,0.91,
Department of Health,Salisbury NHS Foundation Trust,13-May-11,STATIONERY SUNDRIES,Corporate Directorate,NHS LOGISTICS,1012007930,0.91,
Department of Health,Salisbury NHS Foundation Trust,13-May-11,STATIONERY SUNDRIES,Surgery,NHS LOGISTICS,1012007930,0.91,
Department of Health,Salisbury NHS Foundation Trust,13-May-11,DRESSINGS - PRE STERILE,Medicine,NHS LOGISTICS,1012007930,0.91,
Department of Health,Salisbury NHS Foundation Trust,13-May-11,DRESSINGS - PRE STERILE,Critical care,NHS LOGISTICS,1012007930,0.91,
Department of Health,Salisbury NHS Foundation Trust,13-May-11,DRESSINGS - PRE STERILE,Clinical Support and Family Services,NHS LOGISTICS,1012011882,0.91,
Department of Health,Salisbury NHS Foundation Trust,13-May-11,OTHER MEDICAL SUPPLIES,Medicine,NHS LOGISTICS,1012007930,0.92,
Department of Health,Salisbury NHS Foundation Trust,13-May-11,OTHER MEDICAL SUPPLIES,Medicine,NHS LOGISTICS,1012007930,0.92,
Department of Health,Salisbury NHS Foundation Trust,13-May-11,OTHER MEDICAL SUPPLIES,Clinical Support and Family Services,NHS LOGISTICS,1012007930,0.92,
Department of Health,Salisbury NHS Foundation Trust,13-May-11,STATIONERY SUNDRIES,Medicine,NHS LOGISTICS,1012011882,0.92,
Department of Health,Salisbury NHS Foundation Trust,13-May-11,STATIONERY SUNDRIES,Medicine,NHS LOGISTICS,1012007930,0.93,
Department of Health,Salisbury NHS Foundation Trust,13-May-11,PAPER ITEMS GENERAL STATIONERY SUNDRIES,Clinical Support and Family Services,NHS LOGISTICS,1012007930,0.93,
Department of Health,Salisbury NHS Foundation Trust,13-May-11,DISPOSABLE THEATRE DRAPES WIPES,Medicine,NHS LOGISTICS,1012007930,0.93,
Department of Health,Salisbury NHS Foundation Trust,13-May-11,ANAESTHETIC EQUIPMENT ACCESSORIES,Surgery,NHS LOGISTICS,1012007930,0.93,
Department of Health,Salisbury NHS Foundation Trust,13-May-11,OTHER MEDICAL SUPPLIES,Medicine,NHS LOGISTICS,1012007930,0.93,
Department of Health,Salisbury NHS Foundation Trust,13-May-11,DRESSINGS  -  PROCEDURE PACKS,Medicine,NHS LOGISTICS,1012007930,0.93,
Department of Health,Salisbury NHS Foundation Trust,13-May-11,OTHER MEDICAL SUPPLIES,Medicine,NHS LOGISTICS,1012007930,0.93,
Department of Health,Salisbury NHS Foundation Trust,13-May-11,OTHER MEDICAL SUPPLIES,Surgery,NHS LOGISTICS,1012007930,0.93,
Department of Health,Salisbury NHS Foundation Trust,13-May-11,ANAESTHETIC EQUIPMENT ACCESSORIES,Medicine,NHS LOGISTICS,1012007930,0.93,
Department of Health,Salisbury NHS Foundation Trust,13-May-11,COOKING & KITCHEN UTENSILS,Clinical Support and Family Services,NHS LOGISTICS,1012007930,0.93,
Department of Health,Salisbury NHS Foundation Trust,13-May-11,DRESSINGS  -  PROCEDURE PACKS,Medicine,NHS LOGISTICS,1012011882,0.93,
Department of Health,Salisbury NHS Foundation Trust,13-May-11,MEDSURGCONS - OTHER,Medicine,NHS LOGISTICS,1012011882,0.93,
Department of Health,Salisbury NHS Foundation Trust,13-May-11,PAPER ITEMS GENERAL STATIONERY SUNDRIES,Clinical Support and Family Services,NHS LOGISTICS,1012007930,0.94,
Department of Health,Salisbury NHS Foundation Trust,13-May-11,PATIENTS INCONTINENCE,Medicine,NHS LOGISTICS,1012007930,0.94,
Department of Health,Salisbury NHS Foundation Trust,13-May-11,DISPOSABLE THEATRE DRAPES WIPES,Clinical Support and Family Services,NHS LOGISTICS,1012007930,0.95,
Department of Health,Salisbury NHS Foundation Trust,13-May-11,TISSUES HAND TOWELS & TOILET PAPER,Surgery,NHS LOGISTICS,1012007930,0.95,
Department of Health,Salisbury NHS Foundation Trust,13-May-11,TISSUES HAND TOWELS & TOILET PAPER,Medicine,NHS LOGISTICS,1012007930,0.95,
Department of Health,Salisbury NHS Foundation Trust,13-May-11,MEDSURGCONS - OTHER,Clinical Support and Family Services,NHS LOGISTICS,1012007930,0.95,
Department of Health,Salisbury NHS Foundation Trust,13-May-11,M & S EQUIPELECTEQUIPINST - OTHER,Medicine,NHS LOGISTICS,1012007930,0.95,
Department of Health,Salisbury NHS Foundation Trust,13-May-11,MEDSURGCONS - OTHER,Clinical Support and Family Services,NHS LOGISTICS,1012007930,0.95,
Department of Health,Salisbury NHS Foundation Trust,13-May-11,M & S EQUIPELECTEQUIPINST - OTHER,Medicine,NHS LOGISTICS,1012007930,0.95,
Department of Health,Salisbury NHS Foundation Trust,13-May-11,TISSUES HAND TOWELS & TOILET PAPER,Medicine,NHS LOGISTICS,1012011882,0.95,
Department of Health,Salisbury NHS Foundation Trust,13-May-11,MEDSURGCONS - OTHER,Clinical Support and Family Services,NHS LOGISTICS,1012007930,0.96,
Department of Health,Salisbury NHS Foundation Trust,13-May-11,DRESSINGS - PRE STERILE,Critical care,NHS LOGISTICS,1012011882,0.96,
Department of Health,Salisbury NHS Foundation Trust,13-May-11,DRESSINGS - PRE STERILE,Surgery,NHS LOGISTICS,1012007930,0.97,
Department of Health,Salisbury NHS Foundation Trust,13-May-11,DRESSINGS - PRE STERILE,Surgery,NHS LOGISTICS,1012007930,0.97,
Department of Health,Salisbury NHS Foundation Trust,13-May-11,DRESSINGS - PRE STERILE,Critical care,NHS LOGISTICS,1012007930,0.97,
Department of Health,Salisbury NHS Foundation Trust,13-May-11,DRESSINGS - PRE STERILE,Medicine,NHS LOGISTICS,1012007930,0.97,
Department of Health,Salisbury NHS Foundation Trust,13-May-11,DRESSINGS - PRE STERILE,Surgery,NHS LOGISTICS,1012007930,0.97,
Department of Health,Salisbury NHS Foundation Trust,13-May-11,TUBES,Surgery,NHS LOGISTICS,1012007930,0.97,
Department of Health,Salisbury NHS Foundation Trust,13-May-11,TOILETRIES PERSONAL HYGIENE PRODUCTS,Critical care,NHS LOGISTICS,1012007930,0.97,
Department of Health,Salisbury NHS Foundation Trust,13-May-11,DRESSINGS - PRE STERILE,Critical care,NHS LOGISTICS,1012007930,0.98,
Department of Health,Salisbury NHS Foundation Trust,13-May-11,STATIONERY SUNDRIES,Critical care,NHS LOGISTICS,1012007930,0.98,
Department of Health,Salisbury NHS Foundation Trust,13-May-11,MEDSURGCONS - OTHER,Medicine,NHS LOGISTICS,1012007930,0.98,
Department of Health,Salisbury NHS Foundation Trust,13-May-11,MEDSURGCONS - OTHER,Critical care,NHS LOGISTICS,1012007930,0.98,
Department of Health,Salisbury NHS Foundation Trust,13-May-11,DRESSINGS - PRE STERILE,Facilities Directorate,NHS LOGISTICS,1012011882,0.98,
Department of Health,Salisbury NHS Foundation Trust,13-May-11,DRESSINGS - PRE STERILE,Surgery,NHS LOGISTICS,1012011882,0.98,
Department of Health,Salisbury NHS Foundation Trust,13-May-11,TISSUES HAND TOWELS & TOILET PAPER,Clinical Support and Family Services,NHS LOGISTICS,1012007930,0.99,
Department of Health,Salisbury NHS Foundation Trust,13-May-11,STATIONERY SUNDRIES,Medicine,NHS LOGISTICS,1012007930,0.99,
Department of Health,Salisbury NHS Foundation Trust,13-May-11,TISSUES HAND TOWELS & TOILET PAPER,Surgery,NHS LOGISTICS,1012007930,0.99,
Department of Health,Salisbury NHS Foundation Trust,13-May-11,DRESSINGS - PRE STERILE,Clinical Support and Family Services,NHS LOGISTICS,1012007930,1,
Department of Health,Salisbury NHS Foundation Trust,13-May-11,MEDSURGCONS - OTHER,Medicine,NHS LOGISTICS,1012007930,1,
Department of Health,Salisbury NHS Foundation Trust,13-May-11,MEDSURGCONS - OTHER,Medicine,NHS LOGISTICS,1012007930,1,
Department of Health,Salisbury NHS Foundation Trust,13-May-11,MEDSURGCONS - OTHER,Medicine,NHS LOGISTICS,1012007930,1,
Department of Health,Salisbury NHS Foundation Trust,13-May-11,MEDSURGCONS - OTHER,Medicine,NHS LOGISTICS,1012007930,1,
Department of Health,Salisbury NHS Foundation Trust,13-May-11,SURGICAL INSTRUMENTS: GENERAL,Critical care,NHS LOGISTICS,1012007930,1,
Department of Health,Salisbury NHS Foundation Trust,13-May-11,STATIONERY SUNDRIES,Clinical Support and Family Services,NHS LOGISTICS,1012007930,1,
Department of Health,Salisbury NHS Foundation Trust,13-May-11,TUBES,Surgery,NHS LOGISTICS,1012007930,1,
Department of Health,Salisbury NHS Foundation Trust,13-May-11,TUBES,Surgery,NHS LOGISTICS,1012007930,1,
Department of Health,Salisbury NHS Foundation Trust,13-May-11,TUBES,Surgery,NHS LOGISTICS,1012007930,1,
Department of Health,Salisbury NHS Foundation Trust,13-May-11,DRESSINGS  -  PROCEDURE PACKS,Critical care,NHS LOGISTICS,1012011882,1,
Department of Health,Salisbury NHS Foundation Trust,13-May-11,COOKING & KITCHEN UTENSILS,Critical care,NHS LOGISTICS,1012007930,1.01,
Department of Health,Salisbury NHS Foundation Trust,13-May-11,STATIONERY SUNDRIES,Corporate Directorate,NHS LOGISTICS,1012007930,1.01,
Department of Health,Salisbury NHS Foundation Trust,13-May-11,DRESSINGS  -  PROCEDURE PACKS,Clinical Support and Family Services,NHS LOGISTICS,1012007930,1.02,
Department of Health,Salisbury NHS Foundation Trust,13-May-11,COOKING & KITCHEN UTENSILS,Medicine,NHS LOGISTICS,1012007930,1.02,
Department of Health,Salisbury NHS Foundation Trust,13-May-11,MEDSURGCONS - OTHER,Medicine,NHS LOGISTICS,1012007930,1.02,
Department of Health,Salisbury NHS Foundation Trust,13-May-11,COOKING & KITCHEN UTENSILS,Critical care,NHS LOGISTICS,1012007930,1.02,
Department of Health,Salisbury NHS Foundation Trust,13-May-11,DRESSINGS  -  PROCEDURE PACKS,Clinical Support and Family Services,NHS LOGISTICS,1012011882,1.02,
Department of Health,Salisbury NHS Foundation Trust,13-May-11,DRESSINGS  -  PROCEDURE PACKS,Clinical Support and Family Services,NHS LOGISTICS,1012011882,1.02,
Department of Health,Salisbury NHS Foundation Trust,13-May-11,COOKING & KITCHEN UTENSILS,Medicine,NHS LOGISTICS,1012011882,1.02,
Department of Health,Salisbury NHS Foundation Trust,13-May-11,DRESSINGS  -  PROCEDURE PACKS,Medicine,NHS LOGISTICS,1012011882,1.02,
Department of Health,Salisbury NHS Foundation Trust,13-May-11,PAPER ITEMS GENERAL STATIONERY SUNDRIES,Critical care,NHS LOGISTICS,1012007930,1.03,
Department of Health,Salisbury NHS Foundation Trust,13-May-11,TISSUES HAND TOWELS & TOILET PAPER,Critical care,NHS LOGISTICS,1012007930,1.03,
Department of Health,Salisbury NHS Foundation Trust,13-May-11,TISSUES HAND TOWELS & TOILET PAPER,Surgery,NHS LOGISTICS,1012007930,1.03,
Department of Health,Salisbury NHS Foundation Trust,13-May-11,TISSUES HAND TOWELS & TOILET PAPER,Critical care,NHS LOGISTICS,1012007930,1.03,
Department of Health,Salisbury NHS Foundation Trust,13-May-11,OTHER MEDICAL SUPPLIES,Surgery,NHS LOGISTICS,1012007930,1.03,
Department of Health,Salisbury NHS Foundation Trust,13-May-11,OTHER MEDICAL SUPPLIES,Surgery,NHS LOGISTICS,1012007930,1.03,
Department of Health,Salisbury NHS Foundation Trust,13-May-11,TISSUES HAND TOWELS & TOILET PAPER,Surgery,NHS LOGISTICS,1012011882,1.03,
Department of Health,Salisbury NHS Foundation Trust,13-May-11,STATIONERY SUNDRIES,Medicine,NHS LOGISTICS,1012011882,1.04,
Department of Health,Salisbury NHS Foundation Trust,13-May-11,STATIONERY SUNDRIES,Medicine,NHS LOGISTICS,1012007930,1.05,
Department of Health,Salisbury NHS Foundation Trust,13-May-11,OTHER MEDICAL SUPPLIES,Surgery,NHS LOGISTICS,1012007930,1.05,
Department of Health,Salisbury NHS Foundation Trust,13-May-11,STATIONERY SUNDRIES,Medicine,NHS LOGISTICS,1012007930,1.05,
Department of Health,Salisbury NHS Foundation Trust,13-May-11,OTHER MEDICAL SUPPLIES,Medicine,NHS LOGISTICS,1012007930,1.05,
Department of Health,Salisbury NHS Foundation Trust,13-May-11,PATIENT APPLIANCES,Medicine,NHS LOGISTICS,1012007930,1.05,
Department of Health,Salisbury NHS Foundation Trust,13-May-11,PATIENT APPLIANCES,Clinical Support and Family Services,NHS LOGISTICS,1012007930,1.05,
Department of Health,Salisbury NHS Foundation Trust,13-May-11,OTHER MEDICAL SUPPLIES,Clinical Support and Family Services,NHS LOGISTICS,1012007930,1.05,
Department of Health,Salisbury NHS Foundation Trust,13-May-11,OTHER MEDICAL SUPPLIES,Medicine,NHS LOGISTICS,1012007930,1.05,
Department of Health,Salisbury NHS Foundation Trust,13-May-11,OTHER MEDICAL SUPPLIES,Critical care,NHS LOGISTICS,1012007930,1.05,
Department of Health,Salisbury NHS Foundation Trust,13-May-11,SURGICAL INSTRUMENTS: GENERAL,Medicine,NHS LOGISTICS,1012007930,1.05,
Department of Health,Salisbury NHS Foundation Trust,13-May-11,DRESSINGS - PRE STERILE,Critical care,NHS LOGISTICS,1012007930,1.05,
Department of Health,Salisbury NHS Foundation Trust,13-May-11,BAGS SACKS - OTHER,Facilities Directorate,NHS LOGISTICS,1012011882,1.05,
Department of Health,Salisbury NHS Foundation Trust,13-May-11,DRESSINGS  -  PROCEDURE PACKS,Surgery,NHS LOGISTICS,1012007930,1.07,
Department of Health,Salisbury NHS Foundation Trust,13-May-11,MEDSURGCONS - OTHER,Medicine,NHS LOGISTICS,1012007930,1.07,
Department of Health,Salisbury NHS Foundation Trust,13-May-11,MEDSURGCONS - OTHER,Clinical Support and Family Services,NHS LOGISTICS,1012007930,1.07,
Department of Health,Salisbury NHS Foundation Trust,13-May-11,MEDSURGCONS - OTHER,Clinical Support and Family Services,NHS LOGISTICS,1012007930,1.07,
Department of Health,Salisbury NHS Foundation Trust,13-May-11,MEDSURGCONS - OTHER,Critical care,NHS LOGISTICS,1012007930,1.07,
Department of Health,Salisbury NHS Foundation Trust,13-May-11,DRESSINGS  -  PROCEDURE PACKS,Medicine,NHS LOGISTICS,1012007930,1.07,
Department of Health,Salisbury NHS Foundation Trust,13-May-11,TOILETRIES PERSONAL HYGIENE PRODUCTS,Medicine,NHS LOGISTICS,1012007930,1.07,
Department of Health,Salisbury NHS Foundation Trust,13-May-11,TOILETRIES PERSONAL HYGIENE PRODUCTS,Surgery,NHS LOGISTICS,1012007930,1.07,
Department of Health,Salisbury NHS Foundation Trust,13-May-11,TOILETRIES PERSONAL HYGIENE PRODUCTS,Medicine,NHS LOGISTICS,1012007930,1.07,
Department of Health,Salisbury NHS Foundation Trust,13-May-11,TOILETRIES PERSONAL HYGIENE PRODUCTS,Critical care,NHS LOGISTICS,1012007930,1.07,
Department of Health,Salisbury NHS Foundation Trust,13-May-11,BAGS SACKS - OTHER,Surgery,NHS LOGISTICS,1012007930,1.07,
Department of Health,Salisbury NHS Foundation Trust,13-May-11,STATIONERY SUNDRIES,Corporate Directorate,NHS LOGISTICS,1012011882,1.07,
Department of Health,Salisbury NHS Foundation Trust,13-May-11,DRESSINGS  -  PROCEDURE PACKS,Medicine,NHS LOGISTICS,1012011882,1.07,
Department of Health,Salisbury NHS Foundation Trust,13-May-11,DRESSINGS  -  PROCEDURE PACKS,Critical care,NHS LOGISTICS,1012011882,1.07,
Department of Health,Salisbury NHS Foundation Trust,13-May-11,STATIONERY SUNDRIES,Surgery,NHS LOGISTICS,1012007930,1.08,
Department of Health,Salisbury NHS Foundation Trust,13-May-11,PAPER ITEMS GENERAL STATIONERY SUNDRIES,Clinical Effctiveness Directorate,NHS LOGISTICS,1012007930,1.08,
Department of Health,Salisbury NHS Foundation Trust,13-May-11,TISSUES HAND TOWELS & TOILET PAPER,Critical care,NHS LOGISTICS,1012007930,1.08,
Department of Health,Salisbury NHS Foundation Trust,13-May-11,STATIONERY SUNDRIES,Clinical Support and Family Services,NHS LOGISTICS,1012007930,1.08,
Department of Health,Salisbury NHS Foundation Trust,13-May-11,DRESSINGS - PRE STERILE,Medicine,NHS LOGISTICS,1012007930,1.08,
Department of Health,Salisbury NHS Foundation Trust,13-May-11,DRESSINGS - PRE STERILE,Medicine,NHS LOGISTICS,1012007930,1.08,
Department of Health,Salisbury NHS Foundation Trust,13-May-11,DRESSINGS  -  PROCEDURE PACKS,Surgery,NHS LOGISTICS,1012007930,1.08,
Department of Health,Salisbury NHS Foundation Trust,13-May-11,SURGICAL INSTRUMENTS: DISPOSABLE,Critical care,NHS LOGISTICS,1012007930,1.08,
Department of Health,Salisbury NHS Foundation Trust,13-May-11,DRESSINGS  -  PROCEDURE PACKS,Medicine,NHS LOGISTICS,1012007930,1.08,
Department of Health,Salisbury NHS Foundation Trust,13-May-11,PAPER ITEMS GENERAL STATIONERY SUNDRIES,Surgery,NHS LOGISTICS,1012011882,1.08,
Department of Health,Salisbury NHS Foundation Trust,13-May-11,DRESSINGS - PRE STERILE,Surgery,NHS LOGISTICS,1012007930,1.09,
Department of Health,Salisbury NHS Foundation Trust,13-May-11,OTHER MEDICAL SUPPLIES,Critical care,NHS LOGISTICS,1012007930,1.09,
Department of Health,Salisbury NHS Foundation Trust,13-May-11,DRESSINGS - PRE STERILE,Surgery,NHS LOGISTICS,1012011882,1.09,
Department of Health,Salisbury NHS Foundation Trust,13-May-11,DRESSINGS - PRE STERILE,Clinical Support and Family Services,NHS LOGISTICS,1012007930,1.1,
Department of Health,Salisbury NHS Foundation Trust,13-May-11,STATIONERY SUNDRIES,Clinical Support and Family Services,NHS LOGISTICS,1012007930,1.1,
Department of Health,Salisbury NHS Foundation Trust,13-May-11,DRESSINGS - PRE STERILE,Medicine,NHS LOGISTICS,1012007930,1.1,
Department of Health,Salisbury NHS Foundation Trust,13-May-11,DRESSINGS - PRE STERILE,Clinical Support and Family Services,NHS LOGISTICS,1012007930,1.1,
Department of Health,Salisbury NHS Foundation Trust,13-May-11,DRESSINGS - PRE STERILE,Surgery,NHS LOGISTICS,1012007930,1.1,
Department of Health,Salisbury NHS Foundation Trust,13-May-11,DRESSINGS - PRE STERILE,Medicine,NHS LOGISTICS,1012007930,1.1,
Department of Health,Salisbury NHS Foundation Trust,13-May-11,DRESSINGS - PRE STERILE,Surgery,NHS LOGISTICS,1012007930,1.1,
Department of Health,Salisbury NHS Foundation Trust,13-May-11,DRESSINGS - PRE STERILE,Medicine,NHS LOGISTICS,1012007930,1.1,
Department of Health,Salisbury NHS Foundation Trust,13-May-11,DRESSINGS - PRE STERILE,Medicine,NHS LOGISTICS,1012007930,1.1,
Department of Health,Salisbury NHS Foundation Trust,13-May-11,DRESSINGS - PRE STERILE,Critical care,NHS LOGISTICS,1012007930,1.1,
Department of Health,Salisbury NHS Foundation Trust,13-May-11,DRESSINGS - PRE STERILE,Surgery,NHS LOGISTICS,1012007930,1.1,
Department of Health,Salisbury NHS Foundation Trust,13-May-11,DRESSINGS - PRE STERILE,Medicine,NHS LOGISTICS,1012007930,1.1,
Department of Health,Salisbury NHS Foundation Trust,13-May-11,DRESSINGS - PRE STERILE,Critical care,NHS LOGISTICS,1012007930,1.1,
Department of Health,Salisbury NHS Foundation Trust,13-May-11,DRESSINGS - PRE STERILE,Critical care,NHS LOGISTICS,1012007930,1.1,
Department of Health,Salisbury NHS Foundation Trust,13-May-11,DRESSINGS - PRE STERILE,Critical care,NHS LOGISTICS,1012007930,1.1,
Department of Health,Salisbury NHS Foundation Trust,13-May-11,DRESSINGS - PRE STERILE,Clinical Support and Family Services,NHS LOGISTICS,1012007930,1.1,
Department of Health,Salisbury NHS Foundation Trust,13-May-11,DRESSINGS - PRE STERILE,Medicine,NHS LOGISTICS,1012011882,1.1,
Department of Health,Salisbury NHS Foundation Trust,13-May-11,DRESSINGS - PRE STERILE,Clinical Support and Family Services,NHS LOGISTICS,1012011882,1.1,
Department of Health,Salisbury NHS Foundation Trust,13-May-11,DRESSINGS - PRE STERILE,Medicine,NHS LOGISTICS,1012011882,1.1,
Department of Health,Salisbury NHS Foundation Trust,13-May-11,DRESSINGS - PRE STERILE,Medicine,NHS LOGISTICS,1012011882,1.1,
Department of Health,Salisbury NHS Foundation Trust,13-May-11,DRESSINGS - PRE STERILE,Surgery,NHS LOGISTICS,1012011882,1.1,
Department of Health,Salisbury NHS Foundation Trust,13-May-11,DRESSINGS - PRE STERILE,Medicine,NHS LOGISTICS,1012011882,1.1,
Department of Health,Salisbury NHS Foundation Trust,13-May-11,DRESSINGS - PRE STERILE,Surgery,NHS LOGISTICS,1012011882,1.1,
Department of Health,Salisbury NHS Foundation Trust,13-May-11,DRESSINGS - PRE STERILE,Clinical Support and Family Services,NHS LOGISTICS,1012011882,1.1,
Department of Health,Salisbury NHS Foundation Trust,13-May-11,DRUGS,Medicine,NHS LOGISTICS,1012007930,1.11,
Department of Health,Salisbury NHS Foundation Trust,13-May-11,DRUGS,Surgery,NHS LOGISTICS,1012007930,1.11,
Department of Health,Salisbury NHS Foundation Trust,13-May-11,DRUGS,Clinical Support and Family Services,NHS LOGISTICS,1012007930,1.11,
Department of Health,Salisbury NHS Foundation Trust,13-May-11,NON DISPOSABLE BED LINEN,Critical care,NHS LOGISTICS,1012007930,1.11,
Department of Health,Salisbury NHS Foundation Trust,13-May-11,COOKING & KITCHEN UTENSILS,Medicine,NHS LOGISTICS,1012007930,1.11,
Department of Health,Salisbury NHS Foundation Trust,13-May-11,OTHER MEDICAL SUPPLIES,Medicine,NHS LOGISTICS,1012007930,1.11,
Department of Health,Salisbury NHS Foundation Trust,13-May-11,STATIONERY SUNDRIES,Clinical Support and Family Services,NHS LOGISTICS,1012007930,1.12,
Department of Health,Salisbury NHS Foundation Trust,13-May-11,OTHER MEDICAL SUPPLIES,Surgery,NHS LOGISTICS,1012007930,1.12,
Department of Health,Salisbury NHS Foundation Trust,13-May-11,STATIONERY SUNDRIES,Medicine,NHS LOGISTICS,1012007930,1.13,
Department of Health,Salisbury NHS Foundation Trust,13-May-11,COOKING & KITCHEN UTENSILS,Clinical Support and Family Services,NHS LOGISTICS,1012007930,1.13,
Department of Health,Salisbury NHS Foundation Trust,13-May-11,COOKING & KITCHEN UTENSILS,Clinical Support and Family Services,NHS LOGISTICS,1012007930,1.13,
Department of Health,Salisbury NHS Foundation Trust,13-May-11,COOKING & KITCHEN UTENSILS,Directorate of Finance and Procurement,NHS LOGISTICS,1012007930,1.13,
Department of Health,Salisbury NHS Foundation Trust,13-May-11,MEDSURGCONS - OTHER,Medicine,NHS LOGISTICS,1012007930,1.13,
Department of Health,Salisbury NHS Foundation Trust,13-May-11,COOKING & KITCHEN UTENSILS,Medicine,NHS LOGISTICS,1012007930,1.13,
Department of Health,Salisbury NHS Foundation Trust,13-May-11,COOKING & KITCHEN UTENSILS,Medicine,NHS LOGISTICS,1012007930,1.13,
Department of Health,Salisbury NHS Foundation Trust,13-May-11,PAPER ITEMS GENERAL STATIONERY SUNDRIES,Clinical Support and Family Services,NHS LOGISTICS,1012007930,1.13,
Department of Health,Salisbury NHS Foundation Trust,13-May-11,COOKING & KITCHEN UTENSILS,Clinical Support and Family Services,NHS LOGISTICS,1012007930,1.13,
Department of Health,Salisbury NHS Foundation Trust,13-May-11,COOKING & KITCHEN UTENSILS,Surgery,NHS LOGISTICS,1012007930,1.13,
Department of Health,Salisbury NHS Foundation Trust,13-May-11,OTHER MEDICAL SUPPLIES,Medicine,NHS LOGISTICS,1012007930,1.13,
Department of Health,Salisbury NHS Foundation Trust,13-May-11,COOKING & KITCHEN UTENSILS,Clinical Support and Family Services,NHS LOGISTICS,1012007930,1.13,
Department of Health,Salisbury NHS Foundation Trust,13-May-11,COOKING & KITCHEN UTENSILS,Medicine,NHS LOGISTICS,1012007930,1.13,
Department of Health,Salisbury NHS Foundation Trust,13-May-11,TUBES,Surgery,NHS LOGISTICS,1012007930,1.13,
Department of Health,Salisbury NHS Foundation Trust,13-May-11,COOKING & KITCHEN UTENSILS,Surgery,NHS LOGISTICS,1012007930,1.13,
Department of Health,Salisbury NHS Foundation Trust,13-May-11,STATIONERY SUNDRIES,Clinical Support and Family Services,NHS LOGISTICS,1012011882,1.13,
Department of Health,Salisbury NHS Foundation Trust,13-May-11,PATIENT APPLIANCES,Medicine,NHS LOGISTICS,1012007930,1.14,
Department of Health,Salisbury NHS Foundation Trust,13-May-11,PATIENT APPLIANCES,Medicine,NHS LOGISTICS,1012007930,1.14,
Department of Health,Salisbury NHS Foundation Trust,13-May-11,PATIENT APPLIANCES,Clinical Support and Family Services,NHS LOGISTICS,1012007930,1.14,
Department of Health,Salisbury NHS Foundation Trust,13-May-11,DISPOSABLE THEATRE DRAPES WIPES,Human Resources,NHS LOGISTICS,1012007930,1.14,
Department of Health,Salisbury NHS Foundation Trust,13-May-11,PATIENT APPLIANCES,Medicine,NHS LOGISTICS,1012007930,1.14,
Department of Health,Salisbury NHS Foundation Trust,13-May-11,PATIENT APPLIANCES,Medicine,NHS LOGISTICS,1012007930,1.14,
Department of Health,Salisbury NHS Foundation Trust,13-May-11,NON DISPOSABLE BED LINEN,Critical care,NHS LOGISTICS,1012007930,1.14,
Department of Health,Salisbury NHS Foundation Trust,13-May-11,PATIENT APPLIANCES,Medicine,NHS LOGISTICS,1012007930,1.14,
Department of Health,Salisbury NHS Foundation Trust,13-May-11,STATIONERY SUNDRIES,Medicine,NHS LOGISTICS,1012007930,1.15,
Department of Health,Salisbury NHS Foundation Trust,13-May-11,DRESSINGS - PRE STERILE,Medicine,NHS LOGISTICS,1012007930,1.15,
Department of Health,Salisbury NHS Foundation Trust,13-May-11,DRESSINGS  -  PROCEDURE PACKS,Medicine,NHS LOGISTICS,1012007930,1.15,
Department of Health,Salisbury NHS Foundation Trust,13-May-11,MEDSURGCONS - OTHER,Medicine,NHS LOGISTICS,1012007930,1.16,
Department of Health,Salisbury NHS Foundation Trust,13-May-11,LIQUID REFRESHMENTS,Facilities Directorate,NHS LOGISTICS,1012007930,1.16,
Department of Health,Salisbury NHS Foundation Trust,13-May-11,M & S EQUIPELECTEQUIPINST - OTHER,Surgery,NHS LOGISTICS,1012007930,1.16,
Department of Health,Salisbury NHS Foundation Trust,13-May-11,STATIONERY SUNDRIES,Corporate Directorate,NHS LOGISTICS,1012007930,1.17,
Department of Health,Salisbury NHS Foundation Trust,13-May-11,ANAESTHETIC EQUIPMENT ACCESSORIES,Medicine,NHS LOGISTICS,1012007930,1.17,
Department of Health,Salisbury NHS Foundation Trust,13-May-11,TUBES,Clinical Support and Family Services,NHS LOGISTICS,1012007930,1.17,
Department of Health,Salisbury NHS Foundation Trust,13-May-11,DRESSINGS  -  PROCEDURE PACKS,Surgery,NHS LOGISTICS,1012007930,1.17,
Department of Health,Salisbury NHS Foundation Trust,13-May-11,CLEANING MATERIALS PRODUCTS SUNDRIES,Facilities Directorate,NHS LOGISTICS,1012007930,1.17,
Department of Health,Salisbury NHS Foundation Trust,13-May-11,ANAESTHETIC EQUIPMENT ACCESSORIES,Medicine,NHS LOGISTICS,1012011882,1.17,
Department of Health,Salisbury NHS Foundation Trust,13-May-11,ANAESTHETIC EQUIPMENT ACCESSORIES,Clinical Support and Family Services,NHS LOGISTICS,1012011882,1.17,
Department of Health,Salisbury NHS Foundation Trust,13-May-11,COOKING & KITCHEN UTENSILS,Clinical Support and Family Services,NHS LOGISTICS,1012011882,1.17,
Department of Health,Salisbury NHS Foundation Trust,13-May-11,DRESSINGS  -  PROCEDURE PACKS,Surgery,NHS LOGISTICS,1012011882,1.17,
Department of Health,Salisbury NHS Foundation Trust,13-May-11,DRESSINGS  -  PROCEDURE PACKS,Surgery,NHS LOGISTICS,1012011882,1.17,
Department of Health,Salisbury NHS Foundation Trust,13-May-11,ANAESTHETIC EQUIPMENT ACCESSORIES,Surgery,NHS LOGISTICS,1012011882,1.17,
Department of Health,Salisbury NHS Foundation Trust,13-May-11,STATIONERY SUNDRIES,Clinical Support and Family Services,NHS LOGISTICS,1012007930,1.18,
Department of Health,Salisbury NHS Foundation Trust,13-May-11,STATIONERY SUNDRIES,Medicine,NHS LOGISTICS,1012007930,1.18,
Department of Health,Salisbury NHS Foundation Trust,13-May-11,DRUGS,Critical care,NHS LOGISTICS,1012007930,1.18,
Department of Health,Salisbury NHS Foundation Trust,13-May-11,DRUGS,Clinical Support and Family Services,NHS LOGISTICS,1012007930,1.18,
Department of Health,Salisbury NHS Foundation Trust,13-May-11,DRESSINGS - PRE STERILE,Medicine,NHS LOGISTICS,1012007930,1.18,
Department of Health,Salisbury NHS Foundation Trust,13-May-11,DRESSINGS - PRE STERILE,Medicine,NHS LOGISTICS,1012007930,1.18,
Department of Health,Salisbury NHS Foundation Trust,13-May-11,DRUGS,Critical care,NHS LOGISTICS,1012007930,1.18,
Department of Health,Salisbury NHS Foundation Trust,13-May-11,LIQUID REFRESHMENTS,Facilities Directorate,NHS LOGISTICS,1012007930,1.18,
Department of Health,Salisbury NHS Foundation Trust,13-May-11,TOILETRIES PERSONAL HYGIENE PRODUCTS,Surgery,NHS LOGISTICS,1012007930,1.18,
Department of Health,Salisbury NHS Foundation Trust,13-May-11,TOILETRIES PERSONAL HYGIENE PRODUCTS,Medicine,NHS LOGISTICS,1012007930,1.18,
Department of Health,Salisbury NHS Foundation Trust,13-May-11,TOILETRIES PERSONAL HYGIENE PRODUCTS,Clinical Support and Family Services,NHS LOGISTICS,1012007930,1.19,
Department of Health,Salisbury NHS Foundation Trust,13-May-11,PAPER ITEMS GENERAL STATIONERY SUNDRIES,Corporate Directorate,NHS LOGISTICS,1012007930,1.2,
Department of Health,Salisbury NHS Foundation Trust,13-May-11,STATIONERY SUNDRIES,Surgery,NHS LOGISTICS,1012007930,1.2,
Department of Health,Salisbury NHS Foundation Trust,13-May-11,DRESSINGS - PRE STERILE,Critical care,NHS LOGISTICS,1012007930,1.2,
Department of Health,Salisbury NHS Foundation Trust,13-May-11,M & S EQUIPELECTEQUIPINST - OTHER,Medicine,NHS LOGISTICS,1012007930,1.2,
Department of Health,Salisbury NHS Foundation Trust,13-May-11,DRESSINGS - PRE STERILE,Medicine,NHS LOGISTICS,1012007930,1.2,
Department of Health,Salisbury NHS Foundation Trust,13-May-11,DRESSINGS - PRE STERILE,Critical care,NHS LOGISTICS,1012007930,1.2,
Department of Health,Salisbury NHS Foundation Trust,13-May-11,M & S EQUIPELECTEQUIPINST - OTHER,Surgery,NHS LOGISTICS,1012007930,1.2,
Department of Health,Salisbury NHS Foundation Trust,13-May-11,PAPER ITEMS GENERAL STATIONERY SUNDRIES,Clinical Support and Family Services,NHS LOGISTICS,1012007930,1.21,
Department of Health,Salisbury NHS Foundation Trust,13-May-11,DRESSINGS  -  PROCEDURE PACKS,Medicine,NHS LOGISTICS,1012007930,1.21,
Department of Health,Salisbury NHS Foundation Trust,13-May-11,PATIENTS BEDWEAR UNISEX,Clinical Support and Family Services,NHS LOGISTICS,1012007930,1.21,
Department of Health,Salisbury NHS Foundation Trust,13-May-11,DRESSINGS - PRE STERILE,Critical care,NHS LOGISTICS,1012007930,1.21,
Department of Health,Salisbury NHS Foundation Trust,13-May-11,MEDSURGCONS - OTHER,Critical care,NHS LOGISTICS,1012011882,1.21,
Department of Health,Salisbury NHS Foundation Trust,13-May-11,DRESSINGS - PRE STERILE,Surgery,NHS LOGISTICS,1012007930,1.22,
Department of Health,Salisbury NHS Foundation Trust,13-May-11,TISSUES HAND TOWELS & TOILET PAPER,Medicine,NHS LOGISTICS,1012007930,1.23,
Department of Health,Salisbury NHS Foundation Trust,13-May-11,TISSUES HAND TOWELS & TOILET PAPER,Medicine,NHS LOGISTICS,1012007930,1.23,
Department of Health,Salisbury NHS Foundation Trust,13-May-11,SURGICAL INSTRUMENTS: GENERAL,Surgery,NHS LOGISTICS,1012007930,1.23,
Department of Health,Salisbury NHS Foundation Trust,13-May-11,TISSUES HAND TOWELS & TOILET PAPER,Clinical Support and Family Services,NHS LOGISTICS,1012007930,1.23,
Department of Health,Salisbury NHS Foundation Trust,13-May-11,TISSUES HAND TOWELS & TOILET PAPER,Medicine,NHS LOGISTICS,1012007930,1.23,
Department of Health,Salisbury NHS Foundation Trust,13-May-11,SURGICAL INSTRUMENTS: GENERAL,Medicine,NHS LOGISTICS,1012007930,1.23,
Department of Health,Salisbury NHS Foundation Trust,13-May-11,TISSUES HAND TOWELS & TOILET PAPER,Medicine,NHS LOGISTICS,1012007930,1.23,
Department of Health,Salisbury NHS Foundation Trust,13-May-11,TISSUES HAND TOWELS & TOILET PAPER,Clinical Support and Family Services,NHS LOGISTICS,1012007930,1.23,
Department of Health,Salisbury NHS Foundation Trust,13-May-11,TISSUES HAND TOWELS & TOILET PAPER,Clinical Support and Family Services,NHS LOGISTICS,1012007930,1.23,
Department of Health,Salisbury NHS Foundation Trust,13-May-11,MEDSURGCONS - OTHER,Surgery,NHS LOGISTICS,1012007930,1.23,
Department of Health,Salisbury NHS Foundation Trust,13-May-11,TISSUES HAND TOWELS & TOILET PAPER,Surgery,NHS LOGISTICS,1012007930,1.23,
Department of Health,Salisbury NHS Foundation Trust,13-May-11,SURGICAL INSTRUMENTS: GENERAL,Medicine,NHS LOGISTICS,1012011882,1.23,
Department of Health,Salisbury NHS Foundation Trust,13-May-11,SURGICAL INSTRUMENTS: GENERAL,Medicine,NHS LOGISTICS,1012011882,1.23,
Department of Health,Salisbury NHS Foundation Trust,13-May-11,SURGICAL INSTRUMENTS: GENERAL,Medicine,NHS LOGISTICS,1012011882,1.23,
Department of Health,Salisbury NHS Foundation Trust,13-May-11,TISSUES HAND TOWELS & TOILET PAPER,Surgery,NHS LOGISTICS,1012011882,1.23,
Department of Health,Salisbury NHS Foundation Trust,13-May-11,DRUGS,Surgery,NHS LOGISTICS,1012007930,1.24,
Department of Health,Salisbury NHS Foundation Trust,13-May-11,STATIONERY SUNDRIES,Surgery,NHS LOGISTICS,1012007930,1.24,
Department of Health,Salisbury NHS Foundation Trust,13-May-11,DRUGS,Clinical Support and Family Services,NHS LOGISTICS,1012007930,1.24,
Department of Health,Salisbury NHS Foundation Trust,13-May-11,OTHER MEDICAL SUPPLIES,Medicine,NHS LOGISTICS,1012007930,1.24,
Department of Health,Salisbury NHS Foundation Trust,13-May-11,DRESSINGS - PRE STERILE,Surgery,NHS LOGISTICS,1012007930,1.24,
Department of Health,Salisbury NHS Foundation Trust,13-May-11,OTHER MEDICAL SUPPLIES,Medicine,NHS LOGISTICS,1012007930,1.24,
Department of Health,Salisbury NHS Foundation Trust,13-May-11,OTHER MEDICAL SUPPLIES,Medicine,NHS LOGISTICS,1012007930,1.24,
Department of Health,Salisbury NHS Foundation Trust,13-May-11,STATIONERY SUNDRIES,Medicine,NHS LOGISTICS,1012007930,1.25,
Department of Health,Salisbury NHS Foundation Trust,13-May-11,MEDSURGCONS - OTHER,Clinical Support and Family Services,NHS LOGISTICS,1012007930,1.25,
Department of Health,Salisbury NHS Foundation Trust,13-May-11,TUBES,Medicine,NHS LOGISTICS,1012007930,1.25,
Department of Health,Salisbury NHS Foundation Trust,13-May-11,TUBES,Medicine,NHS LOGISTICS,1012007930,1.25,
Department of Health,Salisbury NHS Foundation Trust,13-May-11,MEDSURGCONS - OTHER,Critical care,NHS LOGISTICS,1012007930,1.25,
Department of Health,Salisbury NHS Foundation Trust,13-May-11,DRESSINGS - PRE STERILE,Clinical Support and Family Services,NHS LOGISTICS,1012007930,1.25,
Department of Health,Salisbury NHS Foundation Trust,13-May-11,DRESSINGS - PRE STERILE,Medicine,NHS LOGISTICS,1012007930,1.25,
Department of Health,Salisbury NHS Foundation Trust,13-May-11,DRESSINGS - PRE STERILE,Surgery,NHS LOGISTICS,1012007930,1.25,
Department of Health,Salisbury NHS Foundation Trust,13-May-11,DRESSINGS - PRE STERILE,Medicine,NHS LOGISTICS,1012007930,1.25,
Department of Health,Salisbury NHS Foundation Trust,13-May-11,DISPOSABLE THEATRE DRAPES WIPES,Critical care,NHS LOGISTICS,1012007930,1.25,
Department of Health,Salisbury NHS Foundation Trust,13-May-11,TUBES,Medicine,NHS LOGISTICS,1012011882,1.25,
Department of Health,Salisbury NHS Foundation Trust,13-May-11,TISSUES HAND TOWELS & TOILET PAPER,Surgery,NHS LOGISTICS,1012011882,1.25,
Department of Health,Salisbury NHS Foundation Trust,13-May-11,TUBES,Medicine,NHS LOGISTICS,1012011882,1.25,
Department of Health,Salisbury NHS Foundation Trust,13-May-11,TUBES,Critical care,NHS LOGISTICS,1012011882,1.25,
Department of Health,Salisbury NHS Foundation Trust,13-May-11,TUBES,Medicine,NHS LOGISTICS,1012011882,1.25,
Department of Health,Salisbury NHS Foundation Trust,13-May-11,DRESSINGS - PRE STERILE,Surgery,NHS LOGISTICS,1012007930,1.26,
Department of Health,Salisbury NHS Foundation Trust,13-May-11,HEALTHCARE - WEAR,Surgery,NHS LOGISTICS,1012007930,1.26,
Department of Health,Salisbury NHS Foundation Trust,13-May-11,DRESSINGS - PRE STERILE,Critical care,NHS LOGISTICS,1012007930,1.26,
Department of Health,Salisbury NHS Foundation Trust,13-May-11,DRESSINGS - PRE STERILE,Surgery,NHS LOGISTICS,1012011882,1.26,
Department of Health,Salisbury NHS Foundation Trust,13-May-11,TISSUES HAND TOWELS & TOILET PAPER,Medicine,NHS LOGISTICS,1012007930,1.27,
Department of Health,Salisbury NHS Foundation Trust,13-May-11,TISSUES HAND TOWELS & TOILET PAPER,Medicine,NHS LOGISTICS,1012007930,1.27,
Department of Health,Salisbury NHS Foundation Trust,13-May-11,STATIONERY SUNDRIES,Clinical Support and Family Services,NHS LOGISTICS,1012007930,1.27,
Department of Health,Salisbury NHS Foundation Trust,13-May-11,TOILETRIES PERSONAL HYGIENE PRODUCTS,Clinical Support and Family Services,NHS LOGISTICS,1012007930,1.27,
Department of Health,Salisbury NHS Foundation Trust,13-May-11,HEALTHCARE - WEAR,Medicine,NHS LOGISTICS,1012007930,1.27,
Department of Health,Salisbury NHS Foundation Trust,13-May-11,OTHER MEDICAL SUPPLIES,Clinical Support and Family Services,NHS LOGISTICS,1012007930,1.27,
Department of Health,Salisbury NHS Foundation Trust,13-May-11,DRUGS,Critical care,NHS LOGISTICS,1012007930,1.28,
Department of Health,Salisbury NHS Foundation Trust,13-May-11,RENAL CONSUMEABLES,Medicine,NHS LOGISTICS,1012007930,1.28,
Department of Health,Salisbury NHS Foundation Trust,13-May-11,MEDSURGCONS - OTHER,Critical care,NHS LOGISTICS,1012007930,1.28,
Department of Health,Salisbury NHS Foundation Trust,13-May-11,DRESSINGS - PRE STERILE,Critical care,NHS LOGISTICS,1012007930,1.28,
Department of Health,Salisbury NHS Foundation Trust,13-May-11,MEDSURGCONS - OTHER,Medicine,NHS LOGISTICS,1012007930,1.28,
Department of Health,Salisbury NHS Foundation Trust,13-May-11,MEDSURGCONS - OTHER,Surgery,NHS LOGISTICS,1012007930,1.28,
Department of Health,Salisbury NHS Foundation Trust,13-May-11,MEDSURGCONS - OTHER,Surgery,NHS LOGISTICS,1012007930,1.28,
Department of Health,Salisbury NHS Foundation Trust,13-May-11,DRUGS,Medicine,NHS LOGISTICS,1012011882,1.28,
Department of Health,Salisbury NHS Foundation Trust,13-May-11,STATIONERY SUNDRIES,Facilities Directorate,NHS LOGISTICS,1012011882,1.28,
Department of Health,Salisbury NHS Foundation Trust,13-May-11,STATIONERY SUNDRIES,Facilities Directorate,NHS LOGISTICS,1012007930,1.29,
Department of Health,Salisbury NHS Foundation Trust,13-May-11,TOILETRIES PERSONAL HYGIENE PRODUCTS,Medicine,NHS LOGISTICS,1012007930,1.3,
Department of Health,Salisbury NHS Foundation Trust,13-May-11,M & S EQUIPELECTEQUIPINST - OTHER,Surgery,NHS LOGISTICS,1012007930,1.3,
Department of Health,Salisbury NHS Foundation Trust,13-May-11,STATIONERY SUNDRIES,Critical care,NHS LOGISTICS,1012007930,1.3,
Department of Health,Salisbury NHS Foundation Trust,13-May-11,MEDSURGCONS - OTHER,Medicine,NHS LOGISTICS,1012007930,1.3,
Department of Health,Salisbury NHS Foundation Trust,13-May-11,MEDSURGCONS - OTHER,Medicine,NHS LOGISTICS,1012007930,1.3,
Department of Health,Salisbury NHS Foundation Trust,13-May-11,MEDSURGCONS - OTHER,Medicine,NHS LOGISTICS,1012007930,1.3,
Department of Health,Salisbury NHS Foundation Trust,13-May-11,MEDSURGCONS - OTHER,Medicine,NHS LOGISTICS,1012007930,1.3,
Department of Health,Salisbury NHS Foundation Trust,13-May-11,MEDSURGCONS - OTHER,Medicine,NHS LOGISTICS,1012007930,1.3,
Department of Health,Salisbury NHS Foundation Trust,13-May-11,MEDSURGCONS - OTHER,Medicine,NHS LOGISTICS,1012007930,1.3,
Department of Health,Salisbury NHS Foundation Trust,13-May-11,MEDSURGCONS - OTHER,Medicine,NHS LOGISTICS,1012007930,1.3,
Department of Health,Salisbury NHS Foundation Trust,13-May-11,MEDSURGCONS - OTHER,Medicine,NHS LOGISTICS,1012007930,1.3,
Department of Health,Salisbury NHS Foundation Trust,13-May-11,MEDSURGCONS - OTHER,Medicine,NHS LOGISTICS,1012007930,1.3,
Department of Health,Salisbury NHS Foundation Trust,13-May-11,STATIONERY SUNDRIES,Directorate of Finance and Procurement,NHS LOGISTICS,1012011882,1.3,
Department of Health,Salisbury NHS Foundation Trust,13-May-11,TOILETRIES PERSONAL HYGIENE PRODUCTS,Surgery,NHS LOGISTICS,1012011882,1.3,
Department of Health,Salisbury NHS Foundation Trust,13-May-11,TOILETRIES PERSONAL HYGIENE PRODUCTS,Medicine,NHS LOGISTICS,1012011882,1.3,
Department of Health,Salisbury NHS Foundation Trust,13-May-11,DRESSINGS - PRE STERILE,Medicine,NHS LOGISTICS,1012007930,1.31,
Department of Health,Salisbury NHS Foundation Trust,13-May-11,OTHER MEDICAL SUPPLIES,Surgery,NHS LOGISTICS,1012011882,1.31,
Department of Health,Salisbury NHS Foundation Trust,13-May-11,MEDSURGCONS - OTHER,Medicine,NHS LOGISTICS,1012007930,1.32,
Department of Health,Salisbury NHS Foundation Trust,13-May-11,MEDSURGCONS - OTHER,Medicine,NHS LOGISTICS,1012007930,1.32,
Department of Health,Salisbury NHS Foundation Trust,13-May-11,MEDSURGCONS - OTHER,Medicine,NHS LOGISTICS,1012007930,1.32,
Department of Health,Salisbury NHS Foundation Trust,13-May-11,TUBES,Medicine,NHS LOGISTICS,1012007930,1.32,
Department of Health,Salisbury NHS Foundation Trust,13-May-11,MEDSURGCONS - OTHER,Medicine,NHS LOGISTICS,1012007930,1.32,
Department of Health,Salisbury NHS Foundation Trust,13-May-11,TUBES,Medicine,NHS LOGISTICS,1012007930,1.32,
Department of Health,Salisbury NHS Foundation Trust,13-May-11,STATIONERY SUNDRIES,Medicine,NHS LOGISTICS,1012007930,1.33,
Department of Health,Salisbury NHS Foundation Trust,13-May-11,STATIONERY SUNDRIES,Clinical Support and Family Services,NHS LOGISTICS,1012007930,1.33,
Department of Health,Salisbury NHS Foundation Trust,13-May-11,MEDSURGCONS - OTHER,Medicine,NHS LOGISTICS,1012007930,1.33,
Department of Health,Salisbury NHS Foundation Trust,13-May-11,DRESSINGS  -  PROCEDURE PACKS,Medicine,NHS LOGISTICS,1012007930,1.33,
Department of Health,Salisbury NHS Foundation Trust,13-May-11,DRESSINGS  -  PROCEDURE PACKS,Medicine,NHS LOGISTICS,1012007930,1.33,
Department of Health,Salisbury NHS Foundation Trust,13-May-11,DRESSINGS  -  PROCEDURE PACKS,Surgery,NHS LOGISTICS,1012007930,1.33,
Department of Health,Salisbury NHS Foundation Trust,13-May-11,DRESSINGS  -  PROCEDURE PACKS,Surgery,NHS LOGISTICS,1012007930,1.33,
Department of Health,Salisbury NHS Foundation Trust,13-May-11,DRESSINGS  -  PROCEDURE PACKS,Critical care,NHS LOGISTICS,1012007930,1.33,
Department of Health,Salisbury NHS Foundation Trust,13-May-11,DRESSINGS  -  PROCEDURE PACKS,Medicine,NHS LOGISTICS,1012007930,1.33,
Department of Health,Salisbury NHS Foundation Trust,13-May-11,DRESSINGS  -  PROCEDURE PACKS,Critical care,NHS LOGISTICS,1012007930,1.33,
Department of Health,Salisbury NHS Foundation Trust,13-May-11,DRESSINGS  -  PROCEDURE PACKS,Clinical Support and Family Services,NHS LOGISTICS,1012007930,1.33,
Department of Health,Salisbury NHS Foundation Trust,13-May-11,DRESSINGS  -  PROCEDURE PACKS,Critical care,NHS LOGISTICS,1012007930,1.33,
Department of Health,Salisbury NHS Foundation Trust,13-May-11,DRESSINGS  -  PROCEDURE PACKS,Critical care,NHS LOGISTICS,1012007930,1.33,
Department of Health,Salisbury NHS Foundation Trust,13-May-11,DRESSINGS  -  PROCEDURE PACKS,Medicine,NHS LOGISTICS,1012007930,1.33,
Department of Health,Salisbury NHS Foundation Trust,13-May-11,NON DISPOSABLE BED LINEN,Surgery,NHS LOGISTICS,1012007930,1.33,
Department of Health,Salisbury NHS Foundation Trust,13-May-11,MEDSURGCONS - OTHER,Surgery,NHS LOGISTICS,1012007930,1.33,
Department of Health,Salisbury NHS Foundation Trust,13-May-11,DRESSINGS - PRE STERILE,Medicine,NHS LOGISTICS,1012007930,1.33,
Department of Health,Salisbury NHS Foundation Trust,13-May-11,DRESSINGS - PRE STERILE,Medicine,NHS LOGISTICS,1012007930,1.33,
Department of Health,Salisbury NHS Foundation Trust,13-May-11,DRESSINGS - PRE STERILE,Critical care,NHS LOGISTICS,1012007930,1.33,
Department of Health,Salisbury NHS Foundation Trust,13-May-11,TISSUES HAND TOWELS & TOILET PAPER,Medicine,NHS LOGISTICS,1012007930,1.33,
Department of Health,Salisbury NHS Foundation Trust,13-May-11,STATIONERY SUNDRIES,Human Resources,NHS LOGISTICS,1012011882,1.33,
Department of Health,Salisbury NHS Foundation Trust,13-May-11,MEDSURGCONS - OTHER,Clinical Support and Family Services,NHS LOGISTICS,1012011882,1.33,
Department of Health,Salisbury NHS Foundation Trust,13-May-11,DRESSINGS  -  PROCEDURE PACKS,Clinical Support and Family Services,NHS LOGISTICS,1012011882,1.33,
Department of Health,Salisbury NHS Foundation Trust,13-May-11,DRESSINGS  -  PROCEDURE PACKS,Clinical Support and Family Services,NHS LOGISTICS,1012011882,1.33,
Department of Health,Salisbury NHS Foundation Trust,13-May-11,MEDSURGCONS - OTHER,Critical care,NHS LOGISTICS,1012011882,1.33,
Department of Health,Salisbury NHS Foundation Trust,13-May-11,MEDSURGCONS - OTHER,Surgery,NHS LOGISTICS,1012011882,1.33,
Department of Health,Salisbury NHS Foundation Trust,13-May-11,DRESSINGS  -  PROCEDURE PACKS,Critical care,NHS LOGISTICS,1012011882,1.33,
Department of Health,Salisbury NHS Foundation Trust,13-May-11,PATIENTS FOOTWEAR,Critical care,NHS LOGISTICS,1012007930,1.35,
Department of Health,Salisbury NHS Foundation Trust,13-May-11,DRESSINGS - PRE STERILE,Surgery,NHS LOGISTICS,1012007930,1.36,
Department of Health,Salisbury NHS Foundation Trust,13-May-11,MEDSURGCONS - OTHER,Surgery,NHS LOGISTICS,1012007930,1.36,
Department of Health,Salisbury NHS Foundation Trust,13-May-11,MEDSURGCONS - OTHER,Surgery,NHS LOGISTICS,1012007930,1.36,
Department of Health,Salisbury NHS Foundation Trust,13-May-11,DRESSINGS - PRE STERILE,Medicine,NHS LOGISTICS,1012007930,1.36,
Department of Health,Salisbury NHS Foundation Trust,13-May-11,TUBES,Medicine,NHS LOGISTICS,1012007930,1.37,
Department of Health,Salisbury NHS Foundation Trust,13-May-11,STATIONERY SUNDRIES,Critical care,NHS LOGISTICS,1012007930,1.37,
Department of Health,Salisbury NHS Foundation Trust,13-May-11,OTHER MEDICAL SUPPLIES,Clinical Support and Family Services,NHS LOGISTICS,1012007930,1.37,
Department of Health,Salisbury NHS Foundation Trust,13-May-11,TUBES,Medicine,NHS LOGISTICS,1012007930,1.37,
Department of Health,Salisbury NHS Foundation Trust,13-May-11,TUBES,Critical care,NHS LOGISTICS,1012007930,1.37,
Department of Health,Salisbury NHS Foundation Trust,13-May-11,OTHER MEDICAL SUPPLIES,Medicine,NHS LOGISTICS,1012007930,1.37,
Department of Health,Salisbury NHS Foundation Trust,13-May-11,TUBES,Surgery,NHS LOGISTICS,1012007930,1.37,
Department of Health,Salisbury NHS Foundation Trust,13-May-11,DISPOSABLE THEATRE DRAPES WIPES,Medicine,NHS LOGISTICS,1012011882,1.37,
Department of Health,Salisbury NHS Foundation Trust,13-May-11,HARD/SOFTWARE-COMPUTER ACCESSORIES  TEST EQUIPMENT,Medicine,NHS LOGISTICS,1012007930,1.38,
Department of Health,Salisbury NHS Foundation Trust,13-May-11,TUBES,Clinical Support and Family Services,NHS LOGISTICS,1012007930,1.38,
Department of Health,Salisbury NHS Foundation Trust,13-May-11,M & S EQUIPELECTEQUIPINST - OTHER,Critical care,NHS LOGISTICS,1012007930,1.38,
Department of Health,Salisbury NHS Foundation Trust,13-May-11,STATIONERY SUNDRIES,Facilities Directorate,NHS LOGISTICS,1012007930,1.38,
Department of Health,Salisbury NHS Foundation Trust,13-May-11,DISPOSABLE THEATRE DRAPES WIPES,Clinical Support and Family Services,NHS LOGISTICS,1012007930,1.38,
Department of Health,Salisbury NHS Foundation Trust,13-May-11,STATIONERY SUNDRIES,Medicine,NHS LOGISTICS,1012007930,1.4,
Department of Health,Salisbury NHS Foundation Trust,13-May-11,CLEANING MATERIALS PRODUCTS SUNDRIES,Medicine,NHS LOGISTICS,1012007930,1.4,
Department of Health,Salisbury NHS Foundation Trust,13-May-11,PATIENT APPLIANCES,Critical care,NHS LOGISTICS,1012007930,1.4,
Department of Health,Salisbury NHS Foundation Trust,13-May-11,PATIENT APPLIANCES,Critical care,NHS LOGISTICS,1012007930,1.4,
Department of Health,Salisbury NHS Foundation Trust,13-May-11,OTHER MEDICAL SUPPLIES,Clinical Support and Family Services,NHS LOGISTICS,1012007930,1.4,
Department of Health,Salisbury NHS Foundation Trust,13-May-11,SURGICAL INSTRUMENTS: GENERAL,Medicine,NHS LOGISTICS,1012007930,1.4,
Department of Health,Salisbury NHS Foundation Trust,13-May-11,SURGICAL INSTRUMENTS: GENERAL,Medicine,NHS LOGISTICS,1012007930,1.4,
Department of Health,Salisbury NHS Foundation Trust,13-May-11,SURGICAL INSTRUMENTS: GENERAL,Medicine,NHS LOGISTICS,1012007930,1.4,
Department of Health,Salisbury NHS Foundation Trust,13-May-11,STATIONERY SUNDRIES,Clinical Support and Family Services,NHS LOGISTICS,1012011882,1.4,
Department of Health,Salisbury NHS Foundation Trust,13-May-11,PAPER ITEMS GENERAL STATIONERY SUNDRIES,Clinical Support and Family Services,NHS LOGISTICS,1012007930,1.42,
Department of Health,Salisbury NHS Foundation Trust,13-May-11,TOILETRIES PERSONAL HYGIENE PRODUCTS,Clinical Support and Family Services,NHS LOGISTICS,1012007930,1.42,
Department of Health,Salisbury NHS Foundation Trust,13-May-11,SURGICAL INSTRUMENTS: GENERAL,Surgery,NHS LOGISTICS,1012007930,1.42,
Department of Health,Salisbury NHS Foundation Trust,13-May-11,CLEANING MATERIALS PRODUCTS SUNDRIES,Facilities Directorate,NHS LOGISTICS,1012011882,1.42,
Department of Health,Salisbury NHS Foundation Trust,13-May-11,PAPER ITEMS GENERAL STATIONERY SUNDRIES,Clinical Support and Family Services,NHS LOGISTICS,1012011882,1.42,
Department of Health,Salisbury NHS Foundation Trust,13-May-11,MEDSURGCONS - OTHER,Clinical Support and Family Services,NHS LOGISTICS,1012011882,1.42,
Department of Health,Salisbury NHS Foundation Trust,13-May-11,TISSUES HAND TOWELS & TOILET PAPER,Surgery,NHS LOGISTICS,1012007930,1.43,
Department of Health,Salisbury NHS Foundation Trust,13-May-11,TISSUES HAND TOWELS & TOILET PAPER,Critical care,NHS LOGISTICS,1012007930,1.43,
Department of Health,Salisbury NHS Foundation Trust,13-May-11,DRESSINGS  -  PROCEDURE PACKS,Medicine,NHS LOGISTICS,1012007930,1.43,
Department of Health,Salisbury NHS Foundation Trust,13-May-11,DRESSINGS  -  PROCEDURE PACKS,Critical care,NHS LOGISTICS,1012007930,1.43,
Department of Health,Salisbury NHS Foundation Trust,13-May-11,ELECTRICAL EQUIPMENT x,Surgery,NHS LOGISTICS,1012007930,1.43,
Department of Health,Salisbury NHS Foundation Trust,13-May-11,TISSUES HAND TOWELS & TOILET PAPER,Surgery,NHS LOGISTICS,1012007930,1.43,
Department of Health,Salisbury NHS Foundation Trust,13-May-11,M & S EQUIPELECTEQUIPINST - OTHER,Medicine,NHS LOGISTICS,1012007930,1.43,
Department of Health,Salisbury NHS Foundation Trust,13-May-11,OTHER MEDICAL SUPPLIES,Surgery,NHS LOGISTICS,1012007930,1.43,
Department of Health,Salisbury NHS Foundation Trust,13-May-11,DRESSINGS  -  PROCEDURE PACKS,Medicine,NHS LOGISTICS,1012011882,1.43,
Department of Health,Salisbury NHS Foundation Trust,13-May-11,OTHER MEDICAL SUPPLIES,Medicine,NHS LOGISTICS,1012011882,1.43,
Department of Health,Salisbury NHS Foundation Trust,13-May-11,TISSUES HAND TOWELS & TOILET PAPER,Medicine,NHS LOGISTICS,1012011882,1.43,
Department of Health,Salisbury NHS Foundation Trust,13-May-11,DRESSINGS  -  PROCEDURE PACKS,Medicine,NHS LOGISTICS,1012011882,1.43,
Department of Health,Salisbury NHS Foundation Trust,13-May-11,DRESSINGS  -  PROCEDURE PACKS,Clinical Support and Family Services,NHS LOGISTICS,1012011882,1.43,
Department of Health,Salisbury NHS Foundation Trust,13-May-11,DRESSINGS  -  PROCEDURE PACKS,Clinical Support and Family Services,NHS LOGISTICS,1012011882,1.43,
Department of Health,Salisbury NHS Foundation Trust,13-May-11,TISSUES HAND TOWELS & TOILET PAPER,Critical care,NHS LOGISTICS,1012011882,1.43,
Department of Health,Salisbury NHS Foundation Trust,13-May-11,DRESSINGS  -  PROCEDURE PACKS,Critical care,NHS LOGISTICS,1012011882,1.43,
Department of Health,Salisbury NHS Foundation Trust,13-May-11,STATIONERY SUNDRIES,Critical care,NHS LOGISTICS,1012007930,1.44,
Department of Health,Salisbury NHS Foundation Trust,13-May-11,DENTAL SURGERY SUNDRIES,Critical care,NHS LOGISTICS,1012007930,1.44,
Department of Health,Salisbury NHS Foundation Trust,13-May-11,OTHER MEDICAL SUPPLIES,Medicine,NHS LOGISTICS,1012007930,1.45,
Department of Health,Salisbury NHS Foundation Trust,13-May-11,OTHER MEDICAL SUPPLIES,Clinical Support and Family Services,NHS LOGISTICS,1012007930,1.45,
Department of Health,Salisbury NHS Foundation Trust,13-May-11,OTHER MEDICAL SUPPLIES,Medicine,NHS LOGISTICS,1012007930,1.45,
Department of Health,Salisbury NHS Foundation Trust,13-May-11,OTHER MEDICAL SUPPLIES,Medicine,NHS LOGISTICS,1012007930,1.45,
Department of Health,Salisbury NHS Foundation Trust,13-May-11,OTHER MEDICAL SUPPLIES,Critical care,NHS LOGISTICS,1012007930,1.45,
Department of Health,Salisbury NHS Foundation Trust,13-May-11,OTHER MEDICAL SUPPLIES,Surgery,NHS LOGISTICS,1012007930,1.45,
Department of Health,Salisbury NHS Foundation Trust,13-May-11,DRESSINGS - PRE STERILE,Medicine,NHS LOGISTICS,1012007930,1.45,
Department of Health,Salisbury NHS Foundation Trust,13-May-11,BAGS SACKS - OTHER,Surgery,NHS LOGISTICS,1012007930,1.45,
Department of Health,Salisbury NHS Foundation Trust,13-May-11,OTHER MEDICAL SUPPLIES,Medicine,NHS LOGISTICS,1012007930,1.45,
Department of Health,Salisbury NHS Foundation Trust,13-May-11,TOILETRIES PERSONAL HYGIENE PRODUCTS,Medicine,NHS LOGISTICS,1012007930,1.45,
Department of Health,Salisbury NHS Foundation Trust,13-May-11,OTHER MEDICAL SUPPLIES,Medicine,NHS LOGISTICS,1012007930,1.45,
Department of Health,Salisbury NHS Foundation Trust,13-May-11,OTHER MEDICAL SUPPLIES,Medicine,NHS LOGISTICS,1012007930,1.45,
Department of Health,Salisbury NHS Foundation Trust,13-May-11,OTHER MEDICAL SUPPLIES,Medicine,NHS LOGISTICS,1012011882,1.45,
Department of Health,Salisbury NHS Foundation Trust,13-May-11,OTHER MEDICAL SUPPLIES,Medicine,NHS LOGISTICS,1012011882,1.45,
Department of Health,Salisbury NHS Foundation Trust,13-May-11,BAGS SACKS - OTHER,Clinical Support and Family Services,NHS LOGISTICS,1012011882,1.45,
Department of Health,Salisbury NHS Foundation Trust,13-May-11,OTHER MEDICAL SUPPLIES,Medicine,NHS LOGISTICS,1012011882,1.45,
Department of Health,Salisbury NHS Foundation Trust,13-May-11,OTHER MEDICAL SUPPLIES,Clinical Support and Family Services,NHS LOGISTICS,1012011882,1.45,
Department of Health,Salisbury NHS Foundation Trust,13-May-11,OTHER MEDICAL SUPPLIES,Surgery,NHS LOGISTICS,1012011882,1.45,
Department of Health,Salisbury NHS Foundation Trust,13-May-11,OTHER MEDICAL SUPPLIES,Critical care,NHS LOGISTICS,1012011882,1.45,
Department of Health,Salisbury NHS Foundation Trust,13-May-11,DRESSINGS  -  PROCEDURE PACKS,Surgery,NHS LOGISTICS,1012007930,1.46,
Department of Health,Salisbury NHS Foundation Trust,13-May-11,STATIONERY SUNDRIES,Medicine,NHS LOGISTICS,1012007930,1.46,
Department of Health,Salisbury NHS Foundation Trust,13-May-11,MEDSURGCONS - OTHER,Surgery,NHS LOGISTICS,1012007930,1.46,
Department of Health,Salisbury NHS Foundation Trust,13-May-11,MEDSURGCONS - OTHER,Critical care,NHS LOGISTICS,1012007930,1.46,
Department of Health,Salisbury NHS Foundation Trust,13-May-11,MEDSURGCONS - OTHER,Clinical Support and Family Services,NHS LOGISTICS,1012007930,1.46,
Department of Health,Salisbury NHS Foundation Trust,13-May-11,OTHER MEDICAL SUPPLIES,Medicine,NHS LOGISTICS,1012007930,1.47,
Department of Health,Salisbury NHS Foundation Trust,13-May-11,OTHER MEDICAL SUPPLIES,Clinical Support and Family Services,NHS LOGISTICS,1012007930,1.47,
Department of Health,Salisbury NHS Foundation Trust,13-May-11,OTHER MEDICAL SUPPLIES,Critical care,NHS LOGISTICS,1012007930,1.47,
Department of Health,Salisbury NHS Foundation Trust,13-May-11,OTHER MEDICAL SUPPLIES,Surgery,NHS LOGISTICS,1012007930,1.47,
Department of Health,Salisbury NHS Foundation Trust,13-May-11,OTHER MEDICAL SUPPLIES,Surgery,NHS LOGISTICS,1012007930,1.47,
Department of Health,Salisbury NHS Foundation Trust,13-May-11,OTHER MEDICAL SUPPLIES,Critical care,NHS LOGISTICS,1012007930,1.47,
Department of Health,Salisbury NHS Foundation Trust,13-May-11,OTHER MEDICAL SUPPLIES,Medicine,NHS LOGISTICS,1012007930,1.47,
Department of Health,Salisbury NHS Foundation Trust,13-May-11,PAPER ITEMS GENERAL STATIONERY SUNDRIES,Facilities Directorate,NHS LOGISTICS,1012007930,1.47,
Department of Health,Salisbury NHS Foundation Trust,13-May-11,OTHER MEDICAL SUPPLIES,Clinical Support and Family Services,NHS LOGISTICS,1012007930,1.47,
Department of Health,Salisbury NHS Foundation Trust,13-May-11,OTHER MEDICAL SUPPLIES,Medicine,NHS LOGISTICS,1012007930,1.47,
Department of Health,Salisbury NHS Foundation Trust,13-May-11,DRESSINGS - PRE STERILE,Surgery,NHS LOGISTICS,1012007930,1.47,
Department of Health,Salisbury NHS Foundation Trust,13-May-11,OTHER MEDICAL SUPPLIES,Medicine,NHS LOGISTICS,1012007930,1.47,
Department of Health,Salisbury NHS Foundation Trust,13-May-11,PATIENTS INCONTINENCE,Clinical Support and Family Services,NHS LOGISTICS,1012007930,1.47,
Department of Health,Salisbury NHS Foundation Trust,13-May-11,DRESSINGS - PRE STERILE,Critical care,NHS LOGISTICS,1012007930,1.47,
Department of Health,Salisbury NHS Foundation Trust,13-May-11,DRESSINGS - PRE STERILE,Medicine,NHS LOGISTICS,1012007930,1.47,
Department of Health,Salisbury NHS Foundation Trust,13-May-11,OTHER MEDICAL SUPPLIES,Medicine,NHS LOGISTICS,1012011882,1.47,
Department of Health,Salisbury NHS Foundation Trust,13-May-11,OTHER MEDICAL SUPPLIES,Clinical Support and Family Services,NHS LOGISTICS,1012011882,1.47,
Department of Health,Salisbury NHS Foundation Trust,13-May-11,OTHER MEDICAL SUPPLIES,Clinical Support and Family Services,NHS LOGISTICS,1012011882,1.47,
Department of Health,Salisbury NHS Foundation Trust,13-May-11,OTHER MEDICAL SUPPLIES,Surgery,NHS LOGISTICS,1012011882,1.47,
Department of Health,Salisbury NHS Foundation Trust,13-May-11,OTHER MEDICAL SUPPLIES,Medicine,NHS LOGISTICS,1012011882,1.47,
Department of Health,Salisbury NHS Foundation Trust,13-May-11,OTHER MEDICAL SUPPLIES,Medicine,NHS LOGISTICS,1012011882,1.47,
Department of Health,Salisbury NHS Foundation Trust,13-May-11,OTHER MEDICAL SUPPLIES,Surgery,NHS LOGISTICS,1012011882,1.47,
Department of Health,Salisbury NHS Foundation Trust,13-May-11,OTHER MEDICAL SUPPLIES,Critical care,NHS LOGISTICS,1012011882,1.47,
Department of Health,Salisbury NHS Foundation Trust,13-May-11,DRUGS,Medicine,NHS LOGISTICS,1012007930,1.48,
Department of Health,Salisbury NHS Foundation Trust,13-May-11,STATIONERY SUNDRIES,Critical care,NHS LOGISTICS,1012007930,1.48,
Department of Health,Salisbury NHS Foundation Trust,13-May-11,SURGICAL INSTRUMENTS: GENERAL,Medicine,NHS LOGISTICS,1012007930,1.48,
Department of Health,Salisbury NHS Foundation Trust,13-May-11,TISSUES HAND TOWELS & TOILET PAPER,Critical care,NHS LOGISTICS,1012007930,1.48,
Department of Health,Salisbury NHS Foundation Trust,13-May-11,DRESSINGS - PRE STERILE,Surgery,NHS LOGISTICS,1012007930,1.48,
Department of Health,Salisbury NHS Foundation Trust,13-May-11,CLEANING MATERIALS PRODUCTS SUNDRIES,Facilities Directorate,NHS LOGISTICS,1012011882,1.48,
Department of Health,Salisbury NHS Foundation Trust,13-May-11,DISPOSABLE THEATRE DRAPES WIPES,Surgery,NHS LOGISTICS,1012011882,1.48,
Department of Health,Salisbury NHS Foundation Trust,13-May-11,DISPOSABLE THEATRE DRAPES WIPES,Surgery,NHS LOGISTICS,1012011882,1.48,
Department of Health,Salisbury NHS Foundation Trust,13-May-11,DRESSINGS - PRE STERILE,Medicine,NHS LOGISTICS,1012007930,1.49,
Department of Health,Salisbury NHS Foundation Trust,13-May-11,DISPOSABLE TABLE LINEN,Medicine,NHS LOGISTICS,1012007930,1.49,
Department of Health,Salisbury NHS Foundation Trust,13-May-11,DRESSINGS - PRE STERILE,Medicine,NHS LOGISTICS,1012007930,1.49,
Department of Health,Salisbury NHS Foundation Trust,13-May-11,MEDSURGCONS - OTHER,Surgery,NHS LOGISTICS,1012007930,1.49,
Department of Health,Salisbury NHS Foundation Trust,13-May-11,MEDSURGCONS - OTHER,Surgery,NHS LOGISTICS,1012007930,1.49,
Department of Health,Salisbury NHS Foundation Trust,13-May-11,MEDSURGCONS - OTHER,Clinical Support and Family Services,NHS LOGISTICS,1012007930,1.49,
Department of Health,Salisbury NHS Foundation Trust,13-May-11,MEDSURGCONS - OTHER,Medicine,NHS LOGISTICS,1012007930,1.49,
Department of Health,Salisbury NHS Foundation Trust,13-May-11,MEDSURGCONS - OTHER,Critical care,NHS LOGISTICS,1012007930,1.49,
Department of Health,Salisbury NHS Foundation Trust,13-May-11,MEDSURGCONS - OTHER,Medicine,NHS LOGISTICS,1012007930,1.49,
Department of Health,Salisbury NHS Foundation Trust,13-May-11,CLEANING MATERIALS PRODUCTS SUNDRIES,Facilities Directorate,NHS LOGISTICS,1012011882,1.49,
Department of Health,Salisbury NHS Foundation Trust,13-May-11,DRESSINGS - PRE STERILE,Medicine,NHS LOGISTICS,1012011882,1.49,
Department of Health,Salisbury NHS Foundation Trust,13-May-11,DRESSINGS - PRE STERILE,Surgery,NHS LOGISTICS,1012011882,1.49,
Department of Health,Salisbury NHS Foundation Trust,13-May-11,TUBES,Medicine,NHS LOGISTICS,1012007930,1.5,
Department of Health,Salisbury NHS Foundation Trust,13-May-11,SURGICAL INSTRUMENTS: GENERAL,Surgery,NHS LOGISTICS,1012007930,1.5,
Department of Health,Salisbury NHS Foundation Trust,13-May-11,ANAESTHETIC EQUIPMENT ACCESSORIES,Surgery,NHS LOGISTICS,1012007930,1.5,
Department of Health,Salisbury NHS Foundation Trust,13-May-11,DRESSINGS - PRE STERILE,Surgery,NHS LOGISTICS,1012007930,1.5,
Department of Health,Salisbury NHS Foundation Trust,13-May-11,DRESSINGS - PRE STERILE,Surgery,NHS LOGISTICS,1012007930,1.5,
Department of Health,Salisbury NHS Foundation Trust,13-May-11,DISPOSABLE THEATRE DRAPES WIPES,Medicine,NHS LOGISTICS,1012007930,1.5,
Department of Health,Salisbury NHS Foundation Trust,13-May-11,M & S EQUIPELECTEQUIPINST - OTHER,Medicine,NHS LOGISTICS,1012007930,1.5,
Department of Health,Salisbury NHS Foundation Trust,13-May-11,DISPOSABLE THEATRE DRAPES WIPES,Medicine,NHS LOGISTICS,1012007930,1.5,
Department of Health,Salisbury NHS Foundation Trust,13-May-11,ANAESTHETIC EQUIPMENT ACCESSORIES,Medicine,NHS LOGISTICS,1012011882,1.5,
Department of Health,Salisbury NHS Foundation Trust,13-May-11,ANAESTHETIC EQUIPMENT ACCESSORIES,Critical care,NHS LOGISTICS,1012011882,1.5,
Department of Health,Salisbury NHS Foundation Trust,13-May-11,SURGICAL INSTRUMENTS: GENERAL,Surgery,NHS LOGISTICS,1012011882,1.5,
Department of Health,Salisbury NHS Foundation Trust,13-May-11,SURGICAL INSTRUMENTS: GENERAL,Surgery,NHS LOGISTICS,1012011882,1.5,
Department of Health,Salisbury NHS Foundation Trust,13-May-11,DRESSINGS - PRE STERILE,Medicine,NHS LOGISTICS,1012007930,1.51,
Department of Health,Salisbury NHS Foundation Trust,13-May-11,CLEANING MATERIALS PRODUCTS SUNDRIES,Facilities Directorate,NHS LOGISTICS,1012007930,1.51,
Department of Health,Salisbury NHS Foundation Trust,13-May-11,MEDSURGCONS - OTHER,Medicine,NHS LOGISTICS,1012007930,1.51,
Department of Health,Salisbury NHS Foundation Trust,13-May-11,TOILETRIES PERSONAL HYGIENE PRODUCTS,Critical care,NHS LOGISTICS,1012007930,1.51,
Department of Health,Salisbury NHS Foundation Trust,13-May-11,TOILETRIES PERSONAL HYGIENE PRODUCTS,Medicine,NHS LOGISTICS,1012007930,1.51,
Department of Health,Salisbury NHS Foundation Trust,13-May-11,MEDSURGCONS - OTHER,Medicine,NHS LOGISTICS,1012007930,1.51,
Department of Health,Salisbury NHS Foundation Trust,13-May-11,TOILETRIES PERSONAL HYGIENE PRODUCTS,Medicine,NHS LOGISTICS,1012007930,1.51,
Department of Health,Salisbury NHS Foundation Trust,13-May-11,MEDSURGCONS - OTHER,Surgery,NHS LOGISTICS,1012007930,1.51,
Department of Health,Salisbury NHS Foundation Trust,13-May-11,MEDSURGCONS - OTHER,Medicine,NHS LOGISTICS,1012007930,1.51,
Department of Health,Salisbury NHS Foundation Trust,13-May-11,DRESSINGS - PRE STERILE,Medicine,NHS LOGISTICS,1012007930,1.52,
Department of Health,Salisbury NHS Foundation Trust,13-May-11,M & S EQUIPELECTEQUIPINST - OTHER,Clinical Support and Family Services,NHS LOGISTICS,1012007930,1.52,
Department of Health,Salisbury NHS Foundation Trust,13-May-11,DRUGS,Clinical Support and Family Services,NHS LOGISTICS,1012007930,1.52,
Department of Health,Salisbury NHS Foundation Trust,13-May-11,DRESSINGS - PRE STERILE,Medicine,NHS LOGISTICS,1012007930,1.52,
Department of Health,Salisbury NHS Foundation Trust,13-May-11,DRESSINGS - PRE STERILE,Medicine,NHS LOGISTICS,1012007930,1.52,
Department of Health,Salisbury NHS Foundation Trust,13-May-11,DRESSINGS - PRE STERILE,Clinical Support and Family Services,NHS LOGISTICS,1012007930,1.52,
Department of Health,Salisbury NHS Foundation Trust,13-May-11,DRESSINGS - PRE STERILE,Surgery,NHS LOGISTICS,1012007930,1.52,
Department of Health,Salisbury NHS Foundation Trust,13-May-11,MEDSURGCONS - OTHER,Clinical Support and Family Services,NHS LOGISTICS,1012007930,1.52,
Department of Health,Salisbury NHS Foundation Trust,13-May-11,MEDSURGCONS - OTHER,Clinical Support and Family Services,NHS LOGISTICS,1012007930,1.52,
Department of Health,Salisbury NHS Foundation Trust,13-May-11,OTHER MEDICAL SUPPLIES,Surgery,NHS LOGISTICS,1012007930,1.52,
Department of Health,Salisbury NHS Foundation Trust,13-May-11,DRUGS,Medicine,NHS LOGISTICS,1012007930,1.52,
Department of Health,Salisbury NHS Foundation Trust,13-May-11,OTHER MEDICAL SUPPLIES,Medicine,NHS LOGISTICS,1012007930,1.52,
Department of Health,Salisbury NHS Foundation Trust,13-May-11,M & S EQUIPELECTEQUIPINST - OTHER,Critical care,NHS LOGISTICS,1012007930,1.52,
Department of Health,Salisbury NHS Foundation Trust,13-May-11,DISPOSABLE THEATRE DRAPES WIPES,Medicine,NHS LOGISTICS,1012007930,1.52,
Department of Health,Salisbury NHS Foundation Trust,13-May-11,MEDSURGCONS - OTHER,Medicine,NHS LOGISTICS,1012007930,1.52,
Department of Health,Salisbury NHS Foundation Trust,13-May-11,DRESSINGS - PRE STERILE,Medicine,NHS LOGISTICS,1012011882,1.52,
Department of Health,Salisbury NHS Foundation Trust,13-May-11,DRESSINGS - PRE STERILE,Medicine,NHS LOGISTICS,1012011882,1.52,
Department of Health,Salisbury NHS Foundation Trust,13-May-11,DRESSINGS - PRE STERILE,Clinical Support and Family Services,NHS LOGISTICS,1012011882,1.52,
Department of Health,Salisbury NHS Foundation Trust,13-May-11,PAPER ITEMS GENERAL STATIONERY SUNDRIES,Medicine,NHS LOGISTICS,1012007930,1.53,
Department of Health,Salisbury NHS Foundation Trust,13-May-11,DRUGS,Clinical Support and Family Services,NHS LOGISTICS,1012007930,1.53,
Department of Health,Salisbury NHS Foundation Trust,13-May-11,DRESSINGS  -  PROCEDURE PACKS,Medicine,NHS LOGISTICS,1012007930,1.53,
Department of Health,Salisbury NHS Foundation Trust,13-May-11,STATIONERY SUNDRIES,Human Resources,NHS LOGISTICS,1012011882,1.53,
Department of Health,Salisbury NHS Foundation Trust,13-May-11,DRUGS,Surgery,NHS LOGISTICS,1012011882,1.53,
Department of Health,Salisbury NHS Foundation Trust,13-May-11,DRUGS,Critical care,NHS LOGISTICS,1012011882,1.53,
Department of Health,Salisbury NHS Foundation Trust,13-May-11,DRUGS,Surgery,NHS LOGISTICS,1012011882,1.53,
Department of Health,Salisbury NHS Foundation Trust,13-May-11,MEDSURGCONS - OTHER,Medicine,NHS LOGISTICS,1012007930,1.54,
Department of Health,Salisbury NHS Foundation Trust,13-May-11,MEDSURGCONS - OTHER,Medicine,NHS LOGISTICS,1012007930,1.54,
Department of Health,Salisbury NHS Foundation Trust,13-May-11,MEDSURGCONS - OTHER,Surgery,NHS LOGISTICS,1012007930,1.54,
Department of Health,Salisbury NHS Foundation Trust,13-May-11,MEDSURGCONS - OTHER,Medicine,NHS LOGISTICS,1012007930,1.54,
Department of Health,Salisbury NHS Foundation Trust,13-May-11,HARD/SOFTWARE-COMPUTER ACCESSORIES  TEST EQUIPMENT,Facilities Directorate,NHS LOGISTICS,1012007930,1.54,
Department of Health,Salisbury NHS Foundation Trust,13-May-11,DRESSINGS - PRE STERILE,Clinical Support and Family Services,NHS LOGISTICS,1012007930,1.54,
Department of Health,Salisbury NHS Foundation Trust,13-May-11,STATIONERY SUNDRIES,Medicine,NHS LOGISTICS,1012007930,1.54,
Department of Health,Salisbury NHS Foundation Trust,13-May-11,OTHER MEDICAL SUPPLIES,Surgery,NHS LOGISTICS,1012007930,1.54,
Department of Health,Salisbury NHS Foundation Trust,13-May-11,MEDSURGCONS - OTHER,Medicine,NHS LOGISTICS,1012011882,1.54,
Department of Health,Salisbury NHS Foundation Trust,13-May-11,MEDSURGCONS - OTHER,Medicine,NHS LOGISTICS,1012011882,1.54,
Department of Health,Salisbury NHS Foundation Trust,13-May-11,ANAESTHETIC EQUIPMENT ACCESSORIES,Medicine,NHS LOGISTICS,1012011882,1.54,
Department of Health,Salisbury NHS Foundation Trust,13-May-11,MEDSURGCONS - OTHER,Surgery,NHS LOGISTICS,1012011882,1.54,
Department of Health,Salisbury NHS Foundation Trust,13-May-11,ELECTRICAL EQUIPMENT x,Corporate Directorate,NHS LOGISTICS,1012007930,1.55,
Department of Health,Salisbury NHS Foundation Trust,13-May-11,OTHER MEDICAL SUPPLIES,Medicine,NHS LOGISTICS,1012007930,1.55,
Department of Health,Salisbury NHS Foundation Trust,13-May-11,OTHER MEDICAL SUPPLIES,Surgery,NHS LOGISTICS,1012007930,1.55,
Department of Health,Salisbury NHS Foundation Trust,13-May-11,OTHER MEDICAL SUPPLIES,Medicine,NHS LOGISTICS,1012007930,1.55,
Department of Health,Salisbury NHS Foundation Trust,13-May-11,OTHER MEDICAL SUPPLIES,Surgery,NHS LOGISTICS,1012007930,1.55,
Department of Health,Salisbury NHS Foundation Trust,13-May-11,OTHER MEDICAL SUPPLIES,Medicine,NHS LOGISTICS,1012007930,1.55,
Department of Health,Salisbury NHS Foundation Trust,13-May-11,HARD/SOFTWARE-COMPUTER ACCESSORIES  TEST EQUIPMENT,Clinical Support and Family Services,NHS LOGISTICS,1012007930,1.56,
Department of Health,Salisbury NHS Foundation Trust,13-May-11,DRESSINGS - PRE STERILE,Critical care,NHS LOGISTICS,1012007930,1.56,
Department of Health,Salisbury NHS Foundation Trust,13-May-11,DISPOSABLE THEATRE DRAPES WIPES,Clinical Support and Family Services,NHS LOGISTICS,1012007930,1.57,
Department of Health,Salisbury NHS Foundation Trust,13-May-11,DRESSINGS - PRE STERILE,Critical care,NHS LOGISTICS,1012007930,1.57,
Department of Health,Salisbury NHS Foundation Trust,13-May-11,DISPOSABLE THEATRE DRAPES WIPES,Medicine,NHS LOGISTICS,1012007930,1.57,
Department of Health,Salisbury NHS Foundation Trust,13-May-11,DISPOSABLE THEATRE DRAPES WIPES,Critical care,NHS LOGISTICS,1012007930,1.57,
Department of Health,Salisbury NHS Foundation Trust,13-May-11,DISPOSABLE THEATRE DRAPES WIPES,Medicine,NHS LOGISTICS,1012007930,1.57,
Department of Health,Salisbury NHS Foundation Trust,13-May-11,STATIONERY SUNDRIES,Critical care,NHS LOGISTICS,1012011882,1.57,
Department of Health,Salisbury NHS Foundation Trust,13-May-11,SURGICAL INSTRUMENTS: GENERAL,Medicine,NHS LOGISTICS,1012007930,1.58,
Department of Health,Salisbury NHS Foundation Trust,13-May-11,SURGICAL INSTRUMENTS: GENERAL,Medicine,NHS LOGISTICS,1012007930,1.58,
Department of Health,Salisbury NHS Foundation Trust,13-May-11,MEDSURGCONS - OTHER,Facilities Directorate,NHS LOGISTICS,1012007930,1.58,
Department of Health,Salisbury NHS Foundation Trust,13-May-11,HARD/SOFTWARE-COMPUTER ACCESSORIES  TEST EQUIPMENT,Facilities Directorate,NHS LOGISTICS,1012007930,1.59,
Department of Health,Salisbury NHS Foundation Trust,13-May-11,MEDSURGCONS - OTHER,Medicine,NHS LOGISTICS,1012007930,1.59,
Department of Health,Salisbury NHS Foundation Trust,13-May-11,MEDSURGCONS - OTHER,Surgery,NHS LOGISTICS,1012007930,1.59,
Department of Health,Salisbury NHS Foundation Trust,13-May-11,MEDSURGCONS - OTHER,Critical care,NHS LOGISTICS,1012007930,1.59,
Department of Health,Salisbury NHS Foundation Trust,13-May-11,MEDSURGCONS - OTHER,Medicine,NHS LOGISTICS,1012007930,1.59,
Department of Health,Salisbury NHS Foundation Trust,13-May-11,STATIONERY SUNDRIES,Medicine,NHS LOGISTICS,1012007930,1.6,
Department of Health,Salisbury NHS Foundation Trust,13-May-11,ELECTRICAL EQUIPMENT x,Surgery,NHS LOGISTICS,1012007930,1.6,
Department of Health,Salisbury NHS Foundation Trust,13-May-11,MEDSURGCONS - OTHER,Clinical Support and Family Services,NHS LOGISTICS,1012007930,1.6,
Department of Health,Salisbury NHS Foundation Trust,13-May-11,ELECTRICAL EQUIPMENT x,Surgery,NHS LOGISTICS,1012011882,1.6,
Department of Health,Salisbury NHS Foundation Trust,13-May-11,MEDSURGCONS - OTHER,Medicine,NHS LOGISTICS,1012011882,1.6,
Department of Health,Salisbury NHS Foundation Trust,13-May-11,ELECTRICAL EQUIPMENT x,Medicine,NHS LOGISTICS,1012011882,1.6,
Department of Health,Salisbury NHS Foundation Trust,13-May-11,OTHER MEDICAL SUPPLIES,Medicine,NHS LOGISTICS,1012007930,1.61,
Department of Health,Salisbury NHS Foundation Trust,13-May-11,STATIONERY SUNDRIES,Clinical Support and Family Services,NHS LOGISTICS,1012007930,1.62,
Department of Health,Salisbury NHS Foundation Trust,13-May-11,SURGICAL INSTRUMENTS: GENERAL,Medicine,NHS LOGISTICS,1012007930,1.62,
Department of Health,Salisbury NHS Foundation Trust,13-May-11,DRESSINGS - PRE STERILE,Medicine,NHS LOGISTICS,1012007930,1.62,
Department of Health,Salisbury NHS Foundation Trust,13-May-11,ELECTRICAL EQUIPMENT x,Clinical Support and Family Services,NHS LOGISTICS,1012011882,1.62,
Department of Health,Salisbury NHS Foundation Trust,13-May-11,PAPER ITEMS GENERAL STATIONERY SUNDRIES,Clinical Effctiveness Directorate,NHS LOGISTICS,1012007930,1.63,
Department of Health,Salisbury NHS Foundation Trust,13-May-11,ELECTRICAL EQUIPMENT x,Medicine,NHS LOGISTICS,1012007930,1.63,
Department of Health,Salisbury NHS Foundation Trust,13-May-11,ELECTRICAL EQUIPMENT x,Clinical Support and Family Services,NHS LOGISTICS,1012011882,1.63,
Department of Health,Salisbury NHS Foundation Trust,13-May-11,STATIONERY SUNDRIES,Clinical Support and Family Services,NHS LOGISTICS,1012007930,1.64,
Department of Health,Salisbury NHS Foundation Trust,13-May-11,OFFICE EQUIP MACHINERY  -  OTHER,Surgery,NHS LOGISTICS,1012007930,1.64,
Department of Health,Salisbury NHS Foundation Trust,13-May-11,STATIONERY SUNDRIES,Medicine,NHS LOGISTICS,1012007930,1.64,
Department of Health,Salisbury NHS Foundation Trust,13-May-11,DRESSINGS - PRE STERILE,Medicine,NHS LOGISTICS,1012007930,1.64,
Department of Health,Salisbury NHS Foundation Trust,13-May-11,CLEANING MATERIALS PRODUCTS SUNDRIES,Human Resources,NHS LOGISTICS,1012007930,1.64,
Department of Health,Salisbury NHS Foundation Trust,13-May-11,CLEANING MATERIALS PRODUCTS SUNDRIES,Medicine,NHS LOGISTICS,1012007930,1.64,
Department of Health,Salisbury NHS Foundation Trust,13-May-11,CLEANING MATERIALS PRODUCTS SUNDRIES,Critical care,NHS LOGISTICS,1012007930,1.64,
Department of Health,Salisbury NHS Foundation Trust,13-May-11,DRESSINGS - PRE STERILE,Surgery,NHS LOGISTICS,1012007930,1.64,
Department of Health,Salisbury NHS Foundation Trust,13-May-11,PAPER ITEMS GENERAL STATIONERY SUNDRIES,Human Resources,NHS LOGISTICS,1012007930,1.65,
Department of Health,Salisbury NHS Foundation Trust,13-May-11,MEDSURGCONS - OTHER,Surgery,NHS LOGISTICS,1012007930,1.65,
Department of Health,Salisbury NHS Foundation Trust,13-May-11,STATIONERY SUNDRIES,Clinical Support and Family Services,NHS LOGISTICS,1012011882,1.65,
Department of Health,Salisbury NHS Foundation Trust,13-May-11,DRUGS,Medicine,NHS LOGISTICS,1012007930,1.66,
Department of Health,Salisbury NHS Foundation Trust,13-May-11,STATIONERY SUNDRIES,Critical care,NHS LOGISTICS,1012007930,1.66,
Department of Health,Salisbury NHS Foundation Trust,13-May-11,DRUGS,Medicine,NHS LOGISTICS,1012011882,1.66,
Department of Health,Salisbury NHS Foundation Trust,13-May-11,TISSUES HAND TOWELS & TOILET PAPER,Critical care,NHS LOGISTICS,1012007930,1.67,
Department of Health,Salisbury NHS Foundation Trust,13-May-11,SURGICAL INSTRUMENTS: GENERAL,Surgery,NHS LOGISTICS,1012007930,1.67,
Department of Health,Salisbury NHS Foundation Trust,13-May-11,DRESSINGS  -  PROCEDURE PACKS,Surgery,NHS LOGISTICS,1012007930,1.67,
Department of Health,Salisbury NHS Foundation Trust,13-May-11,DRESSINGS  -  PROCEDURE PACKS,Critical care,NHS LOGISTICS,1012007930,1.67,
Department of Health,Salisbury NHS Foundation Trust,13-May-11,TISSUES HAND TOWELS & TOILET PAPER,Critical care,NHS LOGISTICS,1012011882,1.67,
Department of Health,Salisbury NHS Foundation Trust,13-May-11,TISSUES HAND TOWELS & TOILET PAPER,Clinical Support and Family Services,NHS LOGISTICS,1012011882,1.67,
Department of Health,Salisbury NHS Foundation Trust,13-May-11,DRESSINGS - PRE STERILE,Surgery,NHS LOGISTICS,1012007930,1.68,
Department of Health,Salisbury NHS Foundation Trust,13-May-11,MEDSURGCONS - OTHER,Surgery,NHS LOGISTICS,1012007930,1.68,
Department of Health,Salisbury NHS Foundation Trust,13-May-11,MEDSURGCONS - OTHER,Medicine,NHS LOGISTICS,1012007930,1.68,
Department of Health,Salisbury NHS Foundation Trust,13-May-11,DRESSINGS - PRE STERILE,Medicine,NHS LOGISTICS,1012011882,1.68,
Department of Health,Salisbury NHS Foundation Trust,13-May-11,PATIENTS INCONTINENCE,Medicine,NHS LOGISTICS,1012007930,1.69,
Department of Health,Salisbury NHS Foundation Trust,13-May-11,MEDSURGCONS - OTHER,Medicine,NHS LOGISTICS,1012007930,1.69,
Department of Health,Salisbury NHS Foundation Trust,13-May-11,MEDSURGCONS - OTHER,Surgery,NHS LOGISTICS,1012007930,1.69,
Department of Health,Salisbury NHS Foundation Trust,13-May-11,PATIENTS INCONTINENCE,Medicine,NHS LOGISTICS,1012007930,1.69,
Department of Health,Salisbury NHS Foundation Trust,13-May-11,PATIENTS INCONTINENCE,Medicine,NHS LOGISTICS,1012007930,1.69,
Department of Health,Salisbury NHS Foundation Trust,13-May-11,TUBES,Surgery,NHS LOGISTICS,1012007930,1.7,
Department of Health,Salisbury NHS Foundation Trust,13-May-11,STATIONERY SUNDRIES,Clinical Support and Family Services,NHS LOGISTICS,1012011882,1.7,
Department of Health,Salisbury NHS Foundation Trust,13-May-11,MEDSURGCONS - OTHER,Medicine,NHS LOGISTICS,1012011882,1.7,
Department of Health,Salisbury NHS Foundation Trust,13-May-11,MEDSURGCONS - OTHER,Clinical Support and Family Services,NHS LOGISTICS,1012007930,1.71,
Department of Health,Salisbury NHS Foundation Trust,13-May-11,MEDSURGCONS - OTHER,Medicine,NHS LOGISTICS,1012007930,1.71,
Department of Health,Salisbury NHS Foundation Trust,13-May-11,DRESSINGS  -  PROCEDURE PACKS,Medicine,NHS LOGISTICS,1012007930,1.71,
Department of Health,Salisbury NHS Foundation Trust,13-May-11,DRESSINGS  -  PROCEDURE PACKS,Surgery,NHS LOGISTICS,1012007930,1.71,
Department of Health,Salisbury NHS Foundation Trust,13-May-11,SURGICAL INSTRUMENTS: DISPOSABLE,Medicine,NHS LOGISTICS,1012007930,1.72,
Department of Health,Salisbury NHS Foundation Trust,13-May-11,SURGICAL INSTRUMENTS: GENERAL,Surgery,NHS LOGISTICS,1012007930,1.72,
Department of Health,Salisbury NHS Foundation Trust,13-May-11,MEDSURGCONS - OTHER,Medicine,NHS LOGISTICS,1012007930,1.72,
Department of Health,Salisbury NHS Foundation Trust,13-May-11,MEDSURGCONS - OTHER,Medicine,NHS LOGISTICS,1012007930,1.72,
Department of Health,Salisbury NHS Foundation Trust,13-May-11,MEDSURGCONS - OTHER,Medicine,NHS LOGISTICS,1012007930,1.72,
Department of Health,Salisbury NHS Foundation Trust,13-May-11,DRESSINGS - PRE STERILE,Surgery,NHS LOGISTICS,1012007930,1.72,
Department of Health,Salisbury NHS Foundation Trust,13-May-11,OTHER MEDICAL SUPPLIES,Medicine,NHS LOGISTICS,1012007930,1.72,
Department of Health,Salisbury NHS Foundation Trust,13-May-11,MEDSURGCONS - OTHER,Medicine,NHS LOGISTICS,1012007930,1.72,
Department of Health,Salisbury NHS Foundation Trust,13-May-11,MEDSURGCONS - OTHER,Medicine,NHS LOGISTICS,1012007930,1.72,
Department of Health,Salisbury NHS Foundation Trust,13-May-11,MEDSURGCONS - OTHER,Medicine,NHS LOGISTICS,1012007930,1.72,
Department of Health,Salisbury NHS Foundation Trust,13-May-11,MEDSURGCONS - OTHER,Medicine,NHS LOGISTICS,1012007930,1.72,
Department of Health,Salisbury NHS Foundation Trust,13-May-11,SURGICAL INSTRUMENTS: GENERAL,Surgery,NHS LOGISTICS,1012011882,1.72,
Department of Health,Salisbury NHS Foundation Trust,13-May-11,SURGICAL INSTRUMENTS: GENERAL,Surgery,NHS LOGISTICS,1012011882,1.72,
Department of Health,Salisbury NHS Foundation Trust,13-May-11,SURGICAL INSTRUMENTS: GENERAL,Surgery,NHS LOGISTICS,1012011882,1.72,
Department of Health,Salisbury NHS Foundation Trust,13-May-11,SURGICAL INSTRUMENTS: GENERAL,Surgery,NHS LOGISTICS,1012011882,1.72,
Department of Health,Salisbury NHS Foundation Trust,13-May-11,SURGICAL INSTRUMENTS: GENERAL,Surgery,NHS LOGISTICS,1012011882,1.72,
Department of Health,Salisbury NHS Foundation Trust,13-May-11,SURGICAL INSTRUMENTS: GENERAL,Surgery,NHS LOGISTICS,1012011882,1.72,
Department of Health,Salisbury NHS Foundation Trust,13-May-11,CLEANING MATERIALS PRODUCTS SUNDRIES,Facilities Directorate,NHS LOGISTICS,1012007930,1.73,
Department of Health,Salisbury NHS Foundation Trust,13-May-11,M & S EQUIPELECTEQUIPINST - OTHER,Surgery,NHS LOGISTICS,1012007930,1.73,
Department of Health,Salisbury NHS Foundation Trust,13-May-11,M & S EQUIPELECTEQUIPINST - OTHER,Medicine,NHS LOGISTICS,1012007930,1.73,
Department of Health,Salisbury NHS Foundation Trust,13-May-11,DRESSINGS - PRE STERILE,Medicine,NHS LOGISTICS,1012007930,1.73,
Department of Health,Salisbury NHS Foundation Trust,13-May-11,DRESSINGS - PRE STERILE,Medicine,NHS LOGISTICS,1012007930,1.73,
Department of Health,Salisbury NHS Foundation Trust,13-May-11,BAGS SACKS - OTHER,Facilities Directorate,NHS LOGISTICS,1012011882,1.73,
Department of Health,Salisbury NHS Foundation Trust,13-May-11,M & S EQUIPELECTEQUIPINST - OTHER,Medicine,NHS LOGISTICS,1012011882,1.73,
Department of Health,Salisbury NHS Foundation Trust,13-May-11,M & S EQUIPELECTEQUIPINST - OTHER,Clinical Support and Family Services,NHS LOGISTICS,1012011882,1.73,
Department of Health,Salisbury NHS Foundation Trust,13-May-11,DRESSINGS - PRE STERILE,Surgery,NHS LOGISTICS,1012007930,1.74,
Department of Health,Salisbury NHS Foundation Trust,13-May-11,PATIENTS BABY WEAR,Clinical Support and Family Services,NHS LOGISTICS,1012011882,1.74,
Department of Health,Salisbury NHS Foundation Trust,13-May-11,SURGICAL INSTRUMENTS: GENERAL,Medicine,NHS LOGISTICS,1012007930,1.75,
Department of Health,Salisbury NHS Foundation Trust,13-May-11,SURGICAL INSTRUMENTS: GENERAL,Clinical Support and Family Services,NHS LOGISTICS,1012007930,1.75,
Department of Health,Salisbury NHS Foundation Trust,13-May-11,DRESSINGS  -  PROCEDURE PACKS,Surgery,NHS LOGISTICS,1012007930,1.75,
Department of Health,Salisbury NHS Foundation Trust,13-May-11,SURGICAL INSTRUMENTS: GENERAL,Medicine,NHS LOGISTICS,1012007930,1.75,
Department of Health,Salisbury NHS Foundation Trust,13-May-11,DRESSINGS  -  PROCEDURE PACKS,Surgery,NHS LOGISTICS,1012007930,1.75,
Department of Health,Salisbury NHS Foundation Trust,13-May-11,SURGICAL INSTRUMENTS: GENERAL,Surgery,NHS LOGISTICS,1012007930,1.75,
Department of Health,Salisbury NHS Foundation Trust,13-May-11,SURGICAL INSTRUMENTS: GENERAL,Medicine,NHS LOGISTICS,1012007930,1.75,
Department of Health,Salisbury NHS Foundation Trust,13-May-11,SURGICAL INSTRUMENTS: GENERAL,Critical care,NHS LOGISTICS,1012007930,1.75,
Department of Health,Salisbury NHS Foundation Trust,13-May-11,SURGICAL INSTRUMENTS: GENERAL,Medicine,NHS LOGISTICS,1012007930,1.75,
Department of Health,Salisbury NHS Foundation Trust,13-May-11,PAPER ITEMS GENERAL STATIONERY SUNDRIES,Corporate Directorate,NHS LOGISTICS,1012011882,1.75,
Department of Health,Salisbury NHS Foundation Trust,13-May-11,SURGICAL INSTRUMENTS: GENERAL,Clinical Support and Family Services,NHS LOGISTICS,1012011882,1.75,
Department of Health,Salisbury NHS Foundation Trust,13-May-11,DRESSINGS  -  PROCEDURE PACKS,Surgery,NHS LOGISTICS,1012011882,1.75,
Department of Health,Salisbury NHS Foundation Trust,13-May-11,SURGICAL INSTRUMENTS: GENERAL,Critical care,NHS LOGISTICS,1012011882,1.75,
Department of Health,Salisbury NHS Foundation Trust,13-May-11,HABERDASHERY,Medicine,NHS LOGISTICS,1012011882,1.75,
Department of Health,Salisbury NHS Foundation Trust,13-May-11,SURGICAL INSTRUMENTS: GENERAL,Medicine,NHS LOGISTICS,1012011882,1.75,
Department of Health,Salisbury NHS Foundation Trust,13-May-11,OTHER MEDICAL SUPPLIES,Medicine,NHS LOGISTICS,1012007930,1.76,
Department of Health,Salisbury NHS Foundation Trust,13-May-11,DRESSINGS  -  PROCEDURE PACKS,Medicine,NHS LOGISTICS,1012007930,1.77,
Department of Health,Salisbury NHS Foundation Trust,13-May-11,DRESSINGS  -  PROCEDURE PACKS,Surgery,NHS LOGISTICS,1012007930,1.77,
Department of Health,Salisbury NHS Foundation Trust,13-May-11,DRESSINGS  -  PROCEDURE PACKS,Medicine,NHS LOGISTICS,1012007930,1.77,
Department of Health,Salisbury NHS Foundation Trust,13-May-11,DRESSINGS - PRE STERILE,Clinical Support and Family Services,NHS LOGISTICS,1012007930,1.77,
Department of Health,Salisbury NHS Foundation Trust,13-May-11,TISSUES HAND TOWELS & TOILET PAPER,Surgery,NHS LOGISTICS,1012007930,1.77,
Department of Health,Salisbury NHS Foundation Trust,13-May-11,DRESSINGS  -  PROCEDURE PACKS,Critical care,NHS LOGISTICS,1012011882,1.77,
Department of Health,Salisbury NHS Foundation Trust,13-May-11,STATIONERY SUNDRIES,Facilities Directorate,NHS LOGISTICS,1012007930,1.78,
Department of Health,Salisbury NHS Foundation Trust,13-May-11,DRESSINGS  -  PROCEDURE PACKS,Medicine,NHS LOGISTICS,1012007930,1.79,
Department of Health,Salisbury NHS Foundation Trust,13-May-11,DRESSINGS  -  PROCEDURE PACKS,Medicine,NHS LOGISTICS,1012007930,1.79,
Department of Health,Salisbury NHS Foundation Trust,13-May-11,DRESSINGS - PRE STERILE,Surgery,NHS LOGISTICS,1012007930,1.79,
Department of Health,Salisbury NHS Foundation Trust,13-May-11,M & S EQUIPELECTEQUIPINST - OTHER,Medicine,NHS LOGISTICS,1012007930,1.79,
Department of Health,Salisbury NHS Foundation Trust,13-May-11,M & S EQUIPELECTEQUIPINST - OTHER,Medicine,NHS LOGISTICS,1012007930,1.79,
Department of Health,Salisbury NHS Foundation Trust,13-May-11,DRESSINGS  -  PROCEDURE PACKS,Medicine,NHS LOGISTICS,1012007930,1.79,
Department of Health,Salisbury NHS Foundation Trust,13-May-11,M & S EQUIPELECTEQUIPINST - OTHER,Surgery,NHS LOGISTICS,1012007930,1.79,
Department of Health,Salisbury NHS Foundation Trust,13-May-11,DRESSINGS - PRE STERILE,Medicine,NHS LOGISTICS,1012007930,1.79,
Department of Health,Salisbury NHS Foundation Trust,13-May-11,DRESSINGS - PRE STERILE,Medicine,NHS LOGISTICS,1012007930,1.79,
Department of Health,Salisbury NHS Foundation Trust,13-May-11,STATIONERY SUNDRIES,Clinical Support and Family Services,NHS LOGISTICS,1012011882,1.79,
Department of Health,Salisbury NHS Foundation Trust,13-May-11,DRESSINGS  -  PROCEDURE PACKS,Medicine,NHS LOGISTICS,1012011882,1.79,
Department of Health,Salisbury NHS Foundation Trust,13-May-11,DRESSINGS  -  PROCEDURE PACKS,Critical care,NHS LOGISTICS,1012011882,1.79,
Department of Health,Salisbury NHS Foundation Trust,13-May-11,ANAESTHETIC EQUIPMENT ACCESSORIES,Medicine,NHS LOGISTICS,1012007930,1.8,
Department of Health,Salisbury NHS Foundation Trust,13-May-11,DRESSINGS  -  PROCEDURE PACKS,Medicine,NHS LOGISTICS,1012007930,1.8,
Department of Health,Salisbury NHS Foundation Trust,13-May-11,DRESSINGS - PRE STERILE,Medicine,NHS LOGISTICS,1012007930,1.8,
Department of Health,Salisbury NHS Foundation Trust,13-May-11,PATIENT APPLIANCES,Medicine,NHS LOGISTICS,1012007930,1.8,
Department of Health,Salisbury NHS Foundation Trust,13-May-11,M & S EQUIPELECTEQUIPINST - OTHER,Critical care,NHS LOGISTICS,1012007930,1.8,
Department of Health,Salisbury NHS Foundation Trust,13-May-11,COOKING & KITCHEN UTENSILS,Facilities Directorate,NHS LOGISTICS,1012007930,1.8,
Department of Health,Salisbury NHS Foundation Trust,13-May-11,DRESSINGS - PRE STERILE,Medicine,NHS LOGISTICS,1012007930,1.8,
Department of Health,Salisbury NHS Foundation Trust,13-May-11,SURGICAL INSTRUMENTS: GENERAL,Medicine,NHS LOGISTICS,1012007930,1.81,
Department of Health,Salisbury NHS Foundation Trust,13-May-11,DRESSINGS - PRE STERILE,Medicine,NHS LOGISTICS,1012007930,1.82,
Department of Health,Salisbury NHS Foundation Trust,13-May-11,DRESSINGS - PRE STERILE,Clinical Support and Family Services,NHS LOGISTICS,1012007930,1.82,
Department of Health,Salisbury NHS Foundation Trust,13-May-11,DRESSINGS - PRE STERILE,Medicine,NHS LOGISTICS,1012007930,1.82,
Department of Health,Salisbury NHS Foundation Trust,13-May-11,DRESSINGS - PRE STERILE,Medicine,NHS LOGISTICS,1012007930,1.82,
Department of Health,Salisbury NHS Foundation Trust,13-May-11,DRESSINGS - PRE STERILE,Medicine,NHS LOGISTICS,1012007930,1.82,
Department of Health,Salisbury NHS Foundation Trust,13-May-11,MEDSURGCONS - OTHER,Surgery,NHS LOGISTICS,1012007930,1.82,
Department of Health,Salisbury NHS Foundation Trust,13-May-11,DRESSINGS - PRE STERILE,Clinical Support and Family Services,NHS LOGISTICS,1012011882,1.82,
Department of Health,Salisbury NHS Foundation Trust,13-May-11,DRESSINGS - PRE STERILE,Medicine,NHS LOGISTICS,1012011882,1.82,
Department of Health,Salisbury NHS Foundation Trust,13-May-11,DRESSINGS - PRE STERILE,Critical care,NHS LOGISTICS,1012011882,1.82,
Department of Health,Salisbury NHS Foundation Trust,13-May-11,DRESSINGS - PRE STERILE,Medicine,NHS LOGISTICS,1012011882,1.82,
Department of Health,Salisbury NHS Foundation Trust,13-May-11,DRESSINGS - PRE STERILE,Surgery,NHS LOGISTICS,1012011882,1.82,
Department of Health,Salisbury NHS Foundation Trust,13-May-11,MEDSURGCONS - OTHER,Medicine,NHS LOGISTICS,1012007930,1.83,
Department of Health,Salisbury NHS Foundation Trust,13-May-11,SURGICAL INSTRUMENTS: GENERAL,Clinical Support and Family Services,NHS LOGISTICS,1012007930,1.83,
Department of Health,Salisbury NHS Foundation Trust,13-May-11,TOILETRIES PERSONAL HYGIENE PRODUCTS,Medicine,NHS LOGISTICS,1012007930,1.83,
Department of Health,Salisbury NHS Foundation Trust,13-May-11,MEDSURGCONS - OTHER,Critical care,NHS LOGISTICS,1012007930,1.83,
Department of Health,Salisbury NHS Foundation Trust,13-May-11,DRESSINGS - PRE STERILE,Clinical Support and Family Services,NHS LOGISTICS,1012007930,1.83,
Department of Health,Salisbury NHS Foundation Trust,13-May-11,SURGICAL INSTRUMENTS: GENERAL,Clinical Support and Family Services,NHS LOGISTICS,1012007930,1.83,
Department of Health,Salisbury NHS Foundation Trust,13-May-11,MEDSURGCONS - OTHER,Clinical Support and Family Services,NHS LOGISTICS,1012007930,1.83,
Department of Health,Salisbury NHS Foundation Trust,13-May-11,OTHER MEDICAL SUPPLIES,Medicine,NHS LOGISTICS,1012011882,1.83,
Department of Health,Salisbury NHS Foundation Trust,13-May-11,OTHER MEDICAL SUPPLIES,Medicine,NHS LOGISTICS,1012007930,1.84,
Department of Health,Salisbury NHS Foundation Trust,13-May-11,MEDSURGCONS - OTHER,Clinical Support and Family Services,NHS LOGISTICS,1012007930,1.84,
Department of Health,Salisbury NHS Foundation Trust,13-May-11,OTHER MEDICAL SUPPLIES,Surgery,NHS LOGISTICS,1012007930,1.84,
Department of Health,Salisbury NHS Foundation Trust,13-May-11,OTHER MEDICAL SUPPLIES,Surgery,NHS LOGISTICS,1012007930,1.84,
Department of Health,Salisbury NHS Foundation Trust,13-May-11,NON DISPOSABLE BED LINEN,Medicine,NHS LOGISTICS,1012007930,1.84,
Department of Health,Salisbury NHS Foundation Trust,13-May-11,OTHER MEDICAL SUPPLIES,Medicine,NHS LOGISTICS,1012011882,1.84,
Department of Health,Salisbury NHS Foundation Trust,13-May-11,OTHER MEDICAL SUPPLIES,Medicine,NHS LOGISTICS,1012011882,1.84,
Department of Health,Salisbury NHS Foundation Trust,13-May-11,OTHER MEDICAL SUPPLIES,Medicine,NHS LOGISTICS,1012011882,1.84,
Department of Health,Salisbury NHS Foundation Trust,13-May-11,OTHER MEDICAL SUPPLIES,Medicine,NHS LOGISTICS,1012011882,1.84,
Department of Health,Salisbury NHS Foundation Trust,13-May-11,OTHER MEDICAL SUPPLIES,Critical care,NHS LOGISTICS,1012011882,1.84,
Department of Health,Salisbury NHS Foundation Trust,13-May-11,OTHER MEDICAL SUPPLIES,Surgery,NHS LOGISTICS,1012011882,1.84,
Department of Health,Salisbury NHS Foundation Trust,13-May-11,MEDSURGCONS - OTHER,Medicine,NHS LOGISTICS,1012007930,1.85,
Department of Health,Salisbury NHS Foundation Trust,13-May-11,MEDSURGCONS - OTHER,Surgery,NHS LOGISTICS,1012007930,1.85,
Department of Health,Salisbury NHS Foundation Trust,13-May-11,ANAESTHETIC EQUIPMENT ACCESSORIES,Surgery,NHS LOGISTICS,1012007930,1.85,
Department of Health,Salisbury NHS Foundation Trust,13-May-11,STATIONERY SUNDRIES,Surgery,NHS LOGISTICS,1012007930,1.86,
Department of Health,Salisbury NHS Foundation Trust,13-May-11,SURGICAL INSTRUMENTS: GENERAL,Medicine,NHS LOGISTICS,1012007930,1.86,
Department of Health,Salisbury NHS Foundation Trust,13-May-11,PATIENTS INCONTINENCE,Surgery,NHS LOGISTICS,1012007930,1.87,
Department of Health,Salisbury NHS Foundation Trust,13-May-11,PAPER ITEMS GENERAL STATIONERY SUNDRIES,Critical care,NHS LOGISTICS,1012007930,1.87,
Department of Health,Salisbury NHS Foundation Trust,13-May-11,OTHER MEDICAL SUPPLIES,Medicine,NHS LOGISTICS,1012007930,1.87,
Department of Health,Salisbury NHS Foundation Trust,13-May-11,DISPOSABLE THEATRE DRAPES WIPES,Surgery,NHS LOGISTICS,1012007930,1.87,
Department of Health,Salisbury NHS Foundation Trust,13-May-11,OTHER MEDICAL SUPPLIES,Medicine,NHS LOGISTICS,1012007930,1.87,
Department of Health,Salisbury NHS Foundation Trust,13-May-11,DISPOSABLE THEATRE DRAPES WIPES,Critical care,NHS LOGISTICS,1012007930,1.87,
